Workbook

Sheet Inhoud
A3: OVERZICHT | C3: 2011-06-01
A6: Barema 1 | B6: L4 | C6: Logistiek personeel klasse 4
A7: Barema 7 | B7: L3 | C7: Logistiek personeel klasse 3 (In dienst na 1/11/93)
A8: Barema 8 | B8: L2 | C8: Logistiek personeel klasse 2
A9: Barema 9 | B9: A1 | C9: Administratief + logistiek personeel klasse 1
A10: Barema 10 | B10: A2 | C10: Administratief + logistiek personeel klasse 2
A11: Barema 12 | B11: A3 | C11: Administratief personeel klasse 3
A12: Barema 13 | B12: MV2 | C12: Verzorgend personeel
A13: Barema 14 | B13: B3 | C13: Begeleidend en verzorgend personeel klasse 3
A14: Barema 15 | B14: B2B | C14: Begeleidend en verzorgend personeel klasse 2B
A15: Barema 16 | B15: B2A | C15: Begeleidend en verzorgend personeel klasse 2A
A16: Barema 17 | B16: B1c | C16: Opvoedend personeel klasse 1
A17: Barema 18 | B17: B1b | C17: Hoofdopvoeder
A18: Barema 20 | B18: MV1 | C18: Sociaal paramedisch en therapeutisch personeel
A19: Barema | B19: MV1bis | C19: Dienstverantwoordelijke in DVO
A20: Barema 21 | B20: L1 | C20: Licentiaten en tandarts
A21: Barema 23 | B21: K3 | C21: Directeur 30-59 bedden
A22: Barema 26 | B22: G1 | C22: Geneesheer omnipracticus
A23: Barema 27 | B23: GS | C23: Geneesheer specialist
C24: Gewaarborgd inkomen

Sheet LOG4
A1: L4 | E1: 210 | F1: LOGISTIEK PERSONEEL KLASSE 4 | Q1: Barema 1
E3: 210 | F3: Onderhoud categorie I
A4: 18j. | E4: 211 | F4: Chauffeur loon ten laste van vervoer gehandicapten | T4: coëfficiënt: | U4: 1.219
B6: JAARLOON | F6: MAANDLOON | H6: HAARDTOELAGE | J6: STANDPLAATS- | L6: UURLOON | R6: UURLOON MET
B7: 1 | J7: TOELAGE | L7: 38u | T7: 40u
B8: basis 01/01/2002 | D8: =Inhoud!$C$3 -> 2011-06-01 | F8: =D8 -> 2011-06-01 | L8: 1 | N8: 0.5 | P8: 0.2 | R8: HAARDTOELAGE
A10: 0 | B10: 14951.23 | D10: =B10*$U$4 -> 18225.54937 | E10: =D10/40.3399 -> 451.7995674 | F10: =B10/12*$U$4 -> 1518.795781 | G10: =F10/40.3399 -> 37.64996395 | H10: =((B10<19968.2)*913.03+(B10>19968.2)*(B10<20424.71)*(20424.71-B10+456.51)+(B10>20424.71)*(B10<22659.62)*456.51+(B10>22659.62)*(B10<23116.13)*(23116.13-B10))/12*$U$4 -> 92.74863083 | I10: =H10/40.3399 -> 2.299178502 | J10: =((B10<19968.2)*456.51+(B10>19968.2)*(B10<20196.46)*(20196.46-B10+228.26)+(B10>20196.46)*(B10<22659.62)*228.26+(B10>22659.62)*(B10<22887.88)*(22887.88-B10))/12*$U$4 -> 46.3738075 | K10: =J10/40.3399 -> 1.14957666 | L10: =D10/1976 -> 9.223456159 | M10: =L10/40.3399 -> 0.2286435058 | N10: =L10/2 -> 4.611728079 | O10: =N10/40.3399 -> 0.1143217529 | P10: =L10/5 -> 1.844691232 | Q10: =P10/40.3399 -> 0.04572870116 | R10: =(F10+H10)/1976*12 -> 9.786706953 | S10: =R10/40.3399 -> 0.2426061283 | T10: =D10/2080 -> 8.762283351 | U10: =T10/40.3399 -> 0.2172113305
A11: =+A10+1 -> 1 | B11: 15149.02 | D11: 18466.65538 | E11: 457.7764293 | F11: 1538.887948 | G11: 38.14803577 | H11: =((B11<19968.2)*913.03+(B11>19968.2)*(B11<20424.71)*(20424.71-B11+456.51)+(B11>20424.71)*(B11<22659.62)*456.51+(B11>22659.62)*(B11<23116.13)*(23116.13-B11))/12*$U$4 -> 92.74863083 | I11: 2.299178502 | J11: =((B11<19968.2)*456.51+(B11>19968.2)*(B11<20196.46)*(20196.46-B11+228.26)+(B11>20196.46)*(B11<22659.62)*228.26+(B11>22659.62)*(B11<22887.88)*(22887.88-B11))/12*$U$4 -> 46.3738075 | K11: 1.14957666 | L11: =D11/1976 -> 9.34547337 | M11: 0.2316682334 | N11: 4.672736685 | O11: 0.1158341167 | P11: 1.869094674 | Q11: 0.04633364669 | R11: 9.908724165 | S11: 0.2456308559 | T11: 8.878199702 | U11: 0.2200848218
A12: 2 | B12: 15346.47 | D12: 18707.34693 | E12: 463.743017 | F12: 1558.945578 | G12: 38.64525141 | H12: 92.74863083 | I12: 2.299178502 | J12: 46.3738075 | K12: 1.14957666 | L12: 9.467280835 | M12: 0.2346877616 | N12: 4.733640418 | O12: 0.1173438808 | P12: 1.893456167 | Q12: 0.04693755232 | R12: 10.03053163 | S12: 0.2486503841 | T12: 8.993916793 | U12: 0.2229533735
A13: 3 | B13: 15544.26 | D13: 18948.45294 | E13: 469.7198788 | F13: 1579.037745 | G13: 39.14332324 | H13: 92.74863083 | I13: 2.299178502 | J13: 46.3738075 | K13: 1.14957666 | L13: 9.589298047 | M13: 0.2377124893 | N13: 4.794649023 | O13: 0.1188562446 | P13: 1.917859609 | Q13: 0.04754249786 | R13: 10.15254884 | S13: 0.2516751118 | T13: 9.109833144 | U13: 0.2258268648
A14: 4 | B14: 15776.73 | D14: 19231.83387 | E14: 476.7447086 | F14: 1602.652822 | G14: 39.72872572 | H14: 92.74863083 | I14: 2.299178502 | J14: 46.3738075 | K14: 1.14957666 | L14: 9.732709448 | M14: 0.2412675651 | N14: 4.866354724 | O14: 0.1206337825 | P14: 1.94654189 | Q14: 0.04825351302 | R14: 10.29596024 | S14: 0.2552301876 | T14: 9.246073976 | U14: 0.2292041868
A15: 5 | B15: 15948.33 | D15: 19441.01427 | E15: 481.9301553 | F15: 1620.084523 | G15: 40.16084627 | H15: 92.74863083 | I15: 2.299178502 | J15: 46.3738075 | K15: 1.14957666 | L15: 9.838569975 | M15: 0.243891779 | N15: 4.919284987 | O15: 0.1219458895 | P15: 1.967713995 | Q15: 0.0487783558 | R15: 10.40182077 | S15: 0.2578544015 | T15: 9.346641476 | U15: 0.23169719
A16: 6 | B16: 16569.15 | D16: 20197.79385 | E16: 500.690231 | F16: 1683.149488 | G16: 41.72418592 | H16: 92.74863083 | I16: 2.299178502 | J16: 46.3738075 | K16: 1.14957666 | L16: 10.22155559 | M16: 0.2533857444 | N16: 5.110777796 | O16: 0.1266928722 | P16: 2.044311118 | Q16: 0.05067714889 | R16: 10.78480639 | S16: 0.2673483669 | T16: 9.710477813 | U16: 0.2407164572
A17: 7 | B17: 16684.13 | D17: 20337.95447 | E17: 504.164722 | F17: 1694.829539 | G17: 42.01372684 | H17: 92.74863083 | I17: 2.299178502 | J17: 46.3738075 | K17: 1.14957666 | L17: 10.29248708 | M17: 0.2551440901 | N17: 5.14624354 | O17: 0.127572045 | P17: 2.058497416 | Q17: 0.05102881802 | R17: 10.85573787 | S17: 0.2691067126 | T17: 9.777862726 | U17: 0.2423868856
A18: 8 | B18: 17361.6 | D18: 21163.7904 | E18: 524.63666 | F18: 1763.6492 | G18: 43.71972167 | H18: 92.74863083 | I18: 2.299178502 | J18: 46.3738075 | K18: 1.14957666 | L18: 10.71042024 | M18: 0.2655043826 | N18: 5.355210121 | O18: 0.1327521913 | P18: 2.142084049 | Q18: 0.05310087652 | R18: 11.27367104 | S18: 0.2794670051 | T18: 10.17489923 | U18: 0.2522291635
A19: 9 | B19: 17419.93 | D19: 21234.89467 | E19: 526.3992888 | F19: 1769.574556 | G19: 43.8666074 | H19: 92.74863083 | I19: 2.299178502 | J19: 46.3738075 | K19: 1.14957666 | L19: 10.74640419 | M19: 0.2663964012 | N19: 5.373202093 | O19: 0.1331982006 | P19: 2.149280837 | Q19: 0.05327928024 | R19: 11.30965498 | S19: 0.2803590237 | T19: 10.20908398 | U19: 0.2530765812
A20: 10 | B20: 18154.06 | D20: 22129.79914 | E20: 548.5833911 | F20: 1844.149928 | G20: 45.71528259 | H20: 92.74863083 | I20: 2.299178502 | J20: 46.3738075 | K20: 1.14957666 | L20: 11.19929106 | M20: 0.2776231737 | N20: 5.599645531 | O20: 0.1388115868 | P20: 2.239858213 | Q20: 0.05552463473 | R20: 11.76254186 | S20: 0.2915857961 | T20: 10.63932651 | U20: 0.263742015
A21: 11 | B21: 18156.1 | D21: 22132.2859 | E21: 548.6450363 | F21: 1844.357158 | G21: 45.72041969 | H21: 92.74863083 | I21: 2.299178502 | J21: 46.3738075 | K21: 1.14957666 | L21: 11.20054954 | M21: 0.2776543706 | N21: 5.600274772 | O21: 0.1388271853 | P21: 2.240109909 | Q21: 0.05553087412 | R21: 11.76380034 | S21: 0.2916169931 | T21: 10.64052207 | U21: 0.2637716521
A22: 12 | B22: 18946.51 | D22: 23095.79569 | E22: 572.5298201 | F22: 1924.649641 | G22: 47.71081834 | H22: 92.74863083 | I22: 2.299178502 | J22: 46.3738075 | K22: 1.14957666 | L22: 11.68815571 | M22: 0.2897418118 | N22: 5.844077857 | O22: 0.1448709059 | P22: 2.337631143 | Q22: 0.05794836236 | R22: 12.25140651 | S22: 0.3037044343 | T22: 11.10374793 | U22: 0.2752547212
A23: 13 | B23: 18946.51 | D23: 23095.79569 | E23: 572.5298201 | F23: 1924.649641 | G23: 47.71081834 | H23: 92.74863083 | I23: 2.299178502 | J23: 46.3738075 | K23: 1.14957666 | L23: 11.68815571 | M23: 0.2897418118 | N23: 5.844077857 | O23: 0.1448709059 | P23: 2.337631143 | Q23: 0.05794836236 | R23: 12.25140651 | S23: 0.3037044343 | T23: 11.10374793 | U23: 0.2752547212
A24: 14 | B24: 19738.97 | D24: 24061.80443 | E24: 596.4765513 | F24: 2005.150369 | G24: 49.70637927 | H24: 92.74863083 | I24: 2.299178502 | J24: 46.3738075 | K24: 1.14957666 | L24: 12.17702653 | M24: 0.3018606029 | N24: 6.088513267 | O24: 0.1509303014 | P24: 2.435405307 | Q24: 0.06037212057 | R24: 12.74027733 | S24: 0.3158232253 | T24: 11.56817521 | U24: 0.2867675727
A25: 15 | B25: 19738.97 | D25: 24061.80443 | E25: 596.4765513 | F25: 2005.150369 | G25: 49.70637927 | H25: 92.74863083 | I25: 2.299178502 | J25: 46.3738075 | K25: 1.14957666 | L25: 12.17702653 | M25: 0.3018606029 | N25: 6.088513267 | O25: 0.1509303014 | P25: 2.435405307 | Q25: 0.06037212057 | R25: 12.74027733 | S25: 0.3158232253 | T25: 11.56817521 | U25: 0.2867675727
A26: 16 | B26: 20531.42 | D26: 25027.80098 | E26: 620.4229802 | F26: 2085.650082 | G26: 51.70191502 | H26: 46.3738075 | I26: 1.14957666 | J26: 23.18741167 | K26: 0.5748009208 | L26: 12.66589118 | M26: 0.313979241 | N26: 6.332945592 | O26: 0.1569896205 | P26: 2.533178237 | Q26: 0.0627958482 | R26: 12.9475135 | S26: 0.3209604758 | T26: 12.03259663 | U26: 0.298280279
A27: 17 | B27: 20531.42 | D27: 25027.80098 | E27: 620.4229802 | F27: 2085.650082 | G27: 51.70191502 | H27: 46.3738075 | I27: 1.14957666 | J27: 23.18741167 | K27: 0.5748009208 | L27: 12.66589118 | M27: 0.313979241 | N27: 6.332945592 | O27: 0.1569896205 | P27: 2.533178237 | Q27: 0.0627958482 | R27: 12.9475135 | S27: 0.3209604758 | T27: 12.03259663 | U27: 0.298280279
A28: 18 | B28: 21323.87 | D28: 25993.79753 | E28: 644.3694092 | F28: 2166.149794 | G28: 53.69745077 | H28: 46.3738075 | I28: 1.14957666 | J28: 23.18741167 | K28: 0.5748009208 | L28: 13.15475584 | M28: 0.3260978791 | N28: 6.577377918 | O28: 0.1630489396 | P28: 2.630951167 | Q28: 0.06521957583 | R28: 13.43637815 | S28: 0.3330791139 | T28: 12.49701804 | U28: 0.3097929852
A29: 19 | B29: 21323.87 | D29: 25993.79753 | E29: 644.3694092 | F29: 2166.149794 | G29: 53.69745077 | H29: 46.3738075 | I29: 1.14957666 | J29: 23.18741167 | K29: 0.5748009208 | L29: 13.15475584 | M29: 0.3260978791 | N29: 6.577377918 | O29: 0.1630489396 | P29: 2.630951167 | Q29: 0.06521957583 | R29: 13.43637815 | S29: 0.3330791139 | T29: 12.49701804 | U29: 0.3097929852
A30: 20 | B30: 22116.33 | D30: 26959.80627 | E30: 668.3161403 | F30: 2246.650523 | G30: 55.6930117 | H30: 46.3738075 | I30: 1.14957666 | J30: 23.18741167 | K30: 0.5748009208 | L30: 13.64362665 | M30: 0.3382166702 | N30: 6.821813327 | O30: 0.1691083351 | P30: 2.728725331 | Q30: 0.06764333404 | R30: 13.92524897 | S30: 0.345197905 | T30: 12.96144532 | U30: 0.3213058367
A31: 21 | B31: 22116.33 | D31: 26959.80627 | E31: 668.3161403 | F31: 2246.650523 | G31: 55.6930117 | H31: 46.3738075 | I31: 1.14957666 | J31: 23.18741167 | K31: 0.5748009208 | L31: 13.64362665 | M31: 0.3382166702 | N31: 6.821813327 | O31: 0.1691083351 | P31: 2.728725331 | Q31: 0.06764333404 | R31: 13.92524897 | S31: 0.345197905 | T31: 12.96144532 | U31: 0.3213058367
A32: 22 | B32: 22908.78 | D32: 27925.80282 | E32: 692.2625693 | F32: 2327.150235 | G32: 57.68854744 | H32: 21.06330417 | I32: 0.5221456713 | J32: 0 | K32: 0 | L32: 14.13249131 | M32: 0.3503353084 | N32: 7.066245653 | O32: 0.1751676542 | P32: 2.826498261 | Q32: 0.07006706167 | R32: 14.26040611 | S32: 0.3535062335 | T32: 13.42586674 | U32: 0.3328185429
A33: 23 | B33: 23701.23 | D33: 28891.79937 | E33: 716.2089983 | F33: 2407.649948 | G33: 59.68408319 | H33: 0 | I33: 0 | J33: 0 | K33: 0 | L33: 14.62135596 | M33: 0.3624539465 | N33: 7.310677978 | O33: 0.1812269733 | P33: 2.924271191 | Q33: 0.0724907893 | R33: 14.62135596 | S33: 0.3624539465 | T33: 13.89028816 | U33: 0.3443312492
A34: 24 | B34: 24493.66 | D34: 29857.77154 | E34: 740.1548229 | F34: 2488.147628 | G34: 61.67956857 | H34: 0 | I34: 0 | J34: 0 | K34: 0 | L34: 15.11020827 | M34: 0.3745722788 | N34: 7.555104135 | O34: 0.1872861394 | P34: 3.022041654 | Q34: 0.07491445576 | R34: 15.11020827 | S34: 0.3745722788 | T34: 14.35469786 | U34: 0.3558436649
A35: 25 | B35: 24493.66 | D35: 29857.77154 | E35: 740.1548229 | F35: 2488.147628 | G35: 61.67956857 | H35: 0 | I35: 0 | J35: 0 | K35: 0 | L35: 15.11020827 | M35: 0.3745722788 | N35: 7.555104135 | O35: 0.1872861394 | P35: 3.022041654 | Q35: 0.07491445576 | R35: 15.11020827 | S35: 0.3745722788 | T35: 14.35469786 | U35: 0.3558436649
A36: 26 | B36: 24493.66 | D36: 29857.77154 | E36: 740.1548229 | F36: 2488.147628 | G36: 61.67956857 | H36: 0 | I36: 0 | J36: 0 | K36: 0 | L36: 15.11020827 | M36: 0.3745722788 | N36: 7.555104135 | O36: 0.1872861394 | P36: 3.022041654 | Q36: 0.07491445576 | R36: 15.11020827 | S36: 0.3745722788 | T36: 14.35469786 | U36: 0.3558436649
A37: 27 | B37: 24493.66 | D37: 29857.77154 | E37: 740.1548229 | F37: 2488.147628 | G37: 61.67956857 | H37: 0 | I37: 0 | J37: 0 | K37: 0 | L37: 15.11020827 | M37: 0.3745722788 | N37: 7.555104135 | O37: 0.1872861394 | P37: 3.022041654 | Q37: 0.07491445576 | R37: 15.11020827 | S37: 0.3745722788 | T37: 14.35469786 | U37: 0.3558436649

Sheet LOG3
A1: L3 | E1: 632 | F1: LOGISTIEK KLASSE 3 | Q1: Barema 7
E2: Barema voor personeelsleden in dienst vanaf 1/11/93
E3: 432 | F3: Technicus - electronica A3
E4: 442 | F4: Technicus - knuts. apparatuur
E5: 162 | F5: Kopiist - A3
E6: 102 | F6: Helper in klin. labo.
E7: 633 | F7: Chauffeur loon ten laste van vervoer gehandicapten
A8: 18j. | T8: coëfficiënt: | U8: ='LOG4'!$U$4 -> 1.219
B10: JAARLOON | F10: MAANDLOON | H10: HAARDTOELAGE | J10: STANDPLAATS- | L10: UURLOON | R10: UURLOON MET
B11: 1 | J11: TOELAGE | L11: 38u | T11: 40u
B12: basis 01/01/2002 | D12: =Inhoud!$C$3 -> 2011-06-01 | F12: =D12 -> 2011-06-01 | L12: 1 | N12: 0.5 | P12: 0.2 | R12: HAARDTOELAGE
A14: 0 | B14: 15682.44 | D14: =B14*$U$8 -> 19116.89436 | E14: =D14/40.3399 -> 473.8954326 | F14: =B14/12*$U$8 -> 1593.07453 | G14: =F14/40.3399 -> 39.49128605 | H14: =((B14<19968.2)*913.03+(B14>19968.2)*(B14<20424.71)*(20424.71-B14+456.51)+(B14>20424.71)*(B14<22659.62)*456.51+(B14>22659.62)*(B14<23116.13)*(23116.13-B14))/12*$U$8 -> 92.74863083 | I14: =H14/40.3399 -> 2.299178502 | J14: =((B14<19968.2)*456.51+(B14>19968.2)*(B14<20196.46)*(20196.46-B14+228.26)+(B14>20196.46)*(B14<22659.62)*228.26+(B14>22659.62)*(B14<22887.88)*(22887.88-B14))/12*$U$8 -> 46.3738075 | K14: =J14/40.3399 -> 1.14957666 | L14: =D14/1976 -> 9.67454168 | M14: =L14/40.3399 -> 0.2398256238 | N14: =L14/2 -> 4.83727084 | O14: =N14/40.3399 -> 0.1199128119 | P14: =L14/5 -> 1.934908336 | Q14: =P14/40.3399 -> 0.04796512475 | R14: =(F14+H14)/1976*12 -> 10.23779247 | S14: =R14/40.3399 -> 0.2537882462 | T14: =D14/2080 -> 9.190814596 | U14: =T14/40.3399 -> 0.2278343426
A15: =+A14+1 -> 1 | B15: 16325.8 | D15: 19901.1502 | E15: 493.336627 | F15: 1658.429183 | G15: 41.11138558 | H15: 92.74863083 | I15: 2.299178502 | J15: 46.3738075 | K15: 1.14957666 | L15: 10.07143229 | M15: 0.2496642849 | N15: 5.035716144 | O15: 0.1248321425 | P15: 2.014286457 | Q15: 0.04993285699 | R15: 10.63468308 | S15: 0.2636269074 | T15: 9.567860673 | U15: 0.2371810707
A16: 2 | B16: 16969.17 | D16: 20685.41823 | E16: 512.7781236 | F16: 1723.784852 | G16: 42.7315103 | H16: 92.74863083 | I16: 2.299178502 | J16: 46.3738075 | K16: 1.14957666 | L16: 10.46832906 | M16: 0.259503099 | N16: 5.234164532 | O16: 0.1297515495 | P16: 2.093665813 | Q16: 0.0519006198 | R16: 11.03157986 | S16: 0.2734657215 | T16: 9.944912611 | U16: 0.2465279441
A17: 3 | B17: 17612.56 | D17: 21469.71064 | E17: 532.2202246 | F17: 1789.142553 | G17: 44.35168539 | H17: 92.74863083 | I17: 2.299178502 | J17: 46.3738075 | K17: 1.14957666 | L17: 10.86523818 | M17: 0.2693422189 | N17: 5.432619089 | O17: 0.1346711095 | P17: 2.173047636 | Q17: 0.05386844379 | R17: 11.42848897 | S17: 0.2833048414 | T17: 10.32197627 | U17: 0.255875108
A18: 4 | B18: 18255.93 | D18: 22253.97867 | E18: 551.6617213 | F18: 1854.498223 | G18: 45.97181011 | H18: 92.74863083 | I18: 2.299178502 | J18: 46.3738075 | K18: 1.14957666 | L18: 11.26213495 | M18: 0.279181033 | N18: 5.631067477 | O18: 0.1395905165 | P18: 2.252426991 | Q18: 0.05583620661 | R18: 11.82538575 | S18: 0.2931436555 | T18: 10.69902821 | U18: 0.2652219814
A19: 5 | B19: 18255.93 | D19: 22253.97867 | E19: 551.6617213 | F19: 1854.498223 | G19: 45.97181011 | H19: 92.74863083 | I19: 2.299178502 | J19: 46.3738075 | K19: 1.14957666 | L19: 11.26213495 | M19: 0.279181033 | N19: 5.631067477 | O19: 0.1395905165 | P19: 2.252426991 | Q19: 0.05583620661 | R19: 11.82538575 | S19: 0.2931436555 | T19: 10.69902821 | U19: 0.2652219814
A20: 6 | B20: 19172.88 | D20: 23371.74072 | E20: 579.3703187 | F20: 1947.64506 | G20: 48.28085989 | H20: 92.74863083 | I20: 2.299178502 | J20: 46.3738075 | K20: 1.14957666 | L20: 11.82780401 | M20: 0.2932036026 | N20: 5.913902004 | O20: 0.1466018013 | P20: 2.365560802 | Q20: 0.05864072052 | R20: 12.3910548 | S20: 0.3071662251 | T20: 11.23641381 | U20: 0.2785434225
A21: 7 | B21: 19172.88 | D21: 23371.74072 | E21: 579.3703187 | F21: 1947.64506 | G21: 48.28085989 | H21: 92.74863083 | I21: 2.299178502 | J21: 46.3738075 | K21: 1.14957666 | L21: 11.82780401 | M21: 0.2932036026 | N21: 5.913902004 | O21: 0.1466018013 | P21: 2.365560802 | Q21: 0.05864072052 | R21: 12.3910548 | S21: 0.3071662251 | T21: 11.23641381 | U21: 0.2785434225
A22: 8 | B22: 20089.87 | D22: 24489.55153 | E22: 607.0801249 | F22: 2040.795961 | G22: 50.59001041 | H22: 80.38797083 | I22: 1.992765744 | J22: 34.01517917 | K22: 0.8432142659 | L22: 12.39349774 | M22: 0.3072267839 | N22: 6.196748869 | O22: 0.1536133919 | P22: 2.478699548 | Q22: 0.06144535677 | R22: 12.8816838 | S22: 0.3193286001 | T22: 11.77382285 | U22: 0.2918654447
A23: 9 | B23: 20089.87 | D23: 24489.55153 | E23: 607.0801249 | F23: 2040.795961 | G23: 50.59001041 | H23: 80.38797083 | I23: 1.992765744 | J23: 34.01517917 | K23: 0.8432142659 | L23: 12.39349774 | M23: 0.3072267839 | N23: 6.196748869 | O23: 0.1536133919 | P23: 2.478699548 | Q23: 0.06144535677 | R23: 12.8816838 | S23: 0.3193286001 | T23: 11.77382285 | U23: 0.2918654447
A24: 10 | B24: 21006.86 | D24: 25607.36234 | E24: 634.7899311 | F24: 2133.946862 | G24: 52.89916092 | H24: 46.3738075 | I24: 1.14957666 | J24: 23.18741167 | K24: 0.5748009208 | L24: 12.95919147 | M24: 0.3212499651 | N24: 6.479595734 | O24: 0.1606249826 | P24: 2.591838294 | Q24: 0.06424999302 | R24: 13.24081378 | S24: 0.3282311999 | T24: 12.31123189 | U24: 0.3051874669
A25: 11 | B25: 21006.86 | D25: 25607.36234 | E25: 634.7899311 | F25: 2133.946862 | G25: 52.89916092 | H25: 46.3738075 | I25: 1.14957666 | J25: 23.18741167 | K25: 0.5748009208 | L25: 12.95919147 | M25: 0.3212499651 | N25: 6.479595734 | O25: 0.1606249826 | P25: 2.591838294 | Q25: 0.06424999302 | R25: 13.24081378 | S25: 0.3282311999 | T25: 12.31123189 | U25: 0.3051874669
A26: 12 | B26: 21923.82 | D26: 26725.13658 | E26: 662.4988307 | F26: 2227.094715 | G26: 55.20823589 | H26: 46.3738075 | I26: 1.14957666 | J26: 23.18741167 | K26: 0.5748009208 | L26: 13.52486669 | M26: 0.3352726876 | N26: 6.762433345 | O26: 0.1676363438 | P26: 2.704973338 | Q26: 0.06705453752 | R26: 13.806489 | S26: 0.3422539224 | T26: 12.84862336 | U26: 0.3185090532
A27: 13 | B27: 21923.82 | D27: 26725.13658 | E27: 662.4988307 | F27: 2227.094715 | G27: 55.20823589 | H27: 46.3738075 | I27: 1.14957666 | J27: 23.18741167 | K27: 0.5748009208 | L27: 13.52486669 | M27: 0.3352726876 | N27: 6.762433345 | O27: 0.1676363438 | P27: 2.704973338 | Q27: 0.06705453752 | R27: 13.806489 | S27: 0.3422539224 | T27: 12.84862336 | U27: 0.3185090532
A28: 14 | B28: 22840.81 | D28: 27842.94739 | E28: 690.2086369 | F28: 2320.245616 | G28: 57.5173864 | H28: 27.96792333 | I28: 0.6933067096 | J28: 4.7815275 | K28: 0.1185309706 | L28: 14.09056042 | M28: 0.3492958689 | N28: 7.04528021 | O28: 0.1746479344 | P28: 2.818112084 | Q28: 0.06985917377 | R28: 14.26040611 | S28: 0.3535062335 | T28: 13.3860324 | U28: 0.3318310754
A29: 15 | B29: 22840.81 | D29: 27842.94739 | E29: 690.2086369 | F29: 2320.245616 | G29: 57.5173864 | H29: 27.96792333 | I29: 0.6933067096 | J29: 4.7815275 | K29: 0.1185309706 | L29: 14.09056042 | M29: 0.3492958689 | N29: 7.04528021 | O29: 0.1746479344 | P29: 2.818112084 | Q29: 0.06985917377 | R29: 14.26040611 | S29: 0.3535062335 | T29: 13.3860324 | U29: 0.3318310754
A30: 16 | B30: 23757.8 | D30: 28960.7582 | E30: 717.918443 | F30: 2413.396517 | G30: 59.82653692 | H30: 0 | I30: 0 | J30: 0 | K30: 0 | L30: 14.65625415 | M30: 0.3633190501 | N30: 7.328127075 | O30: 0.1816595251 | P30: 2.93125083 | Q30: 0.07266381002 | R30: 14.65625415 | S30: 0.3633190501 | T30: 13.92344144 | U30: 0.3451530976
A31: 17 | B31: 23757.8 | D31: 28960.7582 | E31: 717.918443 | F31: 2413.396517 | G31: 59.82653692 | H31: 0 | I31: 0 | J31: 0 | K31: 0 | L31: 14.65625415 | M31: 0.3633190501 | N31: 7.328127075 | O31: 0.1816595251 | P31: 2.93125083 | Q31: 0.07266381002 | R31: 14.65625415 | S31: 0.3633190501 | T31: 13.92344144 | U31: 0.3451530976
A32: 18 | B32: 24674.75 | D32: 30078.52025 | E32: 745.6270405 | F32: 2506.543354 | G32: 62.13558671 | H32: 0 | I32: 0 | J32: 0 | K32: 0 | L32: 15.2219232 | M32: 0.3773416197 | N32: 7.610961602 | O32: 0.1886708098 | P32: 3.044384641 | Q32: 0.07546832393 | R32: 15.2219232 | S32: 0.3773416197 | T32: 14.46082704 | U32: 0.3584745387
A33: 19 | B33: 24674.75 | D33: 30078.52025 | E33: 745.6270405 | F33: 2506.543354 | G33: 62.13558671 | H33: 0 | I33: 0 | J33: 0 | K33: 0 | L33: 15.2219232 | M33: 0.3773416197 | N33: 7.610961602 | O33: 0.1886708098 | P33: 3.044384641 | Q33: 0.07546832393 | R33: 15.2219232 | S33: 0.3773416197 | T33: 14.46082704 | U33: 0.3584745387
A34: 20 | B34: 25591.74 | D34: 31196.33106 | E34: 773.3368466 | F34: 2599.694255 | G34: 64.44473722 | H34: 0 | I34: 0 | J34: 0 | K34: 0 | L34: 15.78761693 | M34: 0.3913648009 | N34: 7.893808467 | O34: 0.1956824005 | P34: 3.157523387 | Q34: 0.07827296019 | R34: 15.78761693 | S34: 0.3913648009 | T34: 14.99823609 | U34: 0.3717965609
A35: 21 | B35: 25591.74 | D35: 31196.33106 | E35: 773.3368466 | F35: 2599.694255 | G35: 64.44473722 | H35: 0 | I35: 0 | J35: 0 | K35: 0 | L35: 15.78761693 | M35: 0.3913648009 | N35: 7.893808467 | O35: 0.1956824005 | P35: 3.157523387 | Q35: 0.07827296019 | R35: 15.78761693 | S35: 0.3913648009 | T35: 14.99823609 | U35: 0.3717965609
A36: 22 | B36: 26508.73 | D36: 32314.14187 | E36: 801.0466528 | F36: 2692.845156 | G36: 66.75388773 | H36: 0 | I36: 0 | J36: 0 | K36: 0 | L36: 16.35331066 | M36: 0.4053879822 | N36: 8.176655331 | O36: 0.2026939911 | P36: 3.270662133 | Q36: 0.08107759644 | R36: 16.35331066 | S36: 0.4053879822 | T36: 15.53564513 | U36: 0.3851185831
A37: 23 | B37: 27425.69 | D37: 33431.91611 | E37: 828.7555524 | F37: 2785.993009 | G37: 69.0629627 | H37: 0 | I37: 0 | J37: 0 | K37: 0 | L37: 16.91898589 | M37: 0.4194107047 | N37: 8.459492943 | O37: 0.2097053523 | P37: 3.383797177 | Q37: 0.08388214094 | R37: 16.91898589 | S37: 0.4194107047 | T37: 16.07303659 | U37: 0.3984401694
A38: 24 | B38: 28342.68 | D38: 34549.72692 | E38: 856.4653586 | F38: 2879.14391 | G38: 71.37211322 | H38: 0 | I38: 0 | J38: 0 | K38: 0 | L38: 17.48467962 | M38: 0.4334338859 | N38: 8.742339808 | O38: 0.216716943 | P38: 3.496935923 | Q38: 0.08668677719 | R38: 17.48467962 | S38: 0.4334338859 | T38: 16.61044563 | U38: 0.4117621916
A39: 25 | B39: 28342.68 | D39: 34549.72692 | E39: 856.4653586 | F39: 2879.14391 | G39: 71.37211322 | H39: 0 | I39: 0 | J39: 0 | K39: 0 | L39: 17.48467962 | M39: 0.4334338859 | N39: 8.742339808 | O39: 0.216716943 | P39: 3.496935923 | Q39: 0.08668677719 | R39: 17.48467962 | S39: 0.4334338859 | T39: 16.61044563 | U39: 0.4117621916
A40: 26 | B40: 28342.68 | D40: 34549.72692 | E40: 856.4653586 | F40: 2879.14391 | G40: 71.37211322 | H40: 0 | I40: 0 | J40: 0 | K40: 0 | L40: 17.48467962 | M40: 0.4334338859 | N40: 8.742339808 | O40: 0.216716943 | P40: 3.496935923 | Q40: 0.08668677719 | R40: 17.48467962 | S40: 0.4334338859 | T40: 16.61044563 | U40: 0.4117621916
A41: 27 | B41: 28342.68 | D41: 34549.72692 | E41: 856.4653586 | F41: 2879.14391 | G41: 71.37211322 | H41: 0 | I41: 0 | J41: 0 | K41: 0 | L41: 17.48467962 | M41: 0.4334338859 | N41: 8.742339808 | O41: 0.216716943 | P41: 3.496935923 | Q41: 0.08668677719 | R41: 17.48467962 | S41: 0.4334338859 | T41: 16.61044563 | U41: 0.4117621916

Sheet LOG2
A1: L2 | E1: 622 | F1: LOGISTIEK PERSONEEL KLASSE 2 | Q1: Barema 8
E2: Personeel in dienst vanaf 1/11/1993
E3: 422 | F3: Electronica - technicus A2
E4: 172 | F4: Kopiist A2
E5: 623 | F5: Chauffeur loon ten laste van vervoer gehandicapten
A6: 20j. | T6: coëfficiënt: | U6: ='LOG4'!$U$4 -> 1.219
B8: JAARLOON | F8: MAANDLOON | H8: HAARDTOELAGE | J8: STANDPLAATS- | L8: UURLOON | R8: UURLOON MET
B9: 1 | J9: TOELAGE | L9: 38u | T9: 40u
B10: basis 01/01/2002 | D10: =Inhoud!$C$3 -> 2011-06-01 | F10: =D10 -> 2011-06-01 | L10: 1 | N10: 0.5 | P10: 0.2 | R10: HAARDTOELAGE
A12: 0 | B12: 17037.73 | D12: =B12*$U$6 -> 20768.99287 | E12: =D12/40.3399 -> 514.8498849 | F12: =B12/12*$U$6 -> 1730.749406 | G12: =F12/40.3399 -> 42.90415707 | H12: =((B12<19968.2)*913.03+(B12>19968.2)*(B12<20424.71)*(20424.71-B12+456.51)+(B12>20424.71)*(B12<22659.62)*456.51+(B12>22659.62)*(B12<23116.13)*(23116.13-B12))/12*$U$6 -> 92.74863083 | I12: =H12/40.3399 -> 2.299178502 | J12: =((B12<19968.2)*456.51+(B12>19968.2)*(B12<20196.46)*(20196.46-B12+228.26)+(B12>20196.46)*(B12<22659.62)*228.26+(B12>22659.62)*(B12<22887.88)*(22887.88-B12))/12*$U$6 -> 46.3738075 | K12: =J12/40.3399 -> 1.14957666 | L12: =D12/1976 -> 10.51062392 | M12: =L12/40.3399 -> 0.2605515612 | N12: =L12/2 -> 5.255311961 | O12: =N12/40.3399 -> 0.1302757806 | P12: =L12/5 -> 2.102124784 | Q12: =P12/40.3399 -> 0.05211031223 | R12: =(F12+H12)/1976*12 -> 11.07387472 | S12: =R12/40.3399 -> 0.2745141836 | T12: =D12/2080 -> 9.985092726 | U12: =T12/40.3399 -> 0.2475239831
A13: =+A12+1 -> 1 | B13: 17736.69 | D13: 21621.02511 | E13: 535.9712124 | F13: 1801.752092 | G13: 44.6642677 | H13: 92.74863083 | I13: 2.299178502 | J13: 46.3738075 | K13: 1.14957666 | L13: 10.94181433 | M13: 0.2712404921 | N13: 5.470907163 | O13: 0.135620246 | P13: 2.188362865 | Q13: 0.05424809842 | R13: 11.50506512 | S13: 0.2852031146 | T13: 10.39472361 | U13: 0.2576784675
A14: 2 | B14: 18435.65 | D14: 22473.05735 | E14: 557.0925399 | F14: 1872.754779 | G14: 46.42437832 | H14: 92.74863083 | I14: 2.299178502 | J14: 46.3738075 | K14: 1.14957666 | L14: 11.37300473 | M14: 0.281929423 | N14: 5.686502366 | O14: 0.1409647115 | P14: 2.274600946 | Q14: 0.0563858846 | R14: 11.93625553 | S14: 0.2958920455 | T14: 10.8043545 | U14: 0.2678329519
A15: 3 | B15: 19134.62 | D15: 23325.10178 | E15: 578.2141696 | F15: 1943.758482 | G15: 48.18451413 | H15: 92.74863083 | I15: 2.299178502 | J15: 46.3738075 | K15: 1.14957666 | L15: 11.80420131 | M15: 0.2926185069 | N15: 5.902100653 | O15: 0.1463092534 | P15: 2.360840261 | Q15: 0.05852370138 | R15: 12.3674521 | S15: 0.3065811294 | T15: 11.21399124 | U15: 0.2779875815
A16: 4 | B16: 19833.58 | D16: 24177.13402 | E16: 599.3354971 | F16: 2014.761168 | G16: 49.94462476 | H16: 92.74863083 | I16: 2.299178502 | J16: 46.3738075 | K16: 1.14957666 | L16: 12.23539171 | M16: 0.3033074378 | N16: 6.117695855 | O16: 0.1516537189 | P16: 2.447078342 | Q16: 0.06066148756 | R16: 12.79864251 | S16: 0.3172700603 | T16: 11.62362213 | U16: 0.2881420659
A17: 5 | B17: 19833.58 | D17: 24177.13402 | E17: 599.3354971 | F17: 2014.761168 | G17: 49.94462476 | H17: 92.74863083 | I17: 2.299178502 | J17: 46.3738075 | K17: 1.14957666 | L17: 12.23539171 | M17: 0.3033074378 | N17: 6.117695855 | O17: 0.1516537189 | P17: 2.447078342 | Q17: 0.06066148756 | R17: 12.79864251 | S17: 0.3172700603 | T17: 11.62362213 | U17: 0.2881420659
A18: 6 | B18: 20829.81 | D18: 25391.53839 | E18: 629.4397951 | F18: 2115.961533 | G18: 52.45331626 | H18: 46.3738075 | I18: 1.14957666 | J18: 23.18741167 | K18: 0.5748009208 | L18: 12.84996882 | M18: 0.3185424064 | N18: 6.42498441 | O18: 0.1592712032 | P18: 2.569993764 | Q18: 0.06370848128 | R18: 13.13159113 | S18: 0.3255236412 | T18: 12.20747038 | U18: 0.3026152861
A19: 7 | B19: 20829.81 | D19: 25391.53839 | E19: 629.4397951 | F19: 2115.961533 | G19: 52.45331626 | H19: 46.3738075 | I19: 1.14957666 | J19: 23.18741167 | K19: 0.5748009208 | L19: 12.84996882 | M19: 0.3185424064 | N19: 6.42498441 | O19: 0.1592712032 | P19: 2.569993764 | Q19: 0.06370848128 | R19: 13.13159113 | S19: 0.3255236412 | T19: 12.20747038 | U19: 0.3026152861
A20: 8 | B20: 21826.03 | D20: 26605.93057 | E20: 659.5437909 | F20: 2217.160881 | G20: 54.96198257 | H20: 46.3738075 | I20: 1.14957666 | J20: 23.18741167 | K20: 0.5748009208 | L20: 13.46453976 | M20: 0.3337772221 | N20: 6.732269881 | O20: 0.1668886111 | P20: 2.692907952 | Q20: 0.06675544442 | R20: 13.74616207 | S20: 0.3407584569 | T20: 12.79131277 | U20: 0.317088361
A21: 9 | B21: 21826.03 | D21: 26605.93057 | E21: 659.5437909 | F21: 2217.160881 | G21: 54.96198257 | H21: 46.3738075 | I21: 1.14957666 | J21: 23.18741167 | K21: 0.5748009208 | L21: 13.46453976 | M21: 0.3337772221 | N21: 6.732269881 | O21: 0.1668886111 | P21: 2.692907952 | Q21: 0.06675544442 | R21: 13.74616207 | S21: 0.3407584569 | T21: 12.79131277 | U21: 0.317088361
A22: 10 | B22: 22822.25 | D22: 27820.32275 | E22: 689.6477867 | F22: 2318.360229 | G22: 57.47064889 | H22: 29.85331 | I22: 0.7400442242 | J22: 6.666914167 | K22: 0.1652684852 | L22: 14.0791107 | M22: 0.3490120378 | N22: 7.039555352 | O22: 0.1745060189 | P22: 2.815822141 | Q22: 0.06980240756 | R22: 14.26040611 | S22: 0.3535062335 | T22: 13.37515517 | U22: 0.3315614359
A23: 11 | B23: 22822.25 | D23: 27820.32275 | E23: 689.6477867 | F23: 2318.360229 | G23: 57.47064889 | H23: 29.85331 | I23: 0.7400442242 | J23: 6.666914167 | K23: 0.1652684852 | L23: 14.0791107 | M23: 0.3490120378 | N23: 7.039555352 | O23: 0.1745060189 | P23: 2.815822141 | Q23: 0.06980240756 | R23: 14.26040611 | S23: 0.3535062335 | T23: 13.37515517 | U23: 0.3315614359
A24: 12 | B24: 23818.48 | D24: 29034.72712 | E24: 719.7520847 | F24: 2419.560593 | G24: 59.97934039 | H24: 0 | I24: 0 | J24: 0 | K24: 0 | L24: 14.69368781 | M24: 0.3642470064 | N24: 7.346843907 | O24: 0.1821235032 | P24: 2.938737563 | Q24: 0.07284940128 | R24: 14.69368781 | S24: 0.3642470064 | T24: 13.95900342 | U24: 0.3460346561
A25: 13 | B25: 23818.48 | D25: 29034.72712 | E25: 719.7520847 | F25: 2419.560593 | G25: 59.97934039 | H25: 0 | I25: 0 | J25: 0 | K25: 0 | L25: 14.69368781 | M25: 0.3642470064 | N25: 7.346843907 | O25: 0.1821235032 | P25: 2.938737563 | Q25: 0.07284940128 | R25: 14.69368781 | S25: 0.3642470064 | T25: 13.95900342 | U25: 0.3460346561
A26: 14 | B26: 24814.7 | D26: 30249.1193 | E26: 749.8560805 | F26: 2520.759942 | G26: 62.4880067 | H26: 0 | I26: 0 | J26: 0 | K26: 0 | L26: 15.30825876 | M26: 0.3794818221 | N26: 7.654129378 | O26: 0.189740911 | P26: 3.061651751 | Q26: 0.07589636442 | R26: 15.30825876 | S26: 0.3794818221 | T26: 14.54284582 | U26: 0.360507731
A27: 15 | B27: 24814.7 | D27: 30249.1193 | E27: 749.8560805 | F27: 2520.759942 | G27: 62.4880067 | H27: 0 | I27: 0 | J27: 0 | K27: 0 | L27: 15.30825876 | M27: 0.3794818221 | N27: 7.654129378 | O27: 0.189740911 | P27: 3.061651751 | Q27: 0.07589636442 | R27: 15.30825876 | S27: 0.3794818221 | T27: 14.54284582 | U27: 0.360507731
A28: 16 | B28: 25810.92 | D28: 31463.51148 | E28: 779.9600763 | F28: 2621.95929 | G28: 64.99667302 | H28: 0 | I28: 0 | J28: 0 | K28: 0 | L28: 15.9228297 | M28: 0.3947166378 | N28: 7.961414848 | O28: 0.1973583189 | P28: 3.184565939 | Q28: 0.07894332756 | R28: 15.9228297 | S28: 0.3947166378 | T28: 15.12668821 | U28: 0.3749808059
A29: 17 | B29: 25810.92 | D29: 31463.51148 | E29: 779.9600763 | F29: 2621.95929 | G29: 64.99667302 | H29: 0 | I29: 0 | J29: 0 | K29: 0 | L29: 15.9228297 | M29: 0.3947166378 | N29: 7.961414848 | O29: 0.1973583189 | P29: 3.184565939 | Q29: 0.07894332756 | R29: 15.9228297 | S29: 0.3947166378 | T29: 15.12668821 | U29: 0.3749808059
A30: 18 | B30: 26807.15 | D30: 32677.91585 | E30: 810.0643742 | F30: 2723.159654 | G30: 67.50536452 | H30: 0 | I30: 0 | J30: 0 | K30: 0 | L30: 16.53740681 | M30: 0.4099516064 | N30: 8.268703403 | O30: 0.2049758032 | P30: 3.307481361 | Q30: 0.08199032128 | R30: 16.53740681 | S30: 0.4099516064 | T30: 15.71053647 | U30: 0.3894540261
A31: 19 | B31: 26807.15 | D31: 32677.91585 | E31: 810.0643742 | F31: 2723.159654 | G31: 67.50536452 | H31: 0 | I31: 0 | J31: 0 | K31: 0 | L31: 16.53740681 | M31: 0.4099516064 | N31: 8.268703403 | O31: 0.2049758032 | P31: 3.307481361 | Q31: 0.08199032128 | R31: 16.53740681 | S31: 0.4099516064 | T31: 15.71053647 | U31: 0.3894540261
A32: 20 | B32: 27803.37 | D32: 33892.30803 | E32: 840.16837 | F32: 2824.359002 | G32: 70.01403084 | H32: 0 | I32: 0 | J32: 0 | K32: 0 | L32: 17.15197775 | M32: 0.4251864221 | N32: 8.575988874 | O32: 0.212593211 | P32: 3.43039555 | Q32: 0.08503728442 | R32: 17.15197775 | S32: 0.4251864221 | T32: 16.29437886 | U32: 0.403927101
A33: 21 | B33: 27803.37 | D33: 33892.30803 | E33: 840.16837 | F33: 2824.359002 | G33: 70.01403084 | H33: 0 | I33: 0 | J33: 0 | K33: 0 | L33: 17.15197775 | M33: 0.4251864221 | N33: 8.575988874 | O33: 0.212593211 | P33: 3.43039555 | Q33: 0.08503728442 | R33: 17.15197775 | S33: 0.4251864221 | T33: 16.29437886 | U33: 0.403927101
A34: 22 | B34: 28799.59 | D34: 35106.70021 | E34: 870.2723658 | F34: 2925.558351 | G34: 72.52269715 | H34: 0 | I34: 0 | J34: 0 | K34: 0 | L34: 17.76654869 | M34: 0.4404212378 | N34: 8.883274345 | O34: 0.2202106189 | P34: 3.553309738 | Q34: 0.08808424755 | R34: 17.76654869 | S34: 0.4404212378 | T34: 16.87822125 | U34: 0.4184001759
A35: 23 | B35: 29795.82 | D35: 36321.10458 | E35: 900.3766638 | F35: 3026.758715 | G35: 75.03138865 | H35: 0 | I35: 0 | J35: 0 | K35: 0 | L35: 18.3811258 | M35: 0.4556562064 | N35: 9.1905629 | O35: 0.2278281032 | P35: 3.67622516 | Q35: 0.09113124128 | R35: 18.3811258 | S35: 0.4556562064 | T35: 17.46206951 | U35: 0.4328733961
A36: 24 | B36: 30792.04 | D36: 37535.49676 | E36: 930.4806596 | F36: 3127.958063 | G36: 77.54005497 | H36: 0 | I36: 0 | J36: 0 | K36: 0 | L36: 18.99569674 | M36: 0.4708910221 | N36: 9.49784837 | O36: 0.235445511 | P36: 3.799139348 | Q36: 0.09417820441 | R36: 18.99569674 | S36: 0.4708910221 | T36: 18.0459119 | U36: 0.447346471
A37: 25 | B37: 30792.04 | D37: 37535.49676 | E37: 930.4806596 | F37: 3127.958063 | G37: 77.54005497 | H37: 0 | I37: 0 | J37: 0 | K37: 0 | L37: 18.99569674 | M37: 0.4708910221 | N37: 9.49784837 | O37: 0.235445511 | P37: 3.799139348 | Q37: 0.09417820441 | R37: 18.99569674 | S37: 0.4708910221 | T37: 18.0459119 | U37: 0.447346471
A38: 26 | B38: 30792.04 | D38: 37535.49676 | E38: 930.4806596 | F38: 3127.958063 | G38: 77.54005497 | H38: 0 | I38: 0 | J38: 0 | K38: 0 | L38: 18.99569674 | M38: 0.4708910221 | N38: 9.49784837 | O38: 0.235445511 | P38: 3.799139348 | Q38: 0.09417820441 | R38: 18.99569674 | S38: 0.4708910221 | T38: 18.0459119 | U38: 0.447346471
A39: 27 | B39: 30792.04 | D39: 37535.49676 | E39: 930.4806596 | F39: 3127.958063 | G39: 77.54005497 | H39: 0 | I39: 0 | J39: 0 | K39: 0 | L39: 18.99569674 | M39: 0.4708910221 | N39: 9.49784837 | O39: 0.235445511 | P39: 3.799139348 | Q39: 0.09417820441 | R39: 18.99569674 | S39: 0.4708910221 | T39: 18.0459119 | U39: 0.447346471

Sheet ADM1
A1: A1 | F1: ADMINISTRATIEF + LOGISTIEK PERSONEEL KLASSE 1 | Q1: Barema 9
C3: 010 | D3: Boekhouder klasse 1 | J3: 610 | K3: Logistiek personeel klasse 1
C4: 011 | D4: Econoom klasse 1 | J4: 410 | K4: Technicus - electronica A1
C5: 012 | D5: Opsteller klasse 1 | J5: 611 | K5: Chauffeur loon ten laste van vervoer gehandicapten
A6: 21j. | T6: coëfficiënt: | U6: ='LOG4'!$U$4 -> 1.219
B8: JAARLOON | F8: MAANDLOON | H8: HAARDTOELAGE | J8: STANDPLAATS- | L8: UURLOON | R8: UURLOON MET
B9: 1 | J9: TOELAGE | L9: 38u | T9: 40u
B10: basis 01/01/2002 | D10: =Inhoud!$C$3 -> 2011-06-01 | F10: =D10 -> 2011-06-01 | L10: 1 | N10: 0.5 | P10: 0.2 | R10: HAARDTOELAGE
A12: 0 | B12: 19981.72 | D12: =B12*$U$6 -> 24357.71668 | E12: =D12/40.3399 -> 603.8120243 | F12: =B12/12*$U$6 -> 2029.809723 | G12: =F12/40.3399 -> 50.31766869 | H12: =((B12<19968.2)*913.03+(B12>19968.2)*(B12<20424.71)*(20424.71-B12+456.51)+(B12>20424.71)*(B12<22659.62)*456.51+(B12>22659.62)*(B12<23116.13)*(23116.13-B12))/12*$U$6 -> 91.37420833 | I12: =H12/40.3399 -> 2.265107458 | J12: =((B12<19968.2)*456.51+(B12>19968.2)*(B12<20196.46)*(20196.46-B12+228.26)+(B12>20196.46)*(B12<22659.62)*228.26+(B12>22659.62)*(B12<22887.88)*(22887.88-B12))/12*$U$6 -> 45.00141667 | K12: =J12/40.3399 -> 1.11555598 | L12: =D12/1976 -> 12.3267797 | M12: =L12/40.3399 -> 0.3055728868 | N12: =L12/2 -> 6.163389848 | O12: =N12/40.3399 -> 0.1527864434 | P12: =L12/5 -> 2.465355939 | Q12: =P12/40.3399 -> 0.06111457736 | R12: =(F12+H12)/1976*12 -> 12.8816838 | S12: =R12/40.3399 -> 0.3193286001 | T12: =D12/2080 -> 11.71044071 | U12: =T12/40.3399 -> 0.2902942425
A13: =+A12+1 -> 1 | B13: 20362.33 | D13: 24821.68027 | E13: 615.3133813 | F13: 2068.473356 | G13: 51.27611511 | H13: 52.71057583 | I13: 1.306661044 | J13: 23.18741167 | K13: 0.5748009208 | L13: 12.56157908 | M13: 0.3113934116 | N13: 6.280789542 | O13: 0.1556967058 | P13: 2.512315817 | Q13: 0.06227868232 | R13: 12.8816838 | S13: 0.3193286001 | T13: 11.93350013 | U13: 0.295823741
A14: 2 | B14: 20949.61 | D14: 25537.57459 | E14: 633.0599379 | F14: 2128.131216 | G14: 52.75499483 | H14: 46.3738075 | I14: 1.14957666 | J14: 23.18741167 | K14: 0.5748009208 | L14: 12.92387378 | M14: 0.3203744625 | N14: 6.46193689 | O14: 0.1601872313 | P14: 2.584774756 | Q14: 0.0640748925 | R14: 13.20549609 | S14: 0.3273556973 | T14: 12.27768009 | U14: 0.3043557394
A15: 3 | B15: 21743.88 | D15: 26505.78972 | E15: 657.0613641 | F15: 2208.81581 | G15: 54.75511367 | H15: 46.3738075 | I15: 1.14957666 | J15: 23.18741167 | K15: 0.5748009208 | L15: 13.41386119 | M15: 0.3325209332 | N15: 6.706930597 | O15: 0.1662604666 | P15: 2.682772239 | Q15: 0.06650418665 | R15: 13.69548351 | S15: 0.339502168 | T15: 12.74316813 | U15: 0.3158948866
A16: 4 | B16: 22538.16 | D16: 27474.01704 | E16: 681.0630924 | F16: 2289.50142 | G16: 56.7552577 | H16: 46.3738075 | I16: 1.14957666 | J16: 23.18741167 | K16: 0.5748009208 | L16: 13.90385478 | M16: 0.3446675569 | N16: 6.951927389 | O16: 0.1723337784 | P16: 2.780770955 | Q16: 0.06893351137 | R16: 14.18547709 | S16: 0.3516487916 | T16: 13.20866204 | U16: 0.327434179
A17: 5 | B17: 22538.16 | D17: 27474.01704 | E17: 681.0630924 | F17: 2289.50142 | G17: 56.7552577 | H17: 46.3738075 | I17: 1.14957666 | J17: 23.18741167 | K17: 0.5748009208 | L17: 13.90385478 | M17: 0.3446675569 | N17: 6.951927389 | O17: 0.1723337784 | P17: 2.780770955 | Q17: 0.06893351137 | R17: 14.18547709 | S17: 0.3516487916 | T17: 13.20866204 | U17: 0.327434179
A18: 6 | B18: 23670.23 | D18: 28854.01037 | E18: 715.2722334 | F18: 2404.500864 | G18: 59.60601945 | H18: 0 | I18: 0 | J18: 0 | K18: 0 | L18: 14.60223197 | M18: 0.3619798752 | N18: 7.301115984 | O18: 0.1809899376 | P18: 2.920446394 | Q18: 0.07239597505 | R18: 14.60223197 | S18: 0.3619798752 | T18: 13.87212037 | U18: 0.3438808815
A19: 7 | B19: 24928.32 | D19: 30387.62208 | E19: 753.2894747 | F19: 2532.30184 | G19: 62.77412289 | H19: 0 | I19: 0 | J19: 0 | K19: 0 | L19: 15.37835126 | M19: 0.3812193698 | N19: 7.689175628 | O19: 0.1906096849 | P19: 3.075670251 | Q19: 0.07624387396 | R19: 15.37835126 | S19: 0.3812193698 | T19: 14.60943369 | U19: 0.3621584013
A20: 8 | B20: 24928.32 | D20: 30387.62208 | E20: 753.2894747 | F20: 2532.30184 | G20: 62.77412289 | H20: 0 | I20: 0 | J20: 0 | K20: 0 | L20: 15.37835126 | M20: 0.3812193698 | N20: 7.689175628 | O20: 0.1906096849 | P20: 3.075670251 | Q20: 0.07624387396 | R20: 15.37835126 | S20: 0.3812193698 | T20: 14.60943369 | U20: 0.3621584013
A21: 9 | B21: 25580.99 | D21: 31183.22681 | E21: 773.0120008 | F21: 2598.602234 | G21: 64.41766673 | H21: 0 | I21: 0 | J21: 0 | K21: 0 | L21: 15.78098523 | M21: 0.3912004052 | N21: 7.890492614 | O21: 0.1956002026 | P21: 3.156197046 | Q21: 0.07824008105 | R21: 15.78098523 | S21: 0.3912004052 | T21: 14.99193597 | U21: 0.371640385
A22: 10 | B22: 25934.38 | D22: 31614.00922 | E22: 783.6908178 | F22: 2634.500768 | G22: 65.30756815 | H22: 0 | I22: 0 | J22: 0 | K22: 0 | L22: 15.99899252 | M22: 0.3966046649 | N22: 7.99949626 | O22: 0.1983023324 | P22: 3.199798504 | Q22: 0.07932093297 | R22: 15.99899252 | S22: 0.3966046649 | T22: 15.19904289 | U22: 0.3767744316
A23: 11 | B23: 26233.28 | D23: 31978.36832 | E23: 792.7230439 | F23: 2664.864027 | G23: 66.06025366 | H23: 0 | I23: 0 | J23: 0 | K23: 0 | L23: 16.18338478 | M23: 0.4011756295 | N23: 8.091692389 | O23: 0.2005878148 | P23: 3.236676955 | Q23: 0.0802351259 | R23: 16.18338478 | S23: 0.4011756295 | T23: 15.37421554 | U23: 0.381116848
A24: 12 | B24: 27066.45 | D24: 32994.00255 | E24: 817.8999588 | F24: 2749.500213 | G24: 68.1583299 | H24: 0 | I24: 0 | J24: 0 | K24: 0 | L24: 16.69736971 | M24: 0.4139169832 | N24: 8.348684856 | O24: 0.2069584916 | P24: 3.339473942 | Q24: 0.08278339664 | R24: 16.69736971 | S24: 0.4139169832 | T24: 15.86250123 | U24: 0.3932211341
A25: 13 | B25: 27066.45 | D25: 32994.00255 | E25: 817.8999588 | F25: 2749.500213 | G25: 68.1583299 | H25: 0 | I25: 0 | J25: 0 | K25: 0 | L25: 16.69736971 | M25: 0.4139169832 | N25: 8.348684856 | O25: 0.2069584916 | P25: 3.339473942 | Q25: 0.08278339664 | R25: 16.69736971 | S25: 0.4139169832 | T25: 15.86250123 | U25: 0.3932211341
A26: 14 | B26: 28198.52 | D26: 34373.99588 | E26: 852.1090999 | F26: 2864.499657 | G26: 71.00909166 | H26: 0 | I26: 0 | J26: 0 | K26: 0 | L26: 17.3957469 | M26: 0.4312293016 | N26: 8.697873451 | O26: 0.2156146508 | P26: 3.479149381 | Q26: 0.08624586032 | R26: 17.3957469 | S26: 0.4312293016 | T26: 16.52595956 | U26: 0.4096678365
A27: 15 | B27: 28198.52 | D27: 34373.99588 | E27: 852.1090999 | F27: 2864.499657 | G27: 71.00909166 | H27: 0 | I27: 0 | J27: 0 | K27: 0 | L27: 17.3957469 | M27: 0.4312293016 | N27: 8.697873451 | O27: 0.2156146508 | P27: 3.479149381 | Q27: 0.08624586032 | R27: 17.3957469 | S27: 0.4312293016 | T27: 16.52595956 | U27: 0.4096678365
A28: 16 | B28: 29784.88 | D28: 36307.76872 | E28: 900.0460765 | F28: 3025.647393 | G28: 75.00383971 | H28: 0 | I28: 0 | J28: 0 | K28: 0 | L28: 18.37437688 | M28: 0.4554889051 | N28: 9.187188441 | O28: 0.2277444525 | P28: 3.674875377 | Q28: 0.09109778102 | R28: 18.37437688 | S28: 0.4554889051 | T28: 17.45565804 | U28: 0.4327144598
A29: 17 | B29: 30437.17 | D29: 37102.91023 | E29: 919.7571196 | F29: 3091.909186 | G29: 76.64642664 | H29: 0 | I29: 0 | J29: 0 | K29: 0 | L29: 18.77677643 | M29: 0.4654641294 | N29: 9.388388216 | O29: 0.2327320647 | P29: 3.755355286 | Q29: 0.09309282587 | R29: 18.77677643 | S29: 0.4654641294 | T29: 17.83793761 | U29: 0.4421909229
A30: 18 | B30: 31371.14 | D30: 38241.41966 | E30: 947.9800312 | F30: 3186.784972 | G30: 78.99833593 | H30: 0 | I30: 0 | J30: 0 | K30: 0 | L30: 19.35294517 | M30: 0.4797469793 | N30: 9.676472586 | O30: 0.2398734897 | P30: 3.870589034 | Q30: 0.09594939587 | R30: 19.35294517 | S30: 0.4797469793 | T30: 18.38529791 | U30: 0.4557596304
A31: 19 | B31: 32023.43 | D31: 39036.56117 | E31: 967.6910743 | F31: 3253.046764 | G31: 80.64092286 | H31: 0 | I31: 0 | J31: 0 | K31: 0 | L31: 19.75534472 | M31: 0.4897222036 | N31: 9.877672361 | O31: 0.2448611018 | P31: 3.951068944 | Q31: 0.09794444072 | R31: 19.75534472 | S31: 0.4897222036 | T31: 18.76757749 | U31: 0.4652360934
A32: 20 | B32: 32023.43 | D32: 39036.56117 | E32: 967.6910743 | F32: 3253.046764 | G32: 80.64092286 | H32: 0 | I32: 0 | J32: 0 | K32: 0 | L32: 19.75534472 | M32: 0.4897222036 | N32: 9.877672361 | O32: 0.2448611018 | P32: 3.951068944 | Q32: 0.09794444072 | R32: 19.75534472 | S32: 0.4897222036 | T32: 18.76757749 | U32: 0.4652360934
A33: 21 | B33: 32675.72 | D33: 39831.70268 | E33: 987.4021175 | F33: 3319.308557 | G33: 82.28350979 | H33: 0 | I33: 0 | J33: 0 | K33: 0 | L33: 20.15774427 | M33: 0.4996974279 | N33: 10.07887214 | O33: 0.2498487139 | P33: 4.031548854 | Q33: 0.09993948558 | R33: 20.15774427 | S33: 0.4996974279 | T33: 19.14985706 | U33: 0.4747125565
A34: 22 | B34: 32726.81 | D34: 39893.98139 | E34: 988.9459664 | F34: 3324.498449 | G34: 82.41216387 | H34: 0 | I34: 0 | J34: 0 | K34: 0 | L34: 20.18926184 | M34: 0.5004787279 | N34: 10.09463092 | O34: 0.250239364 | P34: 4.037852367 | Q34: 0.1000957456 | R34: 20.18926184 | S34: 0.5004787279 | T34: 19.17979875 | U34: 0.4754547915
A35: 23 | B35: 33858.88 | D35: 41273.97472 | E35: 1023.155107 | F35: 3439.497893 | G35: 85.26292562 | H35: 0 | I35: 0 | J35: 0 | K35: 0 | L35: 20.88763903 | M35: 0.5177910463 | N35: 10.44381951 | O35: 0.2588955231 | P35: 4.177527806 | Q35: 0.1035582093 | R35: 20.88763903 | S35: 0.5177910463 | T35: 19.84325708 | U35: 0.491901494
A36: 24 | B36: 34990.96 | D36: 42653.98024 | E36: 1057.364551 | F36: 3554.498353 | G36: 88.11371256 | H36: 0 | I36: 0 | J36: 0 | K36: 0 | L36: 21.58602239 | M36: 0.5351035176 | N36: 10.79301119 | O36: 0.2675517588 | P36: 4.317204478 | Q36: 0.1070207035 | R36: 21.58602239 | S36: 0.5351035176 | T36: 20.50672127 | U36: 0.5083483417
A37: 25 | B37: 34990.96 | D37: 42653.98024 | E37: 1057.364551 | F37: 3554.498353 | G37: 88.11371256 | H37: 0 | I37: 0 | J37: 0 | K37: 0 | L37: 21.58602239 | M37: 0.5351035176 | N37: 10.79301119 | O37: 0.2675517588 | P37: 4.317204478 | Q37: 0.1070207035 | R37: 21.58602239 | S37: 0.5351035176 | T37: 20.50672127 | U37: 0.5083483417
A38: 26 | B38: 34990.96 | D38: 42653.98024 | E38: 1057.364551 | F38: 3554.498353 | G38: 88.11371256 | H38: 0 | I38: 0 | J38: 0 | K38: 0 | L38: 21.58602239 | M38: 0.5351035176 | N38: 10.79301119 | O38: 0.2675517588 | P38: 4.317204478 | Q38: 0.1070207035 | R38: 21.58602239 | S38: 0.5351035176 | T38: 20.50672127 | U38: 0.5083483417
A39: 27 | B39: 34990.96 | D39: 42653.98024 | E39: 1057.364551 | F39: 3554.498353 | G39: 88.11371256 | H39: 0 | I39: 0 | J39: 0 | K39: 0 | L39: 21.58602239 | M39: 0.5351035176 | N39: 10.79301119 | O39: 0.2675517588 | P39: 4.317204478 | Q39: 0.1070207035 | R39: 21.58602239 | S39: 0.5351035176 | T39: 20.50672127 | U39: 0.5083483417

Sheet ADM2
A1: A2 | F1: ADMINISTRATIEF + LOGISTIEK PERSONEEL KLASSE 2 | Q1: Barema 10
C3: 260 | D3: Opsteller | M3: 420 | N3: Electronica - technicus A2
C4: 620 | D4: Logistiek personeel klasse 2 (Barema voor de personeelsleden in dienst vóór 1/11/1993) | M4: 170 | N4: Kopiist A2
M5: 621 | N5: Chauffeur loon ten laste van vervoer gehandicapten
A6: 20j. | T6: coëfficiënt: | U6: ='LOG4'!$U$4 -> 1.219
B8: JAARLOON | F8: MAANDLOON | H8: HAARDTOELAGE | J8: STANDPLAATS- | L8: UURLOON | R8: UURLOON MET
B9: 1 | J9: TOELAGE | L9: 38u | T9: 40u
B10: basis 01/01/2002 | D10: =Inhoud!$C$3 -> 2011-06-01 | F10: =D10 -> 2011-06-01 | L10: 1 | N10: 0.5 | P10: 0.2 | R10: HAARDTOELAGE
A12: 0 | B12: 17037.73 | D12: =B12*$U$6 -> 20768.99287 | E12: =D12/40.3399 -> 514.8498849 | F12: =B12/12*$U$6 -> 1730.749406 | G12: =F12/40.3399 -> 42.90415707 | H12: =((B12<19968.2)*913.03+(B12>19968.2)*(B12<20424.71)*(20424.71-B12+456.51)+(B12>20424.71)*(B12<22659.62)*456.51+(B12>22659.62)*(B12<23116.13)*(23116.13-B12))/12*$U$6 -> 92.74863083 | I12: =H12/40.3399 -> 2.299178502 | J12: =((B12<19968.2)*456.51+(B12>19968.2)*(B12<20196.46)*(20196.46-B12+228.26)+(B12>20196.46)*(B12<22659.62)*228.26+(B12>22659.62)*(B12<22887.88)*(22887.88-B12))/12*$U$6 -> 46.3738075 | K12: =J12/40.3399 -> 1.14957666 | L12: =D12/1976 -> 10.51062392 | M12: =L12/40.3399 -> 0.2605515612 | N12: =L12/2 -> 5.255311961 | O12: =N12/40.3399 -> 0.1302757806 | P12: =L12/5 -> 2.102124784 | Q12: =P12/40.3399 -> 0.05211031223 | R12: =(F12+H12)/1976*12 -> 11.07387472 | S12: =R12/40.3399 -> 0.2745141836 | T12: =D12/2080 -> 9.985092726 | U12: =T12/40.3399 -> 0.2475239831
A13: =+A12+1 -> 1 | B13: 17736.69 | D13: 21621.02511 | E13: 535.9712124 | F13: 1801.752092 | G13: 44.6642677 | H13: 92.74863083 | I13: 2.299178502 | J13: 46.3738075 | K13: 1.14957666 | L13: 10.94181433 | M13: 0.2712404921 | N13: 5.470907163 | O13: 0.135620246 | P13: 2.188362865 | Q13: 0.05424809842 | R13: 11.50506512 | S13: 0.2852031146 | T13: 10.39472361 | U13: 0.2576784675
A14: 2 | B14: 18435.65 | D14: 22473.05735 | E14: 557.0925399 | F14: 1872.754779 | G14: 46.42437832 | H14: 92.74863083 | I14: 2.299178502 | J14: 46.3738075 | K14: 1.14957666 | L14: 11.37300473 | M14: 0.281929423 | N14: 5.686502366 | O14: 0.1409647115 | P14: 2.274600946 | Q14: 0.0563858846 | R14: 11.93625553 | S14: 0.2958920455 | T14: 10.8043545 | U14: 0.2678329519
A15: 3 | B15: 19134.62 | D15: 23325.10178 | E15: 578.2141696 | F15: 1943.758482 | G15: 48.18451413 | H15: 92.74863083 | I15: 2.299178502 | J15: 46.3738075 | K15: 1.14957666 | L15: 11.80420131 | M15: 0.2926185069 | N15: 5.902100653 | O15: 0.1463092534 | P15: 2.360840261 | Q15: 0.05852370138 | R15: 12.3674521 | S15: 0.3065811294 | T15: 11.21399124 | U15: 0.2779875815
A16: 4 | B16: 19833.58 | D16: 24177.13402 | E16: 599.3354971 | F16: 2014.761168 | G16: 49.94462476 | H16: 92.74863083 | I16: 2.299178502 | J16: 46.3738075 | K16: 1.14957666 | L16: 12.23539171 | M16: 0.3033074378 | N16: 6.117695855 | O16: 0.1516537189 | P16: 2.447078342 | Q16: 0.06066148756 | R16: 12.79864251 | S16: 0.3172700603 | T16: 11.62362213 | U16: 0.2881420659
A17: 5 | B17: 19833.58 | D17: 24177.13402 | E17: 599.3354971 | F17: 2014.761168 | G17: 49.94462476 | H17: 92.74863083 | I17: 2.299178502 | J17: 46.3738075 | K17: 1.14957666 | L17: 12.23539171 | M17: 0.3033074378 | N17: 6.117695855 | O17: 0.1516537189 | P17: 2.447078342 | Q17: 0.06066148756 | R17: 12.79864251 | S17: 0.3172700603 | T17: 11.62362213 | U17: 0.2881420659
A18: 6 | B18: 20829.81 | D18: 25391.53839 | E18: 629.4397951 | F18: 2115.961533 | G18: 52.45331626 | H18: 46.3738075 | I18: 1.14957666 | J18: 23.18741167 | K18: 0.5748009208 | L18: 12.84996882 | M18: 0.3185424064 | N18: 6.42498441 | O18: 0.1592712032 | P18: 2.569993764 | Q18: 0.06370848128 | R18: 13.13159113 | S18: 0.3255236412 | T18: 12.20747038 | U18: 0.3026152861
A19: 7 | B19: 20829.81 | D19: 25391.53839 | E19: 629.4397951 | F19: 2115.961533 | G19: 52.45331626 | H19: 46.3738075 | I19: 1.14957666 | J19: 23.18741167 | K19: 0.5748009208 | L19: 12.84996882 | M19: 0.3185424064 | N19: 6.42498441 | O19: 0.1592712032 | P19: 2.569993764 | Q19: 0.06370848128 | R19: 13.13159113 | S19: 0.3255236412 | T19: 12.20747038 | U19: 0.3026152861
A20: 8 | B20: 21826.03 | D20: 26605.93057 | E20: 659.5437909 | F20: 2217.160881 | G20: 54.96198257 | H20: 46.3738075 | I20: 1.14957666 | J20: 23.18741167 | K20: 0.5748009208 | L20: 13.46453976 | M20: 0.3337772221 | N20: 6.732269881 | O20: 0.1668886111 | P20: 2.692907952 | Q20: 0.06675544442 | R20: 13.74616207 | S20: 0.3407584569 | T20: 12.79131277 | U20: 0.317088361
A21: 9 | B21: 21826.03 | D21: 26605.93057 | E21: 659.5437909 | F21: 2217.160881 | G21: 54.96198257 | H21: 46.3738075 | I21: 1.14957666 | J21: 23.18741167 | K21: 0.5748009208 | L21: 13.46453976 | M21: 0.3337772221 | N21: 6.732269881 | O21: 0.1668886111 | P21: 2.692907952 | Q21: 0.06675544442 | R21: 13.74616207 | S21: 0.3407584569 | T21: 12.79131277 | U21: 0.317088361
A22: 10 | B22: 22822.25 | D22: 27820.32275 | E22: 689.6477867 | F22: 2318.360229 | G22: 57.47064889 | H22: 29.85331 | I22: 0.7400442242 | J22: 6.666914167 | K22: 0.1652684852 | L22: 14.0791107 | M22: 0.3490120378 | N22: 7.039555352 | O22: 0.1745060189 | P22: 2.815822141 | Q22: 0.06980240756 | R22: 14.26040611 | S22: 0.3535062335 | T22: 13.37515517 | U22: 0.3315614359
A23: 11 | B23: 22822.25 | D23: 27820.32275 | E23: 689.6477867 | F23: 2318.360229 | G23: 57.47064889 | H23: 29.85331 | I23: 0.7400442242 | J23: 6.666914167 | K23: 0.1652684852 | L23: 14.0791107 | M23: 0.3490120378 | N23: 7.039555352 | O23: 0.1745060189 | P23: 2.815822141 | Q23: 0.06980240756 | R23: 14.26040611 | S23: 0.3535062335 | T23: 13.37515517 | U23: 0.3315614359
A24: 12 | B24: 23818.48 | D24: 29034.72712 | E24: 719.7520847 | F24: 2419.560593 | G24: 59.97934039 | H24: 0 | I24: 0 | J24: 0 | K24: 0 | L24: 14.69368781 | M24: 0.3642470064 | N24: 7.346843907 | O24: 0.1821235032 | P24: 2.938737563 | Q24: 0.07284940128 | R24: 14.69368781 | S24: 0.3642470064 | T24: 13.95900342 | U24: 0.3460346561
A25: 13 | B25: 23818.48 | D25: 29034.72712 | E25: 719.7520847 | F25: 2419.560593 | G25: 59.97934039 | H25: 0 | I25: 0 | J25: 0 | K25: 0 | L25: 14.69368781 | M25: 0.3642470064 | N25: 7.346843907 | O25: 0.1821235032 | P25: 2.938737563 | Q25: 0.07284940128 | R25: 14.69368781 | S25: 0.3642470064 | T25: 13.95900342 | U25: 0.3460346561
A26: 14 | B26: 24814.7 | D26: 30249.1193 | E26: 749.8560805 | F26: 2520.759942 | G26: 62.4880067 | H26: 0 | I26: 0 | J26: 0 | K26: 0 | L26: 15.30825876 | M26: 0.3794818221 | N26: 7.654129378 | O26: 0.189740911 | P26: 3.061651751 | Q26: 0.07589636442 | R26: 15.30825876 | S26: 0.3794818221 | T26: 14.54284582 | U26: 0.360507731
A27: 15 | B27: 24814.7 | D27: 30249.1193 | E27: 749.8560805 | F27: 2520.759942 | G27: 62.4880067 | H27: 0 | I27: 0 | J27: 0 | K27: 0 | L27: 15.30825876 | M27: 0.3794818221 | N27: 7.654129378 | O27: 0.189740911 | P27: 3.061651751 | Q27: 0.07589636442 | R27: 15.30825876 | S27: 0.3794818221 | T27: 14.54284582 | U27: 0.360507731
A28: 16 | B28: 25810.92 | D28: 31463.51148 | E28: 779.9600763 | F28: 2621.95929 | G28: 64.99667302 | H28: 0 | I28: 0 | J28: 0 | K28: 0 | L28: 15.9228297 | M28: 0.3947166378 | N28: 7.961414848 | O28: 0.1973583189 | P28: 3.184565939 | Q28: 0.07894332756 | R28: 15.9228297 | S28: 0.3947166378 | T28: 15.12668821 | U28: 0.3749808059
A29: 17 | B29: 25810.92 | D29: 31463.51148 | E29: 779.9600763 | F29: 2621.95929 | G29: 64.99667302 | H29: 0 | I29: 0 | J29: 0 | K29: 0 | L29: 15.9228297 | M29: 0.3947166378 | N29: 7.961414848 | O29: 0.1973583189 | P29: 3.184565939 | Q29: 0.07894332756 | R29: 15.9228297 | S29: 0.3947166378 | T29: 15.12668821 | U29: 0.3749808059
A30: 18 | B30: 26807.15 | D30: 32677.91585 | E30: 810.0643742 | F30: 2723.159654 | G30: 67.50536452 | H30: 0 | I30: 0 | J30: 0 | K30: 0 | L30: 16.53740681 | M30: 0.4099516064 | N30: 8.268703403 | O30: 0.2049758032 | P30: 3.307481361 | Q30: 0.08199032128 | R30: 16.53740681 | S30: 0.4099516064 | T30: 15.71053647 | U30: 0.3894540261
A31: 19 | B31: 26807.15 | D31: 32677.91585 | E31: 810.0643742 | F31: 2723.159654 | G31: 67.50536452 | H31: 0 | I31: 0 | J31: 0 | K31: 0 | L31: 16.53740681 | M31: 0.4099516064 | N31: 8.268703403 | O31: 0.2049758032 | P31: 3.307481361 | Q31: 0.08199032128 | R31: 16.53740681 | S31: 0.4099516064 | T31: 15.71053647 | U31: 0.3894540261
A32: 20 | B32: 27803.37 | D32: 33892.30803 | E32: 840.16837 | F32: 2824.359002 | G32: 70.01403084 | H32: 0 | I32: 0 | J32: 0 | K32: 0 | L32: 17.15197775 | M32: 0.4251864221 | N32: 8.575988874 | O32: 0.212593211 | P32: 3.43039555 | Q32: 0.08503728442 | R32: 17.15197775 | S32: 0.4251864221 | T32: 16.29437886 | U32: 0.403927101
A33: 21 | B33: 27803.37 | D33: 33892.30803 | E33: 840.16837 | F33: 2824.359002 | G33: 70.01403084 | H33: 0 | I33: 0 | J33: 0 | K33: 0 | L33: 17.15197775 | M33: 0.4251864221 | N33: 8.575988874 | O33: 0.212593211 | P33: 3.43039555 | Q33: 0.08503728442 | R33: 17.15197775 | S33: 0.4251864221 | T33: 16.29437886 | U33: 0.403927101
A34: 22 | B34: 28799.59 | D34: 35106.70021 | E34: 870.2723658 | F34: 2925.558351 | G34: 72.52269715 | H34: 0 | I34: 0 | J34: 0 | K34: 0 | L34: 17.76654869 | M34: 0.4404212378 | N34: 8.883274345 | O34: 0.2202106189 | P34: 3.553309738 | Q34: 0.08808424755 | R34: 17.76654869 | S34: 0.4404212378 | T34: 16.87822125 | U34: 0.4184001759
A35: 23 | B35: 29795.82 | D35: 36321.10458 | E35: 900.3766638 | F35: 3026.758715 | G35: 75.03138865 | H35: 0 | I35: 0 | J35: 0 | K35: 0 | L35: 18.3811258 | M35: 0.4556562064 | N35: 9.1905629 | O35: 0.2278281032 | P35: 3.67622516 | Q35: 0.09113124128 | R35: 18.3811258 | S35: 0.4556562064 | T35: 17.46206951 | U35: 0.4328733961
A36: 24 | B36: 30792.04 | D36: 37535.49676 | E36: 930.4806596 | F36: 3127.958063 | G36: 77.54005497 | H36: 0 | I36: 0 | J36: 0 | K36: 0 | L36: 18.99569674 | M36: 0.4708910221 | N36: 9.49784837 | O36: 0.235445511 | P36: 3.799139348 | Q36: 0.09417820441 | R36: 18.99569674 | S36: 0.4708910221 | T36: 18.0459119 | U36: 0.447346471
A37: 25 | B37: 30792.04 | D37: 37535.49676 | E37: 930.4806596 | F37: 3127.958063 | G37: 77.54005497 | H37: 0 | I37: 0 | J37: 0 | K37: 0 | L37: 18.99569674 | M37: 0.4708910221 | N37: 9.49784837 | O37: 0.235445511 | P37: 3.799139348 | Q37: 0.09417820441 | R37: 18.99569674 | S37: 0.4708910221 | T37: 18.0459119 | U37: 0.447346471
A38: 26 | B38: 30792.04 | D38: 37535.49676 | E38: 930.4806596 | F38: 3127.958063 | G38: 77.54005497 | H38: 0 | I38: 0 | J38: 0 | K38: 0 | L38: 18.99569674 | M38: 0.4708910221 | N38: 9.49784837 | O38: 0.235445511 | P38: 3.799139348 | Q38: 0.09417820441 | R38: 18.99569674 | S38: 0.4708910221 | T38: 18.0459119 | U38: 0.447346471
A39: 27 | B39: 30792.04 | D39: 37535.49676 | E39: 930.4806596 | F39: 3127.958063 | G39: 77.54005497 | H39: 0 | I39: 0 | J39: 0 | K39: 0 | L39: 18.99569674 | M39: 0.4708910221 | N39: 9.49784837 | O39: 0.235445511 | P39: 3.799139348 | Q39: 0.09417820441 | R39: 18.99569674 | S39: 0.4708910221 | T39: 18.0459119 | U39: 0.447346471

Sheet ADM3
A1: A3 | E1: 130 | F1: ADMINISTRATIEF PERSONEEL KLASSE 3 | Q1: Barema 12
E3: 130 | F3: Klerk
A4: 18j. | T4: coëfficiënt: | U4: ='LOG4'!$U$4 -> 1.219
B6: JAARLOON | F6: MAANDLOON | H6: HAARDTOELAGE | J6: STANDPLAATS- | L6: UURLOON | R6: UURLOON MET
B7: 1 | J7: TOELAGE | L7: 38u | T7: 40u
B8: basis 01/01/2002 | D8: =Inhoud!$C$3 -> 2011-06-01 | F8: =D8 -> 2011-06-01 | L8: 1 | N8: 0.5 | P8: 0.2 | R8: HAARDTOELAGE
A10: 0 | B10: 15682.44 | D10: =B10*$U$4 -> 19116.89436 | E10: =D10/40.3399 -> 473.8954326 | F10: =B10/12*$U$4 -> 1593.07453 | G10: =F10/40.3399 -> 39.49128605 | H10: =((B10<19968.2)*913.03+(B10>19968.2)*(B10<20424.71)*(20424.71-B10+456.51)+(B10>20424.71)*(B10<22659.62)*456.51+(B10>22659.62)*(B10<23116.13)*(23116.13-B10))/12*$U$4 -> 92.74863083 | I10: =H10/40.3399 -> 2.299178502 | J10: =((B10<19968.2)*456.51+(B10>19968.2)*(B10<20196.46)*(20196.46-B10+228.26)+(B10>20196.46)*(B10<22659.62)*228.26+(B10>22659.62)*(B10<22887.88)*(22887.88-B10))/12*$U$4 -> 46.3738075 | K10: =J10/40.3399 -> 1.14957666 | L10: =D10/1976 -> 9.67454168 | M10: =L10/40.3399 -> 0.2398256238 | N10: =L10/2 -> 4.83727084 | O10: =N10/40.3399 -> 0.1199128119 | P10: =L10/5 -> 1.934908336 | Q10: =P10/40.3399 -> 0.04796512475 | R10: =(F10+H10)/1976*12 -> 10.23779247 | S10: =R10/40.3399 -> 0.2537882462 | T10: =D10/2080 -> 9.190814596 | U10: =T10/40.3399 -> 0.2278343426
A11: =+A10+1 -> 1 | B11: 16325.8 | D11: 19901.1502 | E11: 493.336627 | F11: 1658.429183 | G11: 41.11138558 | H11: 92.74863083 | I11: 2.299178502 | J11: 46.3738075 | K11: 1.14957666 | L11: 10.07143229 | M11: 0.2496642849 | N11: 5.035716144 | O11: 0.1248321425 | P11: 2.014286457 | Q11: 0.04993285699 | R11: 10.63468308 | S11: 0.2636269074 | T11: 9.567860673 | U11: 0.2371810707
A12: 2 | B12: 16969.17 | D12: 20685.41823 | E12: 512.7781236 | F12: 1723.784852 | G12: 42.7315103 | H12: 92.74863083 | I12: 2.299178502 | J12: 46.3738075 | K12: 1.14957666 | L12: 10.46832906 | M12: 0.259503099 | N12: 5.234164532 | O12: 0.1297515495 | P12: 2.093665813 | Q12: 0.0519006198 | R12: 11.03157986 | S12: 0.2734657215 | T12: 9.944912611 | U12: 0.2465279441
A13: 3 | B13: 17612.56 | D13: 21469.71064 | E13: 532.2202246 | F13: 1789.142553 | G13: 44.35168539 | H13: 92.74863083 | I13: 2.299178502 | J13: 46.3738075 | K13: 1.14957666 | L13: 10.86523818 | M13: 0.2693422189 | N13: 5.432619089 | O13: 0.1346711095 | P13: 2.173047636 | Q13: 0.05386844379 | R13: 11.42848897 | S13: 0.2833048414 | T13: 10.32197627 | U13: 0.255875108
A14: 4 | B14: 18255.93 | D14: 22253.97867 | E14: 551.6617213 | F14: 1854.498223 | G14: 45.97181011 | H14: 92.74863083 | I14: 2.299178502 | J14: 46.3738075 | K14: 1.14957666 | L14: 11.26213495 | M14: 0.279181033 | N14: 5.631067477 | O14: 0.1395905165 | P14: 2.252426991 | Q14: 0.05583620661 | R14: 11.82538575 | S14: 0.2931436555 | T14: 10.69902821 | U14: 0.2652219814
A15: 5 | B15: 18255.93 | D15: 22253.97867 | E15: 551.6617213 | F15: 1854.498223 | G15: 45.97181011 | H15: 92.74863083 | I15: 2.299178502 | J15: 46.3738075 | K15: 1.14957666 | L15: 11.26213495 | M15: 0.279181033 | N15: 5.631067477 | O15: 0.1395905165 | P15: 2.252426991 | Q15: 0.05583620661 | R15: 11.82538575 | S15: 0.2931436555 | T15: 10.69902821 | U15: 0.2652219814
A16: 6 | B16: 19172.88 | D16: 23371.74072 | E16: 579.3703187 | F16: 1947.64506 | G16: 48.28085989 | H16: 92.74863083 | I16: 2.299178502 | J16: 46.3738075 | K16: 1.14957666 | L16: 11.82780401 | M16: 0.2932036026 | N16: 5.913902004 | O16: 0.1466018013 | P16: 2.365560802 | Q16: 0.05864072052 | R16: 12.3910548 | S16: 0.3071662251 | T16: 11.23641381 | U16: 0.2785434225
A17: 7 | B17: 19172.88 | D17: 23371.74072 | E17: 579.3703187 | F17: 1947.64506 | G17: 48.28085989 | H17: 92.74863083 | I17: 2.299178502 | J17: 46.3738075 | K17: 1.14957666 | L17: 11.82780401 | M17: 0.2932036026 | N17: 5.913902004 | O17: 0.1466018013 | P17: 2.365560802 | Q17: 0.05864072052 | R17: 12.3910548 | S17: 0.3071662251 | T17: 11.23641381 | U17: 0.2785434225
A18: 8 | B18: 20089.87 | D18: 24489.55153 | E18: 607.0801249 | F18: 2040.795961 | G18: 50.59001041 | H18: 80.38797083 | I18: 1.992765744 | J18: 34.01517917 | K18: 0.8432142659 | L18: 12.39349774 | M18: 0.3072267839 | N18: 6.196748869 | O18: 0.1536133919 | P18: 2.478699548 | Q18: 0.06144535677 | R18: 12.8816838 | S18: 0.3193286001 | T18: 11.77382285 | U18: 0.2918654447
A19: 9 | B19: 20089.87 | D19: 24489.55153 | E19: 607.0801249 | F19: 2040.795961 | G19: 50.59001041 | H19: 80.38797083 | I19: 1.992765744 | J19: 34.01517917 | K19: 0.8432142659 | L19: 12.39349774 | M19: 0.3072267839 | N19: 6.196748869 | O19: 0.1536133919 | P19: 2.478699548 | Q19: 0.06144535677 | R19: 12.8816838 | S19: 0.3193286001 | T19: 11.77382285 | U19: 0.2918654447
A20: 10 | B20: 21006.86 | D20: 25607.36234 | E20: 634.7899311 | F20: 2133.946862 | G20: 52.89916092 | H20: 46.3738075 | I20: 1.14957666 | J20: 23.18741167 | K20: 0.5748009208 | L20: 12.95919147 | M20: 0.3212499651 | N20: 6.479595734 | O20: 0.1606249826 | P20: 2.591838294 | Q20: 0.06424999302 | R20: 13.24081378 | S20: 0.3282311999 | T20: 12.31123189 | U20: 0.3051874669
A21: 11 | B21: 21006.86 | D21: 25607.36234 | E21: 634.7899311 | F21: 2133.946862 | G21: 52.89916092 | H21: 46.3738075 | I21: 1.14957666 | J21: 23.18741167 | K21: 0.5748009208 | L21: 12.95919147 | M21: 0.3212499651 | N21: 6.479595734 | O21: 0.1606249826 | P21: 2.591838294 | Q21: 0.06424999302 | R21: 13.24081378 | S21: 0.3282311999 | T21: 12.31123189 | U21: 0.3051874669
A22: 12 | B22: 21923.82 | D22: 26725.13658 | E22: 662.4988307 | F22: 2227.094715 | G22: 55.20823589 | H22: 46.3738075 | I22: 1.14957666 | J22: 23.18741167 | K22: 0.5748009208 | L22: 13.52486669 | M22: 0.3352726876 | N22: 6.762433345 | O22: 0.1676363438 | P22: 2.704973338 | Q22: 0.06705453752 | R22: 13.806489 | S22: 0.3422539224 | T22: 12.84862336 | U22: 0.3185090532
A23: 13 | B23: 21923.82 | D23: 26725.13658 | E23: 662.4988307 | F23: 2227.094715 | G23: 55.20823589 | H23: 46.3738075 | I23: 1.14957666 | J23: 23.18741167 | K23: 0.5748009208 | L23: 13.52486669 | M23: 0.3352726876 | N23: 6.762433345 | O23: 0.1676363438 | P23: 2.704973338 | Q23: 0.06705453752 | R23: 13.806489 | S23: 0.3422539224 | T23: 12.84862336 | U23: 0.3185090532
A24: 14 | B24: 22840.81 | D24: 27842.94739 | E24: 690.2086369 | F24: 2320.245616 | G24: 57.5173864 | H24: 27.96792333 | I24: 0.6933067096 | J24: 4.7815275 | K24: 0.1185309706 | L24: 14.09056042 | M24: 0.3492958689 | N24: 7.04528021 | O24: 0.1746479344 | P24: 2.818112084 | Q24: 0.06985917377 | R24: 14.26040611 | S24: 0.3535062335 | T24: 13.3860324 | U24: 0.3318310754
A25: 15 | B25: 22840.81 | D25: 27842.94739 | E25: 690.2086369 | F25: 2320.245616 | G25: 57.5173864 | H25: 27.96792333 | I25: 0.6933067096 | J25: 4.7815275 | K25: 0.1185309706 | L25: 14.09056042 | M25: 0.3492958689 | N25: 7.04528021 | O25: 0.1746479344 | P25: 2.818112084 | Q25: 0.06985917377 | R25: 14.26040611 | S25: 0.3535062335 | T25: 13.3860324 | U25: 0.3318310754
A26: 16 | B26: 23757.8 | D26: 28960.7582 | E26: 717.918443 | F26: 2413.396517 | G26: 59.82653692 | H26: 0 | I26: 0 | J26: 0 | K26: 0 | L26: 14.65625415 | M26: 0.3633190501 | N26: 7.328127075 | O26: 0.1816595251 | P26: 2.93125083 | Q26: 0.07266381002 | R26: 14.65625415 | S26: 0.3633190501 | T26: 13.92344144 | U26: 0.3451530976
A27: 17 | B27: 23757.8 | D27: 28960.7582 | E27: 717.918443 | F27: 2413.396517 | G27: 59.82653692 | H27: 0 | I27: 0 | J27: 0 | K27: 0 | L27: 14.65625415 | M27: 0.3633190501 | N27: 7.328127075 | O27: 0.1816595251 | P27: 2.93125083 | Q27: 0.07266381002 | R27: 14.65625415 | S27: 0.3633190501 | T27: 13.92344144 | U27: 0.3451530976
A28: 18 | B28: 24674.75 | D28: 30078.52025 | E28: 745.6270405 | F28: 2506.543354 | G28: 62.13558671 | H28: 0 | I28: 0 | J28: 0 | K28: 0 | L28: 15.2219232 | M28: 0.3773416197 | N28: 7.610961602 | O28: 0.1886708098 | P28: 3.044384641 | Q28: 0.07546832393 | R28: 15.2219232 | S28: 0.3773416197 | T28: 14.46082704 | U28: 0.3584745387
A29: 19 | B29: 24674.75 | D29: 30078.52025 | E29: 745.6270405 | F29: 2506.543354 | G29: 62.13558671 | H29: 0 | I29: 0 | J29: 0 | K29: 0 | L29: 15.2219232 | M29: 0.3773416197 | N29: 7.610961602 | O29: 0.1886708098 | P29: 3.044384641 | Q29: 0.07546832393 | R29: 15.2219232 | S29: 0.3773416197 | T29: 14.46082704 | U29: 0.3584745387
A30: 20 | B30: 25591.74 | D30: 31196.33106 | E30: 773.3368466 | F30: 2599.694255 | G30: 64.44473722 | H30: 0 | I30: 0 | J30: 0 | K30: 0 | L30: 15.78761693 | M30: 0.3913648009 | N30: 7.893808467 | O30: 0.1956824005 | P30: 3.157523387 | Q30: 0.07827296019 | R30: 15.78761693 | S30: 0.3913648009 | T30: 14.99823609 | U30: 0.3717965609
A31: 21 | B31: 25591.74 | D31: 31196.33106 | E31: 773.3368466 | F31: 2599.694255 | G31: 64.44473722 | H31: 0 | I31: 0 | J31: 0 | K31: 0 | L31: 15.78761693 | M31: 0.3913648009 | N31: 7.893808467 | O31: 0.1956824005 | P31: 3.157523387 | Q31: 0.07827296019 | R31: 15.78761693 | S31: 0.3913648009 | T31: 14.99823609 | U31: 0.3717965609
A32: 22 | B32: 26508.73 | D32: 32314.14187 | E32: 801.0466528 | F32: 2692.845156 | G32: 66.75388773 | H32: 0 | I32: 0 | J32: 0 | K32: 0 | L32: 16.35331066 | M32: 0.4053879822 | N32: 8.176655331 | O32: 0.2026939911 | P32: 3.270662133 | Q32: 0.08107759644 | R32: 16.35331066 | S32: 0.4053879822 | T32: 15.53564513 | U32: 0.3851185831
A33: 23 | B33: 27425.69 | D33: 33431.91611 | E33: 828.7555524 | F33: 2785.993009 | G33: 69.0629627 | H33: 0 | I33: 0 | J33: 0 | K33: 0 | L33: 16.91898589 | M33: 0.4194107047 | N33: 8.459492943 | O33: 0.2097053523 | P33: 3.383797177 | Q33: 0.08388214094 | R33: 16.91898589 | S33: 0.4194107047 | T33: 16.07303659 | U33: 0.3984401694
A34: 24 | B34: 28342.68 | D34: 34549.72692 | E34: 856.4653586 | F34: 2879.14391 | G34: 71.37211322 | H34: 0 | I34: 0 | J34: 0 | K34: 0 | L34: 17.48467962 | M34: 0.4334338859 | N34: 8.742339808 | O34: 0.216716943 | P34: 3.496935923 | Q34: 0.08668677719 | R34: 17.48467962 | S34: 0.4334338859 | T34: 16.61044563 | U34: 0.4117621916
A35: 25 | B35: 28342.68 | D35: 34549.72692 | E35: 856.4653586 | F35: 2879.14391 | G35: 71.37211322 | H35: 0 | I35: 0 | J35: 0 | K35: 0 | L35: 17.48467962 | M35: 0.4334338859 | N35: 8.742339808 | O35: 0.216716943 | P35: 3.496935923 | Q35: 0.08668677719 | R35: 17.48467962 | S35: 0.4334338859 | T35: 16.61044563 | U35: 0.4117621916
A36: 26 | B36: 28342.68 | D36: 34549.72692 | E36: 856.4653586 | F36: 2879.14391 | G36: 71.37211322 | H36: 0 | I36: 0 | J36: 0 | K36: 0 | L36: 17.48467962 | M36: 0.4334338859 | N36: 8.742339808 | O36: 0.216716943 | P36: 3.496935923 | Q36: 0.08668677719 | R36: 17.48467962 | S36: 0.4334338859 | T36: 16.61044563 | U36: 0.4117621916
A37: 27 | B37: 28342.68 | D37: 34549.72692 | E37: 856.4653586 | F37: 2879.14391 | G37: 71.37211322 | H37: 0 | I37: 0 | J37: 0 | K37: 0 | L37: 17.48467962 | M37: 0.4334338859 | N37: 8.742339808 | O37: 0.216716943 | P37: 3.496935923 | Q37: 0.08668677719 | R37: 17.48467962 | S37: 0.4334338859 | T37: 16.61044563 | U37: 0.4117621916

Sheet MV2(Verz pers)
A1: MV2 | E1: 450 | F1: VERZORGEND PERSONEEL | Q1: Barema 13
A2: 21j. | T2: coëfficiënt: | U2: ='LOG4'!$U$4 -> 1.219
B4: JAARLOON | F4: MAANDLOON | H4: HAARDTOELAGE | J4: STANDPLAATS- | L4: UURLOON | R4: UURLOON MET
B5: 1 | J5: TOELAGE | L5: 38u | T5: 40u
B6: basis 01/01/2002 | D6: =Inhoud!$C$3 -> 2011-06-01 | F6: =D6 -> 2011-06-01 | L6: 1 | N6: 0.5 | P6: 0.2 | R6: HAARDTOELAGE
A8: 0 | B8: 18761.3 | D8: =B8*$U$2 -> 22870.0247 | E8: =D8/40.3399 -> 566.9331035 | F8: =B8/12*$U$2 -> 1905.835392 | G8: =F8/40.3399 -> 47.24442529 | H8: =((B8<19968.2)*913.03+(B8>19968.2)*(B8<20424.71)*(20424.71-B8+456.51)+(B8>20424.71)*(B8<22659.62)*456.51+(B8>22659.62)*(B8<23116.13)*(23116.13-B8))/12*$U$2 -> 92.74863083 | I8: =H8/40.3399 -> 2.299178502 | J8: =((B8<19968.2)*456.51+(B8>19968.2)*(B8<20196.46)*(20196.46-B8+228.26)+(B8>20196.46)*(B8<22659.62)*228.26+(B8>22659.62)*(B8<22887.88)*(22887.88-B8))/12*$U$2 -> 46.3738075 | K8: =J8/40.3399 -> 1.14957666 | L8: =D8/1976 -> 11.57389914 | M8: =L8/40.3399 -> 0.2869094653 | N8: =L8/2 -> 5.78694957 | O8: =N8/40.3399 -> 0.1434547327 | P8: =L8/5 -> 2.314779828 | Q8: =P8/40.3399 -> 0.05738189306 | R8: =(F8+H8)/1976*12 -> 12.13714993 | S8: =R8/40.3399 -> 0.3008720878 | T8: =D8/2080 -> 10.99520418 | U8: =T8/40.3399 -> 0.272563992
A9: =+A8+1 -> 1 | B9: 19380.83 | D9: 23625.23177 | E9: 585.6541977 | F9: 1968.769314 | G9: 48.80451648 | H9: 92.74863083 | I9: 2.299178502 | J9: 46.3738075 | K9: 1.14957666 | L9: 11.95608895 | M9: 0.2963837033 | N9: 5.978044476 | O9: 0.1481918516 | P9: 2.39121779 | Q9: 0.05927674066 | R9: 12.51933975 | S9: 0.3103463258 | T9: 11.3582845 | U9: 0.2815645181
A10: 2 | B10: 20139.45 | D10: 24549.98955 | E10: 608.5783443 | F10: 2045.832463 | G10: 50.71486202 | H10: 75.35146917 | I10: 1.867914129 | J10: 28.9786775 | K10: 0.7183626509 | L10: 12.42408378 | M10: 0.307984992 | N10: 6.21204189 | O10: 0.153992496 | P10: 2.484816756 | Q10: 0.06159699841 | R10: 12.8816838 | S10: 0.3193286001 | T10: 11.80287959 | U10: 0.2925857424
A11: 3 | B11: 20898.05 | D11: 25474.72295 | E11: 631.5018865 | F11: 2122.893579 | G11: 52.62515721 | H11: 46.3738075 | I11: 1.14957666 | J11: 23.18741167 | K11: 0.5748009208 | L11: 12.89206627 | M11: 0.3195859749 | N11: 6.446033135 | O11: 0.1597929875 | P11: 2.578413254 | Q11: 0.06391719499 | R11: 13.17368858 | S11: 0.3265672097 | T11: 12.24746296 | U11: 0.3036066762
A12: 4 | B12: 21652.61 | D12: 26394.53159 | E12: 654.3033471 | F12: 2199.544299 | G12: 54.52527892 | H12: 46.3738075 | I12: 1.14957666 | J12: 23.18741167 | K12: 0.5748009208 | L12: 13.35755647 | M12: 0.3311251756 | N12: 6.678778236 | O12: 0.1655625878 | P12: 2.671511295 | Q12: 0.06622503513 | R12: 13.63917879 | S12: 0.3381064104 | T12: 12.68967865 | U12: 0.3145689169
A13: 5 | B13: 21661.92 | D13: 26405.88048 | E13: 654.5846787 | F13: 2200.49004 | G13: 54.54872322 | H13: 46.3738075 | I13: 1.14957666 | J13: 23.18741167 | K13: 0.5748009208 | L13: 13.36329984 | M13: 0.3312675499 | N13: 6.681649919 | O13: 0.165633775 | P13: 2.672659968 | Q13: 0.06625350999 | R13: 13.64492215 | S13: 0.3382487847 | T13: 12.69513485 | U13: 0.3147041724
A14: 6 | B14: 22737.37 | D14: 27716.85403 | E14: 687.0828641 | F14: 2309.737836 | G14: 57.25690534 | H14: 38.47570333 | I14: 0.9537877717 | J14: 15.2893075 | K14: 0.3790120328 | L14: 14.02674799 | M14: 0.3477140001 | N14: 7.013373995 | O14: 0.173857 | P14: 2.805349598 | Q14: 0.06954280001 | R14: 14.26040611 | S14: 0.3535062335 | T14: 13.32541059 | U14: 0.3303283001
A15: 7 | B15: 22749.06 | D15: 27731.10414 | E15: 687.4361151 | F15: 2310.925345 | G15: 57.28634293 | H15: 37.28819417 | I15: 0.9243501884 | J15: 14.10179833 | K15: 0.3495744494 | L15: 14.03395959 | M15: 0.3478927708 | N15: 7.016979793 | O15: 0.1739463854 | P15: 2.806791917 | Q15: 0.06957855416 | R15: 14.26040611 | S15: 0.3535062335 | T15: 13.33226161 | U15: 0.3304981323
A16: 8 | B16: 23824.51 | D16: 29042.07769 | E16: 719.9343005 | F16: 2420.173141 | G16: 59.99452504 | H16: 0 | I16: 0 | J16: 0 | K16: 0 | L16: 14.69740774 | M16: 0.3643392209 | N16: 7.348703869 | O16: 0.1821696105 | P16: 2.939481548 | Q16: 0.07286784418 | R16: 14.69740774 | S16: 0.3643392209 | T16: 13.96253735 | U16: 0.3461222599
A17: 9 | B17: 23847.68 | D17: 29070.32192 | E17: 720.6344567 | F17: 2422.526827 | G17: 60.05287139 | H17: 0 | I17: 0 | J17: 0 | K17: 0 | L17: 14.71170138 | M17: 0.364693551 | N17: 7.355850688 | O17: 0.1823467755 | P17: 2.942340275 | Q17: 0.07293871019 | R17: 14.71170138 | S17: 0.364693551 | T17: 13.97611631 | U17: 0.3464588734
A18: 10 | B18: 24923.16 | D18: 30381.33204 | E18: 753.1335487 | F18: 2531.77767 | G18: 62.76112906 | H18: 0 | I18: 0 | J18: 0 | K18: 0 | L18: 15.37516804 | M18: 0.3811404599 | N18: 7.687584018 | O18: 0.1905702299 | P18: 3.075033607 | Q18: 0.07622809197 | R18: 15.37516804 | S18: 0.3811404599 | T18: 14.60640963 | U18: 0.3620834369
A19: 11 | B19: 24931.24 | D19: 30391.18156 | E19: 753.3777119 | F19: 2532.598463 | G19: 62.78147599 | H19: 0 | I19: 0 | J19: 0 | K19: 0 | L19: 15.38015261 | M19: 0.3812640242 | N19: 7.690076306 | O19: 0.1906320121 | P19: 3.076030522 | Q19: 0.07625280485 | R19: 15.38015261 | S19: 0.3812640242 | T19: 14.61114498 | U19: 0.362200823
A20: 12 | B20: 26006.69 | D20: 31702.15511 | E20: 785.8758973 | F20: 2641.846259 | G20: 65.48965811 | H20: 0 | I20: 0 | J20: 0 | K20: 0 | L20: 16.04360076 | M20: 0.3977104743 | N20: 8.021800382 | O20: 0.1988552372 | P20: 3.208720153 | Q20: 0.07954209487 | R20: 16.04360076 | S20: 0.3977104743 | T20: 15.24142073 | U20: 0.3778249506
A21: 13 | B21: 26014.77 | D21: 31712.00463 | E21: 786.1200605 | F21: 2642.667053 | G21: 65.51000504 | H21: 0 | I21: 0 | J21: 0 | K21: 0 | L21: 16.04858534 | M21: 0.3978340387 | N21: 8.02429267 | O21: 0.1989170194 | P21: 3.209717068 | Q21: 0.07956680775 | R21: 16.04858534 | S21: 0.3978340387 | T21: 15.24615607 | U21: 0.3779423368
A22: 14 | B22: 27090.25 | D22: 33023.01475 | E22: 818.6191525 | F22: 2751.917896 | G22: 68.21826271 | H22: 0 | I22: 0 | J22: 0 | K22: 0 | L22: 16.712052 | M22: 0.4142809476 | N22: 8.356025999 | O22: 0.2071404738 | P22: 3.3424104 | Q22: 0.08285618952 | R22: 16.712052 | S22: 0.4142809476 | T22: 15.8764494 | U22: 0.3935669002
A23: 15 | B23: 27098.3 | D23: 33032.8277 | E23: 818.8624092 | F23: 2752.735642 | G23: 68.2385341 | H23: 0 | I23: 0 | J23: 0 | K23: 0 | L23: 16.71701807 | M23: 0.4144040532 | N23: 8.358509033 | O23: 0.2072020266 | P23: 3.343403613 | Q23: 0.08288081065 | R23: 16.71701807 | S23: 0.4144040532 | T23: 15.88116716 | U23: 0.3936838506
A24: 16 | B24: 28173.78 | D24: 34343.83782 | E24: 851.3615011 | F24: 2861.986485 | G24: 70.94679176 | H24: 0 | I24: 0 | J24: 0 | K24: 0 | L24: 17.38048473 | M24: 0.4308509621 | N24: 8.690242363 | O24: 0.2154254811 | P24: 3.476096945 | Q24: 0.08617019242 | R24: 17.38048473 | S24: 0.4308509621 | T24: 16.51146049 | U24: 0.409308414
A25: 17 | B25: 28184.81 | D25: 34357.28339 | E25: 851.6948081 | F25: 2863.106949 | G25: 70.97456734 | H25: 0 | I25: 0 | J25: 0 | K25: 0 | L25: 17.38728916 | M25: 0.4310196397 | N25: 8.693644582 | O25: 0.2155098199 | P25: 3.477457833 | Q25: 0.08620392795 | R25: 17.38728916 | S25: 0.4310196397 | T25: 16.51792471 | U25: 0.4094686577
A26: 18 | B26: 29260.29 | D26: 35668.29351 | E26: 884.1939001 | F26: 2972.357793 | G26: 73.68282501 | H26: 0 | I26: 0 | J26: 0 | K26: 0 | L26: 18.05075582 | M26: 0.4474665486 | N26: 9.025377912 | O26: 0.2237332743 | P26: 3.610151165 | Q26: 0.08949330973 | R26: 18.05075582 | S26: 0.4474665486 | T26: 17.14821803 | U26: 0.4250932212
A27: 19 | B27: 29271.99 | D27: 35682.55581 | E27: 884.5474533 | F27: 2973.546317 | G27: 73.71228777 | H27: 0 | I27: 0 | J27: 0 | K27: 0 | L27: 18.05797359 | M27: 0.4476454723 | N27: 9.028986794 | O27: 0.2238227362 | P27: 3.611594718 | Q27: 0.08952909446 | R27: 18.05797359 | S27: 0.4476454723 | T27: 17.15507491 | U27: 0.4252631987
A28: 20 | B28: 30347.44 | D28: 36993.52936 | E28: 917.0456387 | F28: 3082.794113 | G28: 76.42046989 | H28: 0 | I28: 0 | J28: 0 | K28: 0 | L28: 18.72142174 | M28: 0.4640919224 | N28: 9.36071087 | O28: 0.2320459612 | P28: 3.744284348 | Q28: 0.09281838448 | R28: 18.72142174 | S28: 0.4640919224 | T28: 17.78535065 | U28: 0.4408873263
A29: 21 | B29: 30359.13 | D29: 37007.77947 | E29: 917.3988897 | F29: 3083.981623 | G29: 76.44990747 | H29: 0 | I29: 0 | J29: 0 | K29: 0 | L29: 18.72863334 | M29: 0.4642706932 | N29: 9.364316668 | O29: 0.2321353466 | P29: 3.745726667 | Q29: 0.09285413863 | R29: 18.72863334 | S29: 0.4642706932 | T29: 17.79220167 | U29: 0.4410571585
A30: 22 | B30: 31434.61 | D30: 38318.78959 | E30: 949.8979817 | F30: 3193.232466 | G30: 79.15816514 | H30: 0 | I30: 0 | J30: 0 | K30: 0 | L30: 19.39209999 | M30: 0.4807176021 | N30: 9.696049997 | O30: 0.240358801 | P30: 3.878419999 | Q30: 0.09614352041 | R30: 19.39209999 | S30: 0.4807176021 | T30: 18.422495 | U30: 0.4566817219
A31: 23 | B31: 32521.76 | D31: 39644.02544 | E31: 982.7497203 | F31: 3303.668787 | G31: 81.89581002 | H31: 0 | I31: 0 | J31: 0 | K31: 0 | L31: 20.06276591 | M31: 0.4973429758 | N31: 10.03138296 | O31: 0.2486714879 | P31: 4.012553182 | Q31: 0.09946859517 | R31: 20.06276591 | S31: 0.4973429758 | T31: 19.05962762 | U31: 0.472475827
A32: 24 | B32: 33597.24 | D32: 40955.03556 | E32: 1015.248812 | F32: 3412.91963 | G32: 84.60406768 | H32: 0 | I32: 0 | J32: 0 | K32: 0 | L32: 20.72623257 | M32: 0.5137898847 | N32: 10.36311629 | O32: 0.2568949424 | P32: 4.145246514 | Q32: 0.1027579769 | R32: 20.72623257 | S32: 0.5137898847 | T32: 19.68992094 | U32: 0.4881003905
A33: 25 | B33: 33608.9 | D33: 40969.2491 | E33: 1015.601157 | F33: 3414.104092 | G33: 84.63342972 | H33: 0 | I33: 0 | J33: 0 | K33: 0 | L33: 20.73342566 | M33: 0.5139681967 | N33: 10.36671283 | O33: 0.2569840983 | P33: 4.146685132 | Q33: 0.1027936393 | R33: 20.73342566 | S33: 0.5139681967 | T33: 19.69675438 | U33: 0.4882697869
A34: 26 | B34: 33608.9 | D34: 40969.2491 | E34: 1015.601157 | F34: 3414.104092 | G34: 84.63342972 | H34: 0 | I34: 0 | J34: 0 | K34: 0 | L34: 20.73342566 | M34: 0.5139681967 | N34: 10.36671283 | O34: 0.2569840983 | P34: 4.146685132 | Q34: 0.1027936393 | R34: 20.73342566 | S34: 0.5139681967 | T34: 19.69675438 | U34: 0.4882697869
A35: 27 | B35: 33620.6 | D35: 40983.5114 | E35: 1015.95471 | F35: 3415.292617 | G35: 84.66289249 | H35: 0 | I35: 0 | J35: 0 | K35: 0 | L35: 20.74064342 | M35: 0.5141471204 | N35: 10.37032171 | O35: 0.2570735602 | P35: 4.148128684 | Q35: 0.1028294241 | R35: 20.74064342 | S35: 0.5141471204 | T35: 19.70361125 | U35: 0.4884397644

Sheet B3
A1: B3 | E1: 270 | F1: BEGELEIDEND EN VERZORGEND PERSONEEL KLASSE 3 | Q1: Barema 14
A2: 18j. | T2: coëfficiënt: | U2: ='LOG4'!$U$4 -> 1.219
B4: JAARLOON | F4: MAANDLOON | H4: HAARDTOELAGE | J4: STANDPLAATS- | L4: UURLOON | R4: UURLOON MET
B5: 1 | J5: TOELAGE | L5: 38u | T5: 40u
B6: basis 01/01/2002 | D6: =Inhoud!$C$3 -> 2011-06-01 | F6: =D6 -> 2011-06-01 | L6: 1 | N6: 0.5 | P6: 0.2 | R6: HAARDTOELAGE
A8: 0 | B8: 15985.49 | D8: =B8*$U$2 -> 19486.31231 | E8: =D8/40.3399 -> 483.0530643 | F8: =B8/12*$U$2 -> 1623.859359 | G8: =F8/40.3399 -> 40.25442203 | H8: =((B8<19968.2)*913.03+(B8>19968.2)*(B8<20424.71)*(20424.71-B8+456.51)+(B8>20424.71)*(B8<22659.62)*456.51+(B8>22659.62)*(B8<23116.13)*(23116.13-B8))/12*$U$2 -> 92.74863083 | I8: =H8/40.3399 -> 2.299178502 | J8: =((B8<19968.2)*456.51+(B8>19968.2)*(B8<20196.46)*(20196.46-B8+228.26)+(B8>20196.46)*(B8<22659.62)*228.26+(B8>22659.62)*(B8<22887.88)*(22887.88-B8))/12*$U$2 -> 46.3738075 | K8: =J8/40.3399 -> 1.14957666 | L8: =D8/1976 -> 9.861494084 | M8: =L8/40.3399 -> 0.2444600528 | N8: =L8/2 -> 4.930747042 | O8: =N8/40.3399 -> 0.1222300264 | P8: =L8/5 -> 1.972298817 | Q8: =P8/40.3399 -> 0.04889201056 | R8: =(F8+H8)/1976*12 -> 10.42474488 | S8: =R8/40.3399 -> 0.2584226753 | T8: =D8/2080 -> 9.36841938 | U8: =T8/40.3399 -> 0.2322370502
A9: =+A8+1 -> 1 | B9: 16523.25 | D9: 20141.84175 | E9: 499.3032147 | F9: 1678.486813 | G9: 41.60860122 | H9: 92.74863083 | I9: 2.299178502 | J9: 46.3738075 | K9: 1.14957666 | L9: 10.19323975 | M9: 0.2526838131 | N9: 5.096619876 | O9: 0.1263419065 | P9: 2.03864795 | Q9: 0.05053676262 | R9: 10.75649055 | S9: 0.2666464356 | T9: 9.683577764 | U9: 0.2400496224
A10: 2 | B10: 17168.75 | D10: 20928.70625 | E10: 518.8090761 | F10: 1744.058854 | G10: 43.23408968 | H10: 92.74863083 | I10: 2.299178502 | J10: 46.3738075 | K10: 1.14957666 | L10: 10.59145053 | M10: 0.2625552005 | N10: 5.295725266 | O10: 0.1312776002 | P10: 2.118290106 | Q10: 0.05251104009 | R10: 11.15470133 | S10: 0.2765178229 | T10: 10.061878 | U10: 0.2494274404
A11: 3 | B11: 17817.65 | D11: 21719.71535 | E11: 538.4176795 | F11: 1809.976279 | G11: 44.86813996 | H11: 92.74863083 | I11: 2.299178502 | J11: 46.3738075 | K11: 1.14957666 | L11: 10.99175878 | M11: 0.2724785828 | N11: 5.49587939 | O11: 0.1362392914 | P11: 2.198351756 | Q11: 0.05449571655 | R11: 11.55500957 | S11: 0.2864412052 | T11: 10.44217084 | U11: 0.2588546536
A12: 4 | B12: 18461.01 | D12: 22503.97119 | E12: 557.858874 | F12: 1875.330932 | G12: 46.4882395 | H12: 92.74863083 | I12: 2.299178502 | J12: 46.3738075 | K12: 1.14957666 | L12: 11.38864939 | M12: 0.2823172439 | N12: 5.694324694 | O12: 0.141158622 | P12: 2.277729878 | Q12: 0.05646344878 | R12: 11.95190018 | S12: 0.2962798664 | T12: 10.81921692 | U12: 0.2682013817
A13: 5 | B13: 18470.98 | D13: 22516.12462 | E13: 558.1601496 | F13: 1876.343718 | G13: 46.5133458 | H13: 92.74863083 | I13: 2.299178502 | J13: 46.3738075 | K13: 1.14957666 | L13: 11.39479991 | M13: 0.2824697114 | N13: 5.697399954 | O13: 0.1412348557 | P13: 2.278959982 | Q13: 0.05649394227 | R13: 11.9580507 | S13: 0.2964323338 | T13: 10.82505991 | U13: 0.2683462258
A14: 6 | B14: 19387.97 | D14: 23633.93543 | E14: 585.8699558 | F14: 1969.494619 | G14: 48.82249632 | H14: 92.74863083 | I14: 2.299178502 | J14: 46.3738075 | K14: 1.14957666 | L14: 11.96049364 | M14: 0.2964928926 | N14: 5.980246819 | O14: 0.1482464463 | P14: 2.392098728 | Q14: 0.05929857852 | R14: 12.52374443 | S14: 0.3104555151 | T14: 11.36246896 | U14: 0.281668248
A15: 7 | B15: 19397.93 | D15: 23646.07667 | E15: 586.1709293 | F15: 1970.506389 | G15: 48.84757744 | H15: 92.74863083 | I15: 2.299178502 | J15: 46.3738075 | K15: 1.14957666 | L15: 11.96663799 | M15: 0.2966452071 | N15: 5.983318995 | O15: 0.1483226036 | P15: 2.393327598 | Q15: 0.05932904142 | R15: 12.52988879 | S15: 0.3106078296 | T15: 11.36830609 | U15: 0.2818129468
A16: 8 | B16: 20314.89 | D16: 24763.85091 | E16: 613.8798289 | F16: 2063.654243 | G16: 51.15665241 | H16: 57.52968917 | I16: 1.426123743 | J16: 23.18741167 | K16: 0.5748009208 | L16: 12.53231321 | M16: 0.3106679296 | N16: 6.266156607 | O16: 0.1553339648 | P16: 2.506462643 | Q16: 0.06213358592 | R16: 12.8816838 | S16: 0.3193286001 | T16: 11.90569755 | U16: 0.2951345331
A17: 9 | B17: 20324.86 | D17: 24776.00434 | E17: 614.1811046 | F17: 2064.667028 | G17: 51.18175871 | H17: 56.51690333 | I17: 1.401017438 | J17: 23.18741167 | K17: 0.5748009208 | L17: 12.53846373 | M17: 0.310820397 | N17: 6.269231867 | O17: 0.1554101985 | P17: 2.507692747 | Q17: 0.06216407941 | R17: 12.8816838 | S17: 0.3193286001 | T17: 11.91154055 | U17: 0.2952793772
A18: 10 | B18: 21241.85 | D18: 25893.81515 | E18: 641.8909107 | F18: 2157.817929 | G18: 53.49090923 | H18: 46.3738075 | I18: 1.14957666 | J18: 23.18741167 | K18: 0.5748009208 | L18: 13.10415746 | M18: 0.3248435783 | N18: 6.552078732 | O18: 0.1624217892 | P18: 2.620831493 | Q18: 0.06496871566 | R18: 13.38577978 | S18: 0.3318248131 | T18: 12.44894959 | U18: 0.3086013994
A19: 11 | B19: 21251.81 | D19: 25905.95639 | E19: 642.1918842 | F19: 2158.829699 | G19: 53.51599035 | H19: 46.3738075 | I19: 1.14957666 | J19: 23.18741167 | K19: 0.5748009208 | L19: 13.11030182 | M19: 0.3249958928 | N19: 6.555150908 | O19: 0.1624979464 | P19: 2.622060363 | Q19: 0.06499917856 | R19: 13.39192413 | S19: 0.3319771276 | T19: 12.45478673 | U19: 0.3087460982
A20: 12 | B20: 22168.8 | D20: 27023.7672 | E20: 669.9016904 | F20: 2251.9806 | G20: 55.82514087 | H20: 46.3738075 | I20: 1.14957666 | J20: 23.18741167 | K20: 0.5748009208 | L20: 13.67599555 | M20: 0.3390190741 | N20: 6.837997773 | O20: 0.169509537 | P20: 2.735199109 | Q20: 0.06780381482 | R20: 13.95761786 | S20: 0.3460003089 | T20: 12.99219577 | U20: 0.3220681204
A21: 13 | B21: 22178.77 | D21: 27035.92063 | E21: 670.202966 | F21: 2252.993386 | G21: 55.85024717 | H21: 46.3738075 | I21: 1.14957666 | J21: 23.18741167 | K21: 0.5748009208 | L21: 13.68214607 | M21: 0.3391715415 | N21: 6.841073034 | O21: 0.1695857708 | P21: 2.736429214 | Q21: 0.0678343083 | R21: 13.96376838 | S21: 0.3461527763 | T21: 12.99803876 | U21: 0.3222129644
A22: 14 | B22: 23095.72 | D22: 28153.68268 | E22: 697.9115635 | F22: 2346.140223 | G22: 58.15929696 | H22: 2.073315833 | I22: 0.05139615699 | J22: 0 | K22: 0 | L22: 14.24781512 | M22: 0.3531941111 | N22: 7.123907561 | O22: 0.1765970555 | P22: 2.849563024 | Q22: 0.07063882222 | R22: 14.26040611 | S22: 0.3535062335 | T22: 13.53542437 | U22: 0.3355344055
A23: 15 | B23: 23105.69 | D23: 28165.83611 | E23: 698.2128391 | F23: 2347.153009 | G23: 58.18440326 | H23: 1.06053 | I23: 0.02628985198 | J23: 0 | K23: 0 | L23: 14.25396564 | M23: 0.3533465785 | N23: 7.126982821 | O23: 0.1766732893 | P23: 2.850793129 | Q23: 0.0706693157 | R23: 14.26040611 | S23: 0.3535062335 | T23: 13.54126736 | U23: 0.3356792496
A24: 16 | B24: 24022.68 | D24: 29283.64692 | E24: 725.9226453 | F24: 2440.30391 | G24: 60.49355378 | H24: 0 | I24: 0 | J24: 0 | K24: 0 | L24: 14.81965937 | M24: 0.3673697598 | N24: 7.409829686 | O24: 0.1836848799 | P24: 2.963931874 | Q24: 0.07347395196 | R24: 14.81965937 | S24: 0.3673697598 | T24: 14.0786764 | U24: 0.3490012718
A25: 17 | B25: 24032.65 | D25: 29295.80035 | E25: 726.223921 | F25: 2441.316696 | G25: 60.51866008 | H25: 0 | I25: 0 | J25: 0 | K25: 0 | L25: 14.82580989 | M25: 0.3675222272 | N25: 7.412904947 | O25: 0.1837611136 | P25: 2.965161979 | Q25: 0.07350444544 | R25: 14.82580989 | S25: 0.3675222272 | T25: 14.0845194 | U25: 0.3491461159
A26: 18 | B26: 24949.6 | D26: 30413.5624 | E26: 753.9325184 | F26: 2534.463533 | G26: 62.82770987 | H26: 0 | I26: 0 | J26: 0 | K26: 0 | L26: 15.39147895 | M26: 0.3815447968 | N26: 7.695739474 | O26: 0.1907723984 | P26: 3.078295789 | Q26: 0.07630895935 | R26: 15.39147895 | S26: 0.3815447968 | T26: 14.621905 | U26: 0.3624675569
A27: 19 | B27: 24959.57 | D27: 30425.71583 | E27: 754.2337941 | F27: 2535.476319 | G27: 62.85281617 | H27: 0 | I27: 0 | J27: 0 | K27: 0 | L27: 15.39762947 | M27: 0.3816972642 | N27: 7.698814734 | O27: 0.1908486321 | P27: 3.079525894 | Q27: 0.07633945284 | R27: 15.39762947 | S27: 0.3816972642 | T27: 14.627748 | U27: 0.362612401
A28: 20 | B28: 25876.56 | D28: 31543.52664 | E28: 781.9436003 | F28: 2628.62722 | G28: 65.16196669 | H28: 0 | I28: 0 | J28: 0 | K28: 0 | L28: 15.9633232 | M28: 0.3957204455 | N28: 7.981661599 | O28: 0.1978602227 | P28: 3.19266464 | Q28: 0.07914408909 | R28: 15.9633232 | S28: 0.3957204455 | T28: 15.16515704 | U28: 0.3759344232
A29: 21 | B29: 25886.53 | D29: 31555.68007 | E29: 782.2448759 | F29: 2629.640006 | G29: 65.18707299 | H29: 0 | I29: 0 | J29: 0 | K29: 0 | L29: 15.96947372 | M29: 0.3958729129 | N29: 7.98473686 | O29: 0.1979364565 | P29: 3.193894744 | Q29: 0.07917458258 | R29: 15.96947372 | S29: 0.3958729129 | T29: 15.17100003 | U29: 0.3760792673
A30: 22 | B30: 26803.48 | D30: 32673.44212 | E30: 809.9534734 | F30: 2722.786843 | G30: 67.49612278 | H30: 0 | I30: 0 | J30: 0 | K30: 0 | L30: 16.53514277 | M30: 0.4098954825 | N30: 8.267571387 | O30: 0.2049477412 | P30: 3.307028555 | Q30: 0.08197909649 | R30: 16.53514277 | S30: 0.4098954825 | T30: 15.70838563 | U30: 0.3894007083
A31: 23 | B31: 27730.44 | D31: 33803.40636 | E31: 837.9645552 | F31: 2816.95053 | G31: 69.8303796 | H31: 0 | I31: 0 | J31: 0 | K31: 0 | L31: 17.10698702 | M31: 0.4240711312 | N31: 8.553493512 | O31: 0.2120355656 | P31: 3.421397405 | Q31: 0.08481422623 | R31: 17.10698702 | S31: 0.4240711312 | T31: 16.25163767 | U31: 0.4028675746
A32: 24 | B32: 28647.43 | D32: 34921.21717 | E32: 865.6743614 | F32: 2910.101431 | G32: 72.13953011 | H32: 0 | I32: 0 | J32: 0 | K32: 0 | L32: 17.67268075 | M32: 0.4380943124 | N32: 8.836340377 | O32: 0.2190471562 | P32: 3.534536151 | Q32: 0.08761886249 | R32: 17.67268075 | S32: 0.4380943124 | T32: 16.78904672 | U32: 0.4161895968
A33: 25 | B33: 28657.36 | D33: 34933.32184 | E33: 865.9744283 | F33: 2911.110153 | G33: 72.16453569 | H33: 0 | I33: 0 | J33: 0 | K33: 0 | L33: 17.6788066 | M33: 0.4382461682 | N33: 8.8394033 | O33: 0.2191230841 | P33: 3.53576132 | Q33: 0.08764923363 | R33: 17.6788066 | S33: 0.4382461682 | T33: 16.79486627 | U33: 0.4163338598
A34: 26 | B34: 28657.36 | D34: 34933.32184 | E34: 865.9744283 | F34: 2911.110153 | G34: 72.16453569 | H34: 0 | I34: 0 | J34: 0 | K34: 0 | L34: 17.6788066 | M34: 0.4382461682 | N34: 8.8394033 | O34: 0.2191230841 | P34: 3.53576132 | Q34: 0.08764923363 | R34: 17.6788066 | S34: 0.4382461682 | T34: 16.79486627 | U34: 0.4163338598
A35: 27 | B35: 28667.36 | D35: 34945.51184 | E35: 866.2766105 | F35: 2912.125987 | G35: 72.18971754 | H35: 0 | I35: 0 | J35: 0 | K35: 0 | L35: 17.68497563 | M35: 0.4383990944 | N35: 8.842487814 | O35: 0.2191995472 | P35: 3.536995126 | Q35: 0.08767981888 | R35: 17.68497563 | S35: 0.4383990944 | T35: 16.80072685 | U35: 0.4164791397

Sheet B2B
A1: B2B | E1: 280 | F1: BEGELEIDEND EN VERZORGEND PERSONEEL KLASSE 2B | Q1: Barema 15
F3: ADL ASSISTENT
F4: Barema voor personeelsleden in dienst na 1/11/1993
A5: 20j. | T5: coëfficiënt: | U5: ='LOG4'!$U$4 -> 1.219
B7: JAARLOON | F7: MAANDLOON | H7: HAARDTOELAGE | J7: STANDPLAATS- | L7: UURLOON | R7: UURLOON MET
B8: 1 | J8: TOELAGE | L8: 38u | T8: 40u
B9: basis 01/01/2002 | D9: =Inhoud!$C$3 -> 2011-06-01 | F9: =D9 -> 2011-06-01 | L9: 1 | N9: 0.5 | P9: 0.2 | R9: HAARDTOELAGE
A11: 0 | B11: 17110.62 | D11: =B11*$U$5 -> 20857.84578 | E11: =D11/40.3399 -> 517.052491 | F11: =B11/12*$U$5 -> 1738.153815 | G11: =F11/40.3399 -> 43.08770758 | H11: =((B11<19968.2)*913.03+(B11>19968.2)*(B11<20424.71)*(20424.71-B11+456.51)+(B11>20424.71)*(B11<22659.62)*456.51+(B11>22659.62)*(B11<23116.13)*(23116.13-B11))/12*$U$5 -> 92.74863083 | I11: =H11/40.3399 -> 2.299178502 | J11: =((B11<19968.2)*456.51+(B11>19968.2)*(B11<20196.46)*(20196.46-B11+228.26)+(B11>20196.46)*(B11<22659.62)*228.26+(B11>22659.62)*(B11<22887.88)*(22887.88-B11))/12*$U$5 -> 46.3738075 | K11: =J11/40.3399 -> 1.14957666 | L11: =D11/1976 -> 10.55558997 | M11: =L11/40.3399 -> 0.2616662404 | N11: =L11/2 -> 5.277794985 | O11: =N11/40.3399 -> 0.1308331202 | P11: =L11/5 -> 2.111117994 | Q11: =P11/40.3399 -> 0.05233324807 | R11: =(F11+H11)/1976*12 -> 11.11884076 | S11: =R11/40.3399 -> 0.2756288628 | T11: =D11/2080 -> 10.02781047 | U11: =T11/40.3399 -> 0.2485829283
A12: =+A11+1 -> 1 | B12: 17440.61 | D12: 21260.10359 | E12: 527.0242016 | F12: 1771.675299 | G12: 43.91868347 | H12: 92.74863083 | I12: 2.299178502 | J12: 46.3738075 | K12: 1.14957666 | L12: 10.75916174 | M12: 0.2667126526 | N12: 5.379580868 | O12: 0.1333563263 | P12: 2.151832347 | Q12: 0.05334253053 | R12: 11.32241253 | S12: 0.2806752751 | T12: 10.22120365 | U12: 0.25337702
A13: 2 | B13: 17814.82 | D13: 21716.26558 | E13: 538.332162 | F13: 1809.688798 | G13: 44.8610135 | H13: 92.74863083 | I13: 2.299178502 | J13: 46.3738075 | K13: 1.14957666 | L13: 10.99001295 | M13: 0.2724353046 | N13: 5.495006473 | O13: 0.1362176523 | P13: 2.198002589 | Q13: 0.05448706093 | R13: 11.55326374 | S13: 0.2863979271 | T13: 10.4405123 | U13: 0.2588135394
A14: 3 | B14: 18486.04 | D14: 22534.48276 | E14: 558.615236 | F14: 1877.873563 | G14: 46.55126967 | H14: 92.74863083 | I14: 2.299178502 | J14: 46.3738075 | K14: 1.14957666 | L14: 11.40409047 | M14: 0.2827000182 | N14: 5.702045233 | O14: 0.1413500091 | P14: 2.280818093 | Q14: 0.05654000365 | R14: 11.96734126 | S14: 0.2966626407 | T14: 10.83388594 | U14: 0.2685650173
A15: 4 | B15: 19153.23 | D15: 23347.78737 | E15: 578.7765307 | F15: 1945.648948 | G15: 48.23137756 | H15: 92.74863083 | I15: 2.299178502 | J15: 46.3738075 | K15: 1.14957666 | L15: 11.81568187 | M15: 0.2929031026 | N15: 5.907840934 | O15: 0.1464515513 | P15: 2.363136373 | Q15: 0.05858062051 | R15: 12.37893266 | S15: 0.306865725 | T15: 11.22489777 | U15: 0.2782579474
A16: 5 | B16: 19157.26 | D16: 23352.69994 | E16: 578.8983101 | F16: 1946.058328 | G16: 48.24152584 | H16: 92.74863083 | I16: 2.299178502 | J16: 46.3738075 | K16: 1.14957666 | L16: 11.81816799 | M16: 0.2929647318 | N16: 5.909083993 | O16: 0.1464823659 | P16: 2.363633597 | Q16: 0.05859294637 | R16: 12.38141878 | S16: 0.3069273543 | T16: 11.22725959 | U16: 0.2783164952
A17: 6 | B17: 20108.48 | D17: 24512.23712 | E17: 607.642486 | F17: 2042.686427 | G17: 50.63687383 | H17: 78.497505 | I17: 1.94590232 | J17: 32.12471333 | K17: 0.7963508421 | L17: 12.4049783 | M17: 0.3075113795 | N17: 6.20248915 | O17: 0.1537556898 | P17: 2.48099566 | Q17: 0.06150227591 | R17: 12.8816838 | S17: 0.3193286001 | T17: 11.78472938 | U17: 0.2921358106
A18: 7 | B18: 20116.03 | D18: 24521.44057 | E18: 607.8706335 | F18: 2043.453381 | G18: 50.65588613 | H18: 77.73055083 | I18: 1.926890023 | J18: 31.35775917 | K18: 0.7773385449 | L18: 12.40963592 | M18: 0.3076268388 | N18: 6.204817958 | O18: 0.1538134194 | P18: 2.481927183 | Q18: 0.06152536777 | R18: 12.8816838 | S18: 0.3193286001 | T18: 11.78915412 | U18: 0.2922454969
A19: 8 | B19: 21066.97 | D19: 25680.63643 | E19: 636.6063483 | F19: 2140.053036 | G19: 53.05052903 | H19: 46.3738075 | I19: 1.14957666 | J19: 23.18741167 | K19: 0.5748009208 | L19: 12.9962735 | M19: 0.3221692046 | N19: 6.498136748 | O19: 0.1610846023 | P19: 2.599254699 | Q19: 0.06443384092 | R19: 13.27789581 | S19: 0.3291504394 | T19: 12.34645982 | U19: 0.3060607444
A20: 9 | B20: 21077.29 | D20: 25693.21651 | E20: 636.9182003 | F20: 2141.101376 | G20: 53.0765167 | H20: 46.3738075 | I20: 1.14957666 | J20: 23.18741167 | K20: 0.5748009208 | L20: 13.00263993 | M20: 0.3223270245 | N20: 6.501319967 | O20: 0.1611635122 | P20: 2.600527987 | Q20: 0.06446540489 | R20: 13.28426225 | S20: 0.3293082592 | T20: 12.35250794 | U20: 0.3062106732
A21: 10 | B21: 22028.23 | D21: 26852.41237 | E21: 665.6539151 | F21: 2237.701031 | G21: 55.47115959 | H21: 46.3738075 | I21: 1.14957666 | J21: 23.18741167 | K21: 0.5748009208 | L21: 13.58927752 | M21: 0.3368693902 | N21: 6.794638758 | O21: 0.1684346951 | P21: 2.717855503 | Q21: 0.06737387805 | R21: 13.87089983 | S21: 0.343850625 | T21: 12.90981364 | U21: 0.3200259207
A22: 11 | B22: 22038.57 | D22: 26865.01683 | E22: 665.9663715 | F22: 2238.751403 | G22: 55.49719763 | H22: 46.3738075 | I22: 1.14957666 | J22: 23.18741167 | K22: 0.5748009208 | L22: 13.59565629 | M22: 0.3370275159 | N22: 6.797828145 | O22: 0.168513758 | P22: 2.719131258 | Q22: 0.06740550319 | R22: 13.8772786 | S22: 0.3440087507 | T22: 12.91587348 | U22: 0.3201761401
A23: 12 | B23: 22989.52 | D23: 28024.22488 | E23: 694.7023885 | F23: 2335.352073 | G23: 57.8918657 | H23: 12.86146583 | I23: 0.3188274099 | J23: 0 | K23: 0 | L23: 14.18230004 | M23: 0.3515700346 | N23: 7.09115002 | O23: 0.1757850173 | P23: 2.836460008 | Q23: 0.07031400693 | R23: 14.26040611 | S23: 0.3535062335 | T23: 13.47318504 | U23: 0.3339915329
A24: 13 | B24: 22999.83 | D24: 28036.79277 | E24: 695.0139383 | F24: 2336.399398 | G24: 57.91782819 | H24: 11.81414167 | I24: 0.292864922 | J24: 0 | K24: 0 | L24: 14.18866031 | M24: 0.3517277016 | N24: 7.094330154 | O24: 0.1758638508 | P24: 2.837732062 | Q24: 0.07034554031 | R24: 14.26040611 | S24: 0.3535062335 | T24: 13.47922729 | U24: 0.3341413165
A25: 14 | B25: 23950.78 | D25: 29196.00082 | E25: 723.7499553 | F25: 2433.000068 | G25: 60.31249627 | H25: 0 | I25: 0 | J25: 0 | K25: 0 | L25: 14.77530406 | M25: 0.3662702203 | N25: 7.387652029 | O25: 0.1831351101 | P25: 2.955060812 | Q25: 0.07325404405 | R25: 14.77530406 | S25: 0.3662702203 | T25: 14.03653886 | U25: 0.3479567093
A26: 15 | B26: 23961.12 | D26: 29208.60528 | E26: 724.0624117 | F26: 2434.05044 | G26: 60.3385343 | H26: 0 | I26: 0 | J26: 0 | K26: 0 | L26: 14.78168283 | M26: 0.366428346 | N26: 7.390841417 | O26: 0.183214173 | P26: 2.956336567 | Q26: 0.0732856692 | R26: 14.78168283 | S26: 0.366428346 | T26: 14.04259869 | U26: 0.3481069287
A27: 16 | B27: 24912.06 | D27: 30367.80114 | E27: 752.7981264 | F27: 2530.650095 | G27: 62.7331772 | H27: 0 | I27: 0 | J27: 0 | K27: 0 | L27: 15.36832041 | M27: 0.3809707118 | N27: 7.684160207 | O27: 0.1904853559 | P27: 3.073664083 | Q27: 0.07619414235 | R27: 15.36832041 | S27: 0.3809707118 | T27: 14.59990439 | U27: 0.3619221762
A28: 17 | B28: 24922.38 | D28: 30380.38122 | E28: 753.1099785 | F28: 2531.698435 | G28: 62.75916487 | H28: 0 | I28: 0 | J28: 0 | K28: 0 | L28: 15.37468685 | M28: 0.3811285316 | N28: 7.687343426 | O28: 0.1905642658 | P28: 3.07493737 | Q28: 0.07622570632 | R28: 15.37468685 | S28: 0.3811285316 | T28: 14.60595251 | U28: 0.362072105
A29: 18 | B29: 25873.32 | D29: 31539.57708 | E29: 781.8456932 | F29: 2628.29809 | G29: 65.15380777 | H29: 0 | I29: 0 | J29: 0 | K29: 0 | L29: 15.96132443 | M29: 0.3956708974 | N29: 7.980662217 | O29: 0.1978354487 | P29: 3.192264887 | Q29: 0.07913417948 | R29: 15.96132443 | S29: 0.3956708974 | T29: 15.16325821 | U29: 0.3758873525
A30: 19 | B30: 25883.67 | D30: 31552.19373 | E30: 782.1584518 | F30: 2629.349477 | G30: 65.17987098 | H30: 0 | I30: 0 | J30: 0 | K30: 0 | L30: 15.96770938 | M30: 0.395829176 | N30: 7.983854689 | O30: 0.197914588 | P30: 3.193541876 | Q30: 0.0791658352 | R30: 15.96770938 | S30: 0.395829176 | T30: 15.16932391 | U30: 0.3760377172
A31: 20 | B31: 26834.61 | D31: 32711.38959 | E31: 810.8941666 | F31: 2725.949133 | G31: 67.57451388 | H31: 0 | I31: 0 | J31: 0 | K31: 0 | L31: 16.55434696 | M31: 0.4103715418 | N31: 8.277173479 | O31: 0.2051857709 | P31: 3.310869392 | Q31: 0.08207430836 | R31: 16.55434696 | S31: 0.4103715418 | T31: 15.72662961 | U31: 0.3898529647
A32: 21 | B32: 26844.92 | D32: 32723.95748 | E32: 811.2057164 | F32: 2726.996457 | G32: 67.60047637 | H32: 0 | I32: 0 | J32: 0 | K32: 0 | L32: 16.56070723 | M32: 0.4105292087 | N32: 8.280353613 | O32: 0.2052646044 | P32: 3.312141445 | Q32: 0.08210584174 | R32: 16.56070723 | S32: 0.4105292087 | T32: 15.73267187 | U32: 0.3900027483
A33: 22 | B33: 27795.87 | D33: 33883.16553 | E33: 839.9417334 | F33: 2823.597127 | G33: 69.99514445 | H33: 0 | I33: 0 | J33: 0 | K33: 0 | L33: 17.14735098 | M33: 0.4250717274 | N33: 8.573675488 | O33: 0.2125358637 | P33: 3.429470195 | Q33: 0.08501434548 | R33: 17.14735098 | S33: 0.4250717274 | T33: 16.28998343 | U33: 0.403818141
A34: 23 | B34: 28757.15 | D34: 35054.96585 | E34: 868.9899045 | F34: 2921.247154 | G34: 72.41582538 | H34: 0 | I34: 0 | J34: 0 | K34: 0 | L34: 17.74036733 | M34: 0.4397722189 | N34: 8.870183666 | O34: 0.2198861094 | P34: 3.548073467 | Q34: 0.08795444378 | R34: 17.74036733 | S34: 0.4397722189 | T34: 16.85334897 | U34: 0.417783608
A35: 24 | B35: 29708.1 | D35: 36214.1739 | E35: 897.7259215 | F35: 3017.847825 | G35: 74.81049346 | H35: 0 | I35: 0 | J35: 0 | K35: 0 | L35: 18.32701108 | M35: 0.4543147376 | N35: 9.163505541 | O35: 0.2271573688 | P35: 3.665402217 | Q35: 0.09086294752 | R35: 18.32701108 | S35: 0.4543147376 | T35: 17.41066053 | U35: 0.4315990007
A36: 25 | B36: 29718.41 | D36: 36226.74179 | E36: 898.0374713 | F36: 3018.895149 | G36: 74.83645594 | H36: 0 | I36: 0 | J36: 0 | K36: 0 | L36: 18.33337135 | M36: 0.4544724045 | N36: 9.166685676 | O36: 0.2272362023 | P36: 3.66667427 | Q36: 0.0908944809 | R36: 18.33337135 | S36: 0.4544724045 | T36: 17.41670278 | U36: 0.4317487843
A37: 26 | B37: 29718.41 | D37: 36226.74179 | E37: 898.0374713 | F37: 3018.895149 | G37: 74.83645594 | H37: 0 | I37: 0 | J37: 0 | K37: 0 | L37: 18.33337135 | M37: 0.4544724045 | N37: 9.166685676 | O37: 0.2272362023 | P37: 3.66667427 | Q37: 0.0908944809 | R37: 18.33337135 | S37: 0.4544724045 | T37: 17.41670278 | U37: 0.4317487843
A38: 27 | B38: 29728.76 | D38: 36239.35844 | E38: 898.3502299 | F38: 3019.946537 | G38: 74.86251916 | H38: 0 | I38: 0 | J38: 0 | K38: 0 | L38: 18.3397563 | M38: 0.4546306832 | N38: 9.169878148 | O38: 0.2273153416 | P38: 3.667951259 | Q38: 0.09092613663 | R38: 18.3397563 | S38: 0.4546306832 | T38: 17.42276848 | U38: 0.431899149

Sheet B2A
A1: B2A | E1: 290 | F1: BEGELEIDEND EN VERZORGEND PERSONEEL KLASSE 2A | Q1: Barema 16
A2: 20j. | T2: coëfficiënt: | U2: ='LOG4'!$U$4 -> 1.219
B4: JAARLOON | F4: MAANDLOON | H4: HAARDTOELAGE | J4: STANDPLAATS- | L4: UURLOON | R4: UURLOON MET
B5: 1 | J5: TOELAGE | L5: 38u | T5: 40u
B6: basis 01/01/2002 | D6: =Inhoud!$C$3 -> 2011-06-01 | F6: =D6 -> 2011-06-01 | L6: 1 | N6: 0.5 | P6: 0.2 | R6: HAARDTOELAGE
A8: 0 | B8: 17770.99 | D8: =B8*$U$2 -> 21662.83681 | E8: =D8/40.3399 -> 537.0076973 | F8: =B8/12*$U$2 -> 1805.236401 | G8: =F8/40.3399 -> 44.75064145 | H8: =((B8<19968.2)*913.03+(B8>19968.2)*(B8<20424.71)*(20424.71-B8+456.51)+(B8>20424.71)*(B8<22659.62)*456.51+(B8>22659.62)*(B8<23116.13)*(23116.13-B8))/12*$U$2 -> 92.74863083 | I8: =H8/40.3399 -> 2.299178502 | J8: =((B8<19968.2)*456.51+(B8>19968.2)*(B8<20196.46)*(20196.46-B8+228.26)+(B8>20196.46)*(B8<22659.62)*228.26+(B8>22659.62)*(B8<22887.88)*(22887.88-B8))/12*$U$2 -> 46.3738075 | K8: =J8/40.3399 -> 1.14957666 | L8: =D8/1976 -> 10.96297409 | M8: =L8/40.3399 -> 0.271765029 | N8: =L8/2 -> 5.481487047 | O8: =N8/40.3399 -> 0.1358825145 | P8: =L8/5 -> 2.192594819 | Q8: =P8/40.3399 -> 0.0543530058 | R8: =(F8+H8)/1976*12 -> 11.52622489 | S8: =R8/40.3399 -> 0.2857276515 | T8: =D8/2080 -> 10.41482539 | U8: =T8/40.3399 -> 0.2581767776
A9: =+A8+1 -> 1 | B9: 18046.03 | D9: 21998.11057 | E9: 545.3189168 | F9: 1833.175881 | G9: 45.44324306 | H9: 92.74863083 | I9: 2.299178502 | J9: 46.3738075 | K9: 1.14957666 | L9: 11.13264705 | M9: 0.2759711117 | N9: 5.566323525 | O9: 0.1379855559 | P9: 2.22652941 | Q9: 0.05519422234 | R9: 11.69589784 | S9: 0.2899337342 | T9: 10.5760147 | U9: 0.2621725561
A10: 2 | B10: 18659.52 | D10: 22745.95488 | E10: 563.857493 | F10: 1895.49624 | G10: 46.98812441 | H10: 92.74863083 | I10: 2.299178502 | J10: 46.3738075 | K10: 1.14957666 | L10: 11.51111077 | M10: 0.2853529823 | N10: 5.755555385 | O10: 0.1426764911 | P10: 2.302222154 | Q10: 0.05707059645 | R10: 12.07436156 | S10: 0.2993156047 | T10: 10.93555523 | U10: 0.2710853332
A11: 3 | B11: 19361.84 | D11: 23602.08296 | E11: 585.0803537 | F11: 1966.840247 | G11: 48.75669614 | H11: 92.74863083 | I11: 2.299178502 | J11: 46.3738075 | K11: 1.14957666 | L11: 11.94437397 | M11: 0.2960932964 | N11: 5.972186984 | O11: 0.1480466482 | P11: 2.388874794 | Q11: 0.05921865928 | R11: 12.50762476 | S11: 0.3100559189 | T11: 11.34715527 | U11: 0.2812886316
A12: 4 | B12: 20060.82 | D12: 24454.13958 | E12: 606.2022856 | F12: 2037.844965 | G12: 50.51685713 | H12: 83.33896667 | I12: 2.06591902 | J12: 36.966175 | K12: 0.9163675418 | L12: 12.37557671 | M12: 0.3067825332 | N12: 6.187788355 | O12: 0.1533912666 | P12: 2.475115342 | Q12: 0.06135650664 | R12: 12.8816838 | S12: 0.3193286001 | T12: 11.75679788 | U12: 0.2914434065
A13: 5 | B13: 20066.45 | D13: 24461.00255 | E13: 606.3724142 | F13: 2038.416879 | G13: 50.53103451 | H13: 82.7670525 | I13: 2.051741638 | J13: 36.39426083 | K13: 0.9021901599 | L13: 12.37904987 | M13: 0.3068686306 | N13: 6.189524937 | O13: 0.1534343153 | P13: 2.475809975 | Q13: 0.06137372613 | R13: 12.8816838 | S13: 0.3193286001 | T13: 11.76009738 | U13: 0.2915251991
A14: 6 | B14: 21062.67 | D14: 25675.39473 | E14: 636.47641 | F14: 2139.616228 | G14: 53.03970083 | H14: 46.3738075 | I14: 1.14957666 | J14: 23.18741167 | K14: 0.5748009208 | L14: 12.99362081 | M14: 0.3221034463 | N14: 6.496810407 | O14: 0.1610517232 | P14: 2.598724163 | Q14: 0.06442068927 | R14: 13.27524313 | S14: 0.3290846811 | T14: 12.34393977 | U14: 0.305998274
A15: 7 | B15: 21073.48 | D15: 25688.57212 | E15: 636.8030689 | F15: 2140.714343 | G15: 53.06692241 | H15: 46.3738075 | I15: 1.14957666 | J15: 23.18741167 | K15: 0.5748009208 | L15: 13.00028953 | M15: 0.3222687596 | N15: 6.500144767 | O15: 0.1611343798 | P15: 2.600057907 | Q15: 0.06445375192 | R15: 13.28191185 | S15: 0.3292499944 | T15: 12.35027506 | U15: 0.3061553216
A16: 8 | B16: 22069.7 | D16: 26902.9643 | E16: 666.9070647 | F16: 2241.913692 | G16: 55.57558873 | H16: 46.3738075 | I16: 1.14957666 | J16: 23.18741167 | K16: 0.5748009208 | L16: 13.61486048 | M16: 0.3375035753 | N16: 6.807430238 | O16: 0.1687517876 | P16: 2.722972095 | Q16: 0.06750071505 | R16: 13.89648279 | S16: 0.34448481 | T16: 12.93411745 | U16: 0.3206283965
A17: 9 | B17: 22080.55 | D17: 26916.19045 | E17: 667.2349324 | F17: 2243.015871 | G17: 55.60291103 | H17: 46.3738075 | I17: 1.14957666 | J17: 23.18741167 | K17: 0.5748009208 | L17: 13.62155387 | M17: 0.3376695002 | N17: 6.810776936 | O17: 0.1688347501 | P17: 2.724310774 | Q17: 0.06753390004 | R17: 13.90317618 | S17: 0.344650735 | T17: 12.94047618 | U17: 0.3207860252
A18: 10 | B18: 23076.77 | D18: 28130.58263 | E18: 697.3389282 | F18: 2344.215219 | G18: 58.11157735 | H18: 3.99832 | I18: 0.0991157638 | J18: 0 | K18: 0 | L18: 14.23612481 | M18: 0.3529043159 | N18: 7.118062406 | O18: 0.1764521579 | P18: 2.847224963 | Q18: 0.07058086318 | R18: 14.26040611 | S18: 0.3535062335 | T18: 13.52431857 | U18: 0.3352591001
A19: 11 | B19: 23087.58 | D19: 28143.76002 | E19: 697.6655872 | F19: 2345.313335 | G19: 58.13879893 | H19: 2.900204167 | I19: 0.07189418334 | J19: 0 | K19: 0 | L19: 14.24279353 | M19: 0.3530696291 | N19: 7.121396766 | O19: 0.1765348146 | P19: 2.848558706 | Q19: 0.07061392583 | R19: 14.26040611 | S19: 0.3535062335 | T19: 13.53065386 | U19: 0.3354161477
A20: 12 | B20: 24083.71 | D20: 29358.04249 | E20: 727.7668633 | F20: 2446.503541 | G20: 60.64723861 | H20: 0 | I20: 0 | J20: 0 | K20: 0 | L20: 14.85730895 | M20: 0.3683030685 | N20: 7.428654476 | O20: 0.1841515342 | P20: 2.97146179 | Q20: 0.0736606137 | R20: 14.85730895 | S20: 0.3683030685 | T20: 14.1144435 | U20: 0.3498879151
A21: 13 | B21: 24094.65 | D21: 29371.37835 | E21: 728.0974507 | F21: 2447.614863 | G21: 60.67478756 | H21: 0 | I21: 0 | J21: 0 | K21: 0 | L21: 14.86405787 | M21: 0.3684703698 | N21: 7.432028935 | O21: 0.1842351849 | P21: 2.972811574 | Q21: 0.07369407395 | R21: 14.86405787 | S21: 0.3684703698 | T21: 14.12085498 | U21: 0.3500468513
A22: 14 | B22: 25090.87 | D22: 30585.77053 | E22: 758.2014465 | F22: 2548.814211 | G22: 63.18345387 | H22: 0 | I22: 0 | J22: 0 | K22: 0 | L22: 15.47862881 | M22: 0.3837051855 | N22: 7.739314405 | O22: 0.1918525927 | P22: 3.095725762 | Q22: 0.07674103709 | R22: 15.47862881 | S22: 0.3837051855 | T22: 14.70469737 | U22: 0.3645199262
A23: 15 | B23: 25101.68 | D23: 30598.94792 | E23: 758.5281054 | F23: 2549.912327 | G23: 63.21067545 | H23: 0 | I23: 0 | J23: 0 | K23: 0 | L23: 15.48529753 | M23: 0.3838704987 | N23: 7.742648765 | O23: 0.1919352493 | P23: 3.097059506 | Q23: 0.07677409974 | R23: 15.48529753 | S23: 0.3838704987 | T23: 14.71103265 | U23: 0.3646769738
A24: 16 | B24: 26097.9 | D24: 31813.3401 | E24: 788.6321012 | F24: 2651.111675 | G24: 65.71934177 | H24: 0 | I24: 0 | J24: 0 | K24: 0 | L24: 16.09986847 | M24: 0.3991053144 | N24: 8.049934236 | O24: 0.1995526572 | P24: 3.219973694 | Q24: 0.07982106288 | R24: 16.09986847 | S24: 0.3991053144 | T24: 15.29487505 | U24: 0.3791500487
A25: 17 | B25: 26108.75 | D25: 31826.56625 | E25: 788.9599689 | F25: 2652.213854 | G25: 65.74666408 | H25: 0 | I25: 0 | J25: 0 | K25: 0 | L25: 16.10656187 | M25: 0.3992712393 | N25: 8.053280934 | O25: 0.1996356197 | P25: 3.221312373 | Q25: 0.07985424787 | R25: 16.10656187 | S25: 0.3992712393 | T25: 15.30123377 | U25: 0.3793076774
A26: 18 | B26: 27104.96 | D26: 33040.94624 | E26: 819.0636625 | F26: 2753.412187 | G26: 68.25530521 | H26: 0 | I26: 0 | J26: 0 | K26: 0 | L26: 16.72112664 | M26: 0.4145059021 | N26: 8.36056332 | O26: 0.207252951 | P26: 3.344225328 | Q26: 0.08290118042 | R26: 16.72112664 | S26: 0.4145059021 | T26: 15.88507031 | U26: 0.393780607
A27: 19 | B27: 27115.78 | D27: 33054.13582 | E27: 819.3906237 | F27: 2754.511318 | G27: 68.28255197 | H27: 0 | I27: 0 | J27: 0 | K27: 0 | L27: 16.72780153 | M27: 0.4146713683 | N27: 8.363900764 | O27: 0.2073356841 | P27: 3.345560306 | Q27: 0.08293427365 | R27: 16.72780153 | S27: 0.4146713683 | T27: 15.89141145 | U27: 0.3939377998
A28: 20 | B28: 28112 | D28: 34268.528 | E28: 849.4946195 | F28: 2855.710667 | G28: 70.79121829 | H28: 0 | I28: 0 | J28: 0 | K28: 0 | L28: 17.34237247 | M28: 0.4299061839 | N28: 8.671186235 | O28: 0.214953092 | P28: 3.468474494 | Q28: 0.08598123679 | R28: 17.34237247 | S28: 0.4299061839 | T28: 16.47525385 | U28: 0.4084108747
A29: 21 | B29: 28122.85 | D29: 34281.75415 | E29: 849.8224872 | F29: 2856.812846 | G29: 70.8185406 | H29: 0 | I29: 0 | J29: 0 | K29: 0 | L29: 17.34906587 | M29: 0.4300721089 | N29: 8.674532933 | O29: 0.2150360544 | P29: 3.469813173 | Q29: 0.08601442178 | R29: 17.34906587 | S29: 0.4300721089 | T29: 16.48161257 | U29: 0.4085685034
A30: 22 | B30: 29119.06 | D30: 35496.13414 | E30: 879.9261808 | F30: 2958.011178 | G30: 73.32718173 | H30: 0 | I30: 0 | J30: 0 | K30: 0 | L30: 17.96363064 | M30: 0.4453067716 | N30: 8.981815319 | O30: 0.2226533858 | P30: 3.592726128 | Q30: 0.08906135433 | R30: 17.96363064 | S30: 0.4453067716 | T30: 17.06544911 | U30: 0.4230414331
A31: 23 | B31: 30126.1 | D31: 36723.7159 | E31: 910.3571377 | F31: 3060.309658 | G31: 75.86309481 | H31: 0 | I31: 0 | J31: 0 | K31: 0 | L31: 18.58487647 | M31: 0.4607070535 | N31: 9.292438234 | O31: 0.2303535268 | P31: 3.716975294 | Q31: 0.0921414107 | R31: 18.58487647 | S31: 0.4607070535 | T31: 17.65563264 | U31: 0.4376717008
A32: 24 | B32: 31122.32 | D32: 37938.10808 | E32: 940.4611335 | F32: 3161.509007 | G32: 78.37176113 | H32: 0 | I32: 0 | J32: 0 | K32: 0 | L32: 19.19944741 | M32: 0.4759418692 | N32: 9.599723704 | O32: 0.2379709346 | P32: 3.839889482 | Q32: 0.09518837384 | R32: 19.19944741 | S32: 0.4759418692 | T32: 18.23947504 | U32: 0.4521447757
A33: 25 | B33: 31133.13 | D33: 37951.28547 | E33: 940.7877925 | F33: 3162.607123 | G33: 78.39898271 | H33: 0 | I33: 0 | J33: 0 | K33: 0 | L33: 19.20611613 | M33: 0.4761071824 | N33: 9.603058064 | O33: 0.2380535912 | P33: 3.841223226 | Q33: 0.09522143649 | R33: 19.20611613 | S33: 0.4761071824 | T33: 18.24581032 | U33: 0.4523018233
A34: 26 | B34: 31133.13 | D34: 37951.28547 | E34: 940.7877925 | F34: 3162.607123 | G34: 78.39898271 | H34: 0 | I34: 0 | J34: 0 | K34: 0 | L34: 19.20611613 | M34: 0.4761071824 | N34: 9.603058064 | O34: 0.2380535912 | P34: 3.841223226 | Q34: 0.09522143649 | R34: 19.20611613 | S34: 0.4761071824 | T34: 18.24581032 | U34: 0.4523018233
A35: 27 | B35: 31143.98 | D35: 37964.51162 | E35: 941.1156602 | F35: 3163.709302 | G35: 78.42630501 | H35: 0 | I35: 0 | J35: 0 | K35: 0 | L35: 19.21280952 | M35: 0.4762731074 | N35: 9.606404762 | O35: 0.2381365537 | P35: 3.842561905 | Q35: 0.09525462148 | R35: 19.21280952 | S35: 0.4762731074 | T35: 18.25216905 | U35: 0.452459452

Sheet B1C
A1: B1C | E1: 310 | F1: OPVOEDEND PERSONEEL KLASSE 1 | Q1: Barema 17
A2: 21j. | T2: coëfficiënt: | U2: ='LOG4'!$U$4 -> 1.219
B4: JAARLOON | F4: MAANDLOON | H4: HAARDTOELAGE | J4: STANDPLAATS- | L4: UURLOON | R4: UURLOON MET
B5: 1 | J5: TOELAGE | L5: 38u | T5: 40u
B6: basis 01/01/2002 | D6: =Inhoud!$C$3 -> 2011-06-01 | F6: =D6 -> 2011-06-01 | L6: 1 | N6: 0.5 | P6: 0.2 | R6: HAARDTOELAGE
A8: 0 | B8: 20228.9 | D8: =B8*$U$2 -> 24659.0291 | E8: =D8/40.3399 -> 611.2813641 | F8: =B8/12*$U$2 -> 2054.919092 | G8: =F8/40.3399 -> 50.94011368 | H8: =((B8<19968.2)*913.03+(B8>19968.2)*(B8<20424.71)*(20424.71-B8+456.51)+(B8>20424.71)*(B8<22659.62)*456.51+(B8>22659.62)*(B8<23116.13)*(23116.13-B8))/12*$U$2 -> 66.26484 | I8: =H8/40.3399 -> 1.642662476 | J8: =((B8<19968.2)*456.51+(B8>19968.2)*(B8<20196.46)*(20196.46-B8+228.26)+(B8>20196.46)*(B8<22659.62)*228.26+(B8>22659.62)*(B8<22887.88)*(22887.88-B8))/12*$U$2 -> 23.18741167 | K8: =J8/40.3399 -> 0.5748009208 | L8: =D8/1976 -> 12.47926574 | M8: =L8/40.3399 -> 0.3093529171 | N8: =L8/2 -> 6.239632869 | O8: =N8/40.3399 -> 0.1546764585 | P8: =L8/5 -> 2.495853148 | Q8: =P8/40.3399 -> 0.06187058341 | R8: =(F8+H8)/1976*12 -> 12.8816838 | S8: =R8/40.3399 -> 0.3193286001 | T8: =D8/2080 -> 11.85530245 | U8: =T8/40.3399 -> 0.2938852712
A9: =+A8+1 -> 1 | B9: 20614.2 | D9: 25128.7098 | E9: 622.9244445 | F9: 2094.05915 | G9: 51.91037038 | H9: 46.3738075 | I9: 1.14957666 | J9: 23.18741167 | K9: 0.5748009208 | L9: 12.7169584 | M9: 0.3152451642 | N9: 6.3584792 | O9: 0.1576225821 | P9: 2.54339168 | Q9: 0.06304903285 | R9: 12.99858071 | S9: 0.322226399 | T9: 12.08111048 | U9: 0.299482906
A10: 2 | B10: 21206.19 | D10: 25850.34561 | E10: 640.813329 | F10: 2154.195468 | G10: 53.40111075 | H10: 46.3738075 | I10: 1.14957666 | J10: 23.18741167 | K10: 0.5748009208 | L10: 13.08215871 | M10: 0.3242982434 | N10: 6.541079355 | O10: 0.1621491217 | P10: 2.616431742 | Q10: 0.06485964868 | R10: 13.36378102 | S10: 0.3312794782 | T10: 12.42805077 | U10: 0.3080833312
A11: 3 | B11: 22005.19 | D11: 26824.32661 | E11: 664.9576873 | F11: 2235.360551 | G11: 55.41314061 | H11: 46.3738075 | I11: 1.14957666 | J11: 23.18741167 | K11: 0.5748009208 | L11: 13.57506407 | M11: 0.3365170482 | N11: 6.787532037 | O11: 0.1682585241 | P11: 2.715012815 | Q11: 0.06730340965 | R11: 13.85668639 | S11: 0.343498283 | T11: 12.89631087 | U11: 0.3196911958
A12: 4 | B12: 22799.46 | D12: 27792.54174 | E12: 688.9591134 | F12: 2316.045145 | G12: 57.41325945 | H12: 32.16839417 | I12: 0.7974336616 | J12: 8.981998333 | K12: 0.2226579226 | L12: 14.06505149 | M12: 0.3486635189 | N12: 7.032525744 | O12: 0.1743317595 | P12: 2.813010298 | Q12: 0.06973270379 | R12: 14.26040611 | S12: 0.3535062335 | T12: 13.36179891 | U12: 0.331230343
A13: 5 | B13: 22807.51 | D13: 27802.35469 | E13: 689.2023701 | F13: 2316.862891 | G13: 57.43353084 | H13: 31.35064833 | I13: 0.7771622719 | J13: 8.1642525 | K13: 0.2023865329 | L13: 14.07001756 | M13: 0.3487866245 | N13: 7.035008778 | O13: 0.1743933123 | P13: 2.814003511 | Q13: 0.06975732491 | R13: 14.26040611 | S13: 0.3535062335 | T13: 13.36651668 | U13: 0.3313472933
A14: 6 | B14: 23939.58 | D14: 29182.34802 | E14: 723.4115112 | F14: 2431.862335 | G14: 60.2842926 | H14: 0 | I14: 0 | J14: 0 | K14: 0 | L14: 14.76839475 | M14: 0.3660989429 | N14: 7.384197373 | O14: 0.1830494715 | P14: 2.953678949 | Q14: 0.07321978858 | R14: 14.76839475 | S14: 0.3660989429 | T14: 14.02997501 | U14: 0.3477939958
A15: 7 | B15: 23947.66 | D15: 29192.19754 | E15: 723.6556744 | F15: 2432.683128 | G15: 60.30463953 | H15: 0 | I15: 0 | J15: 0 | K15: 0 | L15: 14.77337932 | M15: 0.3662225073 | N15: 7.386689661 | O15: 0.1831112536 | P15: 2.954675864 | Q15: 0.07324450146 | R15: 14.77337932 | S15: 0.3662225073 | T15: 14.03471036 | U15: 0.3479113819
A16: 8 | B16: 25079.74 | D16: 30572.20306 | E16: 757.8651177 | F16: 2547.683588 | G16: 63.15542647 | H16: 0 | I16: 0 | J16: 0 | K16: 0 | L16: 15.47176268 | M16: 0.3835349786 | N16: 7.735881341 | O16: 0.1917674893 | P16: 3.094352536 | Q16: 0.07670699571 | R16: 15.47176268 | S16: 0.3835349786 | T16: 14.69817455 | U16: 0.3643582296
A17: 9 | B17: 25090.27 | D17: 30585.03913 | E17: 758.1833155 | F17: 2548.753261 | G17: 63.18194296 | H17: 0 | I17: 0 | J17: 0 | K17: 0 | L17: 15.47825867 | M17: 0.3836960099 | N17: 7.739129335 | O17: 0.1918480049 | P17: 3.095651734 | Q17: 0.07673920198 | R17: 15.47825867 | S17: 0.3836960099 | T17: 14.70434574 | U17: 0.3645112094
A18: 10 | B18: 26222.34 | D18: 31965.03246 | E18: 792.3924566 | F18: 2663.752705 | G18: 66.03270472 | H18: 0 | I18: 0 | J18: 0 | K18: 0 | L18: 16.17663586 | M18: 0.4010083282 | N18: 8.08831793 | O18: 0.2005041641 | P18: 3.235327172 | Q18: 0.08020166565 | R18: 16.17663586 | S18: 0.4010083282 | T18: 15.36780407 | U18: 0.3809579118
A19: 11 | B19: 26234.63 | D19: 31980.01397 | E19: 792.7638385 | F19: 2665.001164 | G19: 66.06365321 | H19: 0 | I19: 0 | J19: 0 | K19: 0 | L19: 16.1842176 | M19: 0.4011962746 | N19: 8.092108798 | O19: 0.2005981373 | P19: 3.236843519 | Q19: 0.08023925491 | R19: 16.1842176 | S19: 0.4011962746 | T19: 15.37500672 | U19: 0.3811364608
A20: 12 | B20: 27366.71 | D20: 33360.01949 | E20: 826.9732818 | F20: 2780.001624 | G20: 68.91444015 | H20: 0 | I20: 0 | J20: 0 | K20: 0 | L20: 16.88260096 | M20: 0.4185087458 | N20: 8.441300478 | O20: 0.2092543729 | P20: 3.376520191 | Q20: 0.08370174917 | R20: 16.88260096 | S20: 0.4185087458 | T20: 16.03847091 | U20: 0.3975833086
A21: 13 | B21: 27379 | D21: 33375.001 | E21: 827.3446637 | F21: 2781.250083 | G21: 68.94538864 | H21: 0 | I21: 0 | J21: 0 | K21: 0 | L21: 16.89018269 | M21: 0.4186966922 | N21: 8.445091346 | O21: 0.2093483461 | P21: 3.378036538 | Q21: 0.08373933843 | R21: 16.89018269 | S21: 0.4186966922 | T21: 16.04567356 | U21: 0.3977618576
A22: 14 | B22: 28511.07 | D22: 34754.99433 | E22: 861.5538048 | F22: 2896.249528 | G22: 71.7961504 | H22: 0 | I22: 0 | J22: 0 | K22: 0 | L22: 17.58855988 | M22: 0.4360090105 | N22: 8.794279942 | O22: 0.2180045053 | P22: 3.517711977 | Q22: 0.0872018021 | R22: 17.58855988 | S22: 0.4360090105 | T22: 16.70913189 | U22: 0.41420856
A23: 15 | B23: 28523.4 | D23: 34770.0246 | E23: 861.9263955 | F23: 2897.50205 | G23: 71.82719962 | H23: 0 | I23: 0 | J23: 0 | K23: 0 | L23: 17.5961663 | M23: 0.4361975685 | N23: 8.798083148 | O23: 0.2180987843 | P23: 3.519233259 | Q23: 0.08723951371 | R23: 17.5961663 | S23: 0.4361975685 | T23: 16.71635798 | U23: 0.4143876901
A24: 16 | B24: 29655.47 | D24: 36150.01793 | E24: 896.1355365 | F24: 3012.501494 | G24: 74.67796138 | H24: 0 | I24: 0 | J24: 0 | K24: 0 | L24: 18.29454349 | M24: 0.4535098869 | N24: 9.147271743 | O24: 0.2267549435 | P24: 3.658908697 | Q24: 0.09070197738 | R24: 18.29454349 | S24: 0.4535098869 | T24: 17.37981631 | U24: 0.4308343926
A25: 17 | B25: 29667.76 | D25: 36164.99944 | E25: 896.5069185 | F25: 3013.749953 | G25: 74.70890987 | H25: 0 | I25: 0 | J25: 0 | K25: 0 | L25: 18.30212522 | M25: 0.4536978332 | N25: 9.151062611 | O25: 0.2268489166 | P25: 3.660425045 | Q25: 0.09073956665 | R25: 18.30212522 | S25: 0.4536978332 | T25: 17.38701896 | U25: 0.4310129416
A26: 18 | B26: 30799.83 | D26: 37544.99277 | E26: 930.7160595 | F26: 3128.749398 | G26: 77.55967163 | H26: 0 | I26: 0 | J26: 0 | K26: 0 | L26: 19.00050241 | M26: 0.4710101516 | N26: 9.500251207 | O26: 0.2355050758 | P26: 3.800100483 | Q26: 0.09420203032 | R26: 19.00050241 | S26: 0.4710101516 | T26: 18.05047729 | U26: 0.447459644
A27: 19 | B27: 30812.13 | D27: 37559.98647 | E27: 931.0877436 | F27: 3129.998873 | G27: 77.5906453 | H27: 0 | I27: 0 | J27: 0 | K27: 0 | L27: 19.00809032 | M27: 0.4711982508 | N27: 9.504045159 | O27: 0.2355991254 | P27: 3.801618064 | Q27: 0.09423965017 | R27: 19.00809032 | S27: 0.4711982508 | T27: 18.0576858 | U27: 0.4476383383
A28: 20 | B28: 31944.2 | D28: 38939.9798 | E28: 965.2968847 | F28: 3244.998317 | G28: 80.44140706 | H28: 0 | I28: 0 | J28: 0 | K28: 0 | L28: 19.70646751 | M28: 0.4885105692 | N28: 9.853233755 | O28: 0.2442552846 | P28: 3.941293502 | Q28: 0.09770211384 | R28: 19.70646751 | S28: 0.4885105692 | T28: 18.72114413 | U28: 0.4640850407
A29: 21 | B29: 31956.49 | D29: 38954.96131 | E29: 965.6682667 | F29: 3246.246776 | G29: 80.47235555 | H29: 0 | I29: 0 | J29: 0 | K29: 0 | L29: 19.71404925 | M29: 0.4886985155 | N29: 9.857024623 | O29: 0.2443492578 | P29: 3.942809849 | Q29: 0.0977397031 | R29: 19.71404925 | S29: 0.4886985155 | T29: 18.72834678 | U29: 0.4642635897
A30: 22 | B30: 33088.56 | D30: 40334.95464 | E30: 999.8774077 | F30: 3361.24622 | G30: 83.32311731 | H30: 0 | I30: 0 | J30: 0 | K30: 0 | L30: 20.41242644 | M30: 0.5060108339 | N30: 10.20621322 | O30: 0.2530054169 | P30: 4.082485287 | Q30: 0.1012021668 | R30: 20.41242644 | S30: 0.5060108339 | T30: 19.39180512 | U30: 0.4807102922
A31: 23 | B31: 34232.96 | D31: 41729.97824 | E31: 1034.459139 | F31: 3477.498187 | G31: 86.20492829 | H31: 0 | I31: 0 | J31: 0 | K31: 0 | L31: 21.11841004 | M31: 0.5235117103 | N31: 10.55920502 | O31: 0.2617558551 | P31: 4.223682008 | Q31: 0.1047023421 | R31: 21.11841004 | S31: 0.5235117103 | T31: 20.06248954 | U31: 0.4973361247
A32: 24 | B32: 35365.03 | D32: 43109.97157 | E32: 1068.668281 | F32: 3592.497631 | G32: 89.05569004 | H32: 0 | I32: 0 | J32: 0 | K32: 0 | L32: 21.81678723 | M32: 0.5408240286 | N32: 10.90839362 | O32: 0.2704120143 | P32: 4.363357446 | Q32: 0.1081648057 | R32: 21.81678723 | S32: 0.5408240286 | T32: 20.72594787 | U32: 0.5137828272
A33: 25 | B33: 35377.33 | D33: 43124.96527 | E33: 1069.039965 | F33: 3593.747106 | G33: 89.08666372 | H33: 0 | I33: 0 | J33: 0 | K33: 0 | L33: 21.82437514 | M33: 0.5410121279 | N33: 10.91218757 | O33: 0.2705060639 | P33: 4.364875027 | Q33: 0.1082024256 | R33: 21.82437514 | S33: 0.5410121279 | T33: 20.73315638 | U33: 0.5139615215
A34: 26 | B34: 35377.33 | D34: 43124.96527 | E34: 1069.039965 | F34: 3593.747106 | G34: 89.08666372 | H34: 0 | I34: 0 | J34: 0 | K34: 0 | L34: 21.82437514 | M34: 0.5410121279 | N34: 10.91218757 | O34: 0.2705060639 | P34: 4.364875027 | Q34: 0.1082024256 | R34: 21.82437514 | S34: 0.5410121279 | T34: 20.73315638 | U34: 0.5139615215
A35: 27 | B35: 35389.62 | D35: 43139.94678 | E35: 1069.411347 | F35: 3594.995565 | G35: 89.11761222 | H35: 0 | I35: 0 | J35: 0 | K35: 0 | L35: 21.83195687 | M35: 0.5412000742 | N35: 10.91597844 | O35: 0.2706000371 | P35: 4.366391374 | Q35: 0.1082400148 | R35: 21.83195687 | S35: 0.5412000742 | T35: 20.74035903 | U35: 0.5141400705

Sheet B1b(HO)
E1: 320 | F1: HOOFDOPVOEDER | Q1: Barema 18
E3: 560 | F3: Diensthoofd maatschappelijk werker
E4: 570 | F4: Diensthoofd paramedische dienst
A5: 21j. | T5: coëfficiënt: | U5: ='LOG4'!$U$4 -> 1.219
B7: JAARLOON | F7: MAANDLOON | H7: HAARDTOELAGE | J7: STANDPLAATS- | L7: UURLOON | R7: UURLOON MET
B8: 1 | J8: TOELAGE | L8: 38u | T8: 40u
B9: basis 01/01/2002 | D9: =Inhoud!$C$3 -> 2011-06-01 | F9: =D9 -> 2011-06-01 | L9: 1 | N9: 0.5 | P9: 0.2 | R9: HAARDTOELAGE
A11: 0 | B11: 22760.45 | D11: =B11*$U$5 -> 27744.98855 | E11: =D11/40.3399 -> 687.7803006 | F11: =B11/12*$U$5 -> 2312.082379 | G11: =F11/40.3399 -> 57.31502505 | H11: =((B11<19968.2)*913.03+(B11>19968.2)*(B11<20424.71)*(20424.71-B11+456.51)+(B11>20424.71)*(B11<22659.62)*456.51+(B11>22659.62)*(B11<23116.13)*(23116.13-B11))/12*$U$5 -> 36.13116 | I11: =H11/40.3399 -> 0.8956680607 | J11: =((B11<19968.2)*456.51+(B11>19968.2)*(B11<20196.46)*(20196.46-B11+228.26)+(B11>20196.46)*(B11<22659.62)*228.26+(B11>22659.62)*(B11<22887.88)*(22887.88-B11))/12*$U$5 -> 12.94476417 | K11: =J11/40.3399 -> 0.3208923217 | L11: =D11/1976 -> 14.04098611 | M11: =L11/40.3399 -> 0.3480669538 | N11: =L11/2 -> 7.020493054 | O11: =N11/40.3399 -> 0.1740334769 | P11: =L11/5 -> 2.808197222 | Q11: =P11/40.3399 -> 0.06961339075 | R11: =(F11+H11)/1976*12 -> 14.26040611 | S11: =R11/40.3399 -> 0.3535062335 | T11: =D11/2080 -> 13.3389368 | U11: =T11/40.3399 -> 0.3306636061
A12: =+A11+1 -> 1 | B12: 23145.78 | D12: 28214.70582 | E12: 699.4242876 | F12: 2351.225485 | G12: 58.2853573 | H12: 0 | I12: 0 | J12: 0 | K12: 0 | L12: 14.27869728 | M12: 0.3539596597 | N12: 7.139348639 | O12: 0.1769798299 | P12: 2.855739455 | Q12: 0.07079193194 | R12: 14.27869728 | S12: 0.3539596597 | T12: 13.56476241 | U12: 0.3362616767
A13: 2 | B13: 23531.08 | D13: 28684.38652 | E13: 711.067368 | F13: 2390.365543 | G13: 59.255614 | H13: 0 | I13: 0 | J13: 0 | K13: 0 | L13: 14.51638994 | M13: 0.3598519069 | N13: 7.25819497 | O13: 0.1799259535 | P13: 2.903277988 | Q13: 0.07197038138 | R13: 14.51638994 | S13: 0.3598519069 | T13: 13.79057044 | U13: 0.3418593116
A14: 3 | B14: 23915.97 | D14: 29153.56743 | E14: 722.698059 | F14: 2429.463953 | G14: 60.22483825 | H14: 0 | I14: 0 | J14: 0 | K14: 0 | L14: 14.75382967 | M14: 0.3657378841 | N14: 7.376914836 | O14: 0.1828689421 | P14: 2.950765934 | Q14: 0.07314757682 | R14: 14.75382967 | S14: 0.3657378841 | T14: 14.01613819 | U14: 0.3474509899
A15: 4 | B15: 24408.04 | D15: 29753.40076 | E15: 737.5675388 | F15: 2479.450063 | G15: 61.46396157 | H15: 0 | I15: 0 | J15: 0 | K15: 0 | L15: 15.05738905 | M15: 0.3732629245 | N15: 7.528694524 | O15: 0.1866314623 | P15: 3.01147781 | Q15: 0.0746525849 | R15: 15.05738905 | S15: 0.3732629245 | T15: 14.3045196 | U15: 0.3545997783
A16: 5 | B16: 24576.34 | D16: 29958.55846 | E16: 742.6532654 | F16: 2496.546538 | G16: 61.88777211 | H16: 0 | I16: 0 | J16: 0 | K16: 0 | L16: 15.1612138 | M16: 0.3758366728 | N16: 7.580606898 | O16: 0.1879183364 | P16: 3.032242759 | Q16: 0.07516733455 | R16: 15.1612138 | S16: 0.3758366728 | T16: 14.40315311 | U16: 0.3570448391
A17: 6 | B17: 25627.46 | D17: 31239.87374 | E17: 774.4162415 | F17: 2603.322812 | G17: 64.53468679 | H17: 0 | I17: 0 | J17: 0 | K17: 0 | L17: 15.8096527 | M17: 0.3919110534 | N17: 7.904826351 | O17: 0.1959555267 | P17: 3.16193054 | Q17: 0.07838221068 | R17: 15.8096527 | S17: 0.3919110534 | T17: 15.01917007 | U17: 0.3723155007
A18: 7 | B18: 25635.51 | D18: 31249.68669 | E18: 774.6594982 | F18: 2604.140558 | G18: 64.55495818 | H18: 0 | I18: 0 | J18: 0 | K18: 0 | L18: 15.81461877 | M18: 0.392034159 | N18: 7.907309385 | O18: 0.1960170795 | P18: 3.162923754 | Q18: 0.0784068318 | R18: 15.81461877 | S18: 0.392034159 | T18: 15.02388783 | U18: 0.372432451
A19: 8 | B19: 26846.84 | D19: 32726.29796 | E19: 811.2637354 | F19: 2727.191497 | G19: 67.60531128 | H19: 0 | I19: 0 | J19: 0 | K19: 0 | L19: 16.56189168 | M19: 0.4105585706 | N19: 8.28094584 | O19: 0.2052792853 | P19: 3.312378336 | Q19: 0.08211171411 | R19: 16.56189168 | S19: 0.4105585706 | T19: 15.7337971 | U19: 0.390030642
A20: 9 | B20: 26854.92 | D20: 32736.14748 | E20: 811.5078986 | F20: 2728.01229 | G20: 67.62565822 | H20: 0 | I20: 0 | J20: 0 | K20: 0 | L20: 16.56687626 | M20: 0.4106821349 | N20: 8.283438128 | O20: 0.2053410675 | P20: 3.313375251 | Q20: 0.08213642699 | R20: 16.56687626 | S20: 0.4106821349 | T20: 15.73853244 | U20: 0.3901480282
A21: 10 | B21: 28066.22 | D21: 34212.72218 | E21: 848.1112293 | F21: 2851.060182 | G21: 70.67593578 | H21: 0 | I21: 0 | J21: 0 | K21: 0 | L21: 17.31413066 | M21: 0.4292060877 | N21: 8.657065329 | O21: 0.2146030439 | P21: 3.462826132 | Q21: 0.08584121754 | R21: 17.31413066 | S21: 0.4292060877 | T21: 16.44842413 | U21: 0.4077457833
A22: 11 | B22: 28074.3 | D22: 34222.5717 | E22: 848.3553926 | F22: 2851.880975 | G22: 70.69628271 | H22: 0 | I22: 0 | J22: 0 | K22: 0 | L22: 17.31911523 | M22: 0.4293296521 | N22: 8.659557616 | O22: 0.2146648261 | P22: 3.463823047 | Q22: 0.08586593042 | R22: 17.31911523 | S22: 0.4293296521 | T22: 16.45315947 | U22: 0.4078631695
A23: 12 | B23: 29285.6 | D23: 35699.1464 | E23: 884.9587232 | F23: 2974.928867 | G23: 73.74656027 | H23: 0 | I23: 0 | J23: 0 | K23: 0 | L23: 18.06636964 | M23: 0.4478536049 | N23: 9.033184818 | O23: 0.2239268024 | P23: 3.613273927 | Q23: 0.08957072098 | R23: 18.06636964 | S23: 0.4478536049 | T23: 17.16305115 | U23: 0.4254609246
A24: 13 | B24: 29294.91 | D24: 35710.49529 | E24: 885.2400549 | F24: 2975.874607 | G24: 73.77000457 | H24: 0 | I24: 0 | J24: 0 | K24: 0 | L24: 18.072113 | M24: 0.4479959792 | N24: 9.036056501 | O24: 0.2239979896 | P24: 3.6144226 | Q24: 0.08959919584 | R24: 18.072113 | S24: 0.4479959792 | T24: 17.16850735 | U24: 0.4255961802
A25: 14 | B25: 30506.21 | D25: 37187.06999 | E25: 921.8433856 | F25: 3098.922499 | G25: 76.82028213 | H25: 0 | I25: 0 | J25: 0 | K25: 0 | L25: 18.8193674 | M25: 0.466519932 | N25: 9.409683702 | O25: 0.233259966 | P25: 3.763873481 | Q25: 0.09330398639 | R25: 18.8193674 | S25: 0.466519932 | T25: 17.87839903 | U25: 0.4431939354
A26: 15 | B26: 30519.39 | D26: 37203.13641 | E26: 922.2416617 | F26: 3100.261367 | G26: 76.85347181 | H26: 0 | I26: 0 | J26: 0 | K26: 0 | L26: 18.82749818 | M26: 0.4667214887 | N26: 9.413749092 | O26: 0.2333607444 | P26: 3.765499637 | Q26: 0.09334429775 | R26: 18.82749818 | S26: 0.4667214887 | T26: 17.88612327 | U26: 0.4433854143
A27: 16 | B27: 31730.69 | D27: 38679.71111 | E27: 958.8449924 | F27: 3223.309259 | G27: 79.90374937 | H27: 0 | I27: 0 | J27: 0 | K27: 0 | L27: 19.57475259 | M27: 0.4852454415 | N27: 9.787376293 | O27: 0.2426227208 | P27: 3.914950517 | Q27: 0.0970490883 | R27: 19.57475259 | S27: 0.4852454415 | T27: 18.59601496 | U27: 0.4609831694
A28: 17 | B28: 31743.86 | D28: 38695.76534 | E28: 959.2429664 | F28: 3224.647112 | G28: 79.93691387 | H28: 0 | I28: 0 | J28: 0 | K28: 0 | L28: 19.5828772 | M28: 0.4854468453 | N28: 9.791438598 | O28: 0.2427234227 | P28: 3.916575439 | Q28: 0.09708936907 | R28: 19.5828772 | S28: 0.4854468453 | T28: 18.60373334 | U28: 0.4611745031
A29: 18 | B29: 32955.16 | D29: 40172.34004 | E29: 995.8462971 | F29: 3347.695003 | G29: 82.98719142 | H29: 0 | I29: 0 | J29: 0 | K29: 0 | L29: 20.3301316 | M29: 0.5039707981 | N29: 10.1650658 | O29: 0.2519853991 | P29: 4.06602632 | Q29: 0.1007941596 | R29: 20.3301316 | S29: 0.5039707981 | T29: 19.31362502 | U29: 0.4787722582
A30: 19 | B30: 32968.34 | D30: 40188.40646 | E30: 996.2445732 | F30: 3349.033872 | G30: 83.0203811 | H30: 0 | I30: 0 | J30: 0 | K30: 0 | L30: 20.33826238 | M30: 0.5041723549 | N30: 10.16913119 | O30: 0.2520861774 | P30: 4.067652476 | Q30: 0.100834471 | R30: 20.33826238 | S30: 0.5041723549 | T30: 19.32134926 | U30: 0.4789637371
A31: 20 | B31: 34179.64 | D31: 41664.98116 | E31: 1032.847904 | F31: 3472.081763 | G31: 86.07065866 | H31: 0 | I31: 0 | J31: 0 | K31: 0 | L31: 21.08551678 | M31: 0.5226963077 | N31: 10.54275839 | O31: 0.2613481538 | P31: 4.217103356 | Q31: 0.1045392615 | R31: 21.08551678 | S31: 0.5226963077 | T31: 20.03124094 | U31: 0.4965614923
A32: 21 | B32: 34192.81 | D32: 41681.03539 | E32: 1033.245878 | F32: 3473.419616 | G32: 86.10382316 | H32: 0 | I32: 0 | J32: 0 | K32: 0 | L32: 21.09364139 | M32: 0.5228977115 | N32: 10.5468207 | O32: 0.2614488557 | P32: 4.218728278 | Q32: 0.1045795423 | R32: 21.09364139 | S32: 0.5228977115 | T32: 20.03895932 | U32: 0.4967528259
A33: 22 | B33: 35404.14 | D33: 43157.64666 | E33: 1069.850115 | F33: 3596.470555 | G33: 89.15417626 | H33: 0 | I33: 0 | J33: 0 | K33: 0 | L33: 21.8409143 | M33: 0.541422123 | N33: 10.92045715 | O33: 0.2707110615 | P33: 4.36818286 | Q33: 0.1082844246 | R33: 21.8409143 | S33: 0.541422123 | T33: 20.74886859 | U33: 0.5143510169
A34: 23 | B34: 36628.62 | D34: 44650.28778 | E34: 1106.851722 | F34: 3720.857315 | G34: 92.2376435 | H34: 0 | I34: 0 | J34: 0 | K34: 0 | L34: 22.59629948 | M34: 0.5601476326 | N34: 11.29814974 | O34: 0.2800738163 | P34: 4.519259897 | Q34: 0.1120295265 | R34: 22.59629948 | S34: 0.5601476326 | T34: 21.46648451 | U34: 0.532140251
A35: 24 | B35: 37839.92 | D35: 46126.86248 | E35: 1143.455053 | F35: 3843.905207 | G35: 95.28792106 | H35: 0 | I35: 0 | J35: 0 | K35: 0 | L35: 23.34355389 | M35: 0.5786715854 | N35: 11.67177694 | O35: 0.2893357927 | P35: 4.668710777 | Q35: 0.1157343171 | R35: 23.34355389 | S35: 0.5786715854 | T35: 22.17637619 | U35: 0.5497380061
A36: 25 | B36: 37853.1 | D36: 46142.9289 | E36: 1143.853329 | F36: 3845.244075 | G36: 95.32111074 | H36: 0 | I36: 0 | J36: 0 | K36: 0 | L36: 23.35168467 | M36: 0.5788731421 | N36: 11.67584233 | O36: 0.2894365711 | P36: 4.670336933 | Q36: 0.1157746284 | R36: 23.35168467 | S36: 0.5788731421 | T36: 22.18410043 | U36: 0.549929485
A37: 26 | B37: 37853.1 | D37: 46142.9289 | E37: 1143.853329 | F37: 3845.244075 | G37: 95.32111074 | H37: 0 | I37: 0 | J37: 0 | K37: 0 | L37: 23.35168467 | M37: 0.5788731421 | N37: 11.67584233 | O37: 0.2894365711 | P37: 4.670336933 | Q37: 0.1157746284 | R37: 23.35168467 | S37: 0.5788731421 | T37: 22.18410043 | U37: 0.549929485
A38: 27 | B38: 37866.24 | D38: 46158.94656 | E38: 1144.250396 | F38: 3846.57888 | G38: 95.35419969 | H38: 0 | I38: 0 | J38: 0 | K38: 0 | L38: 23.35979077 | M38: 0.5790740872 | N38: 11.67989538 | O38: 0.2895370436 | P38: 4.671958154 | Q38: 0.1158148174 | R38: 23.35979077 | S38: 0.5790740872 | T38: 22.19180123 | U38: 0.5501203828

Sheet MV1
A1: MV1 | F1: SOCIAAL PARAMEDISCH & THERAPEUTISCH PERSONEEL | Q1: Barema 20
C2: 120 | D2: Kinesitherapeut
C3: 180 | D3: Logopedist | I3: 490 | J3: Assistent in de psychologie
C4: 340 | D4: Orthoptist | I4: 500 | J4: Sociaal verpleegster
C5: 385 | D5: Trajectbegeleider | I5: 510 | J5: Ergotherapeut
C6: 390 | D6: Maatschappelijk werker | I6: 520 | J6: Diëtist
C7: 395 | D7: Soc verpleger/Verpleger onder Soc Dst | I7: 530 | J7: Heropvoeder in de psychomotoriek
C8: 399 | D8: Gezinsbegeleider Cat 14 | I8: 540 | J8: Othopedist
A9: 21j. | C9: 460 | D9: Verpleger A1 | I9: 550 | J9: Sociaal readaptatiewerker | T9: coëfficiënt: | U9: ='LOG4'!$U$4 -> 1.219
B11: JAARLOON | F11: MAANDLOON | H11: HAARDTOELAGE | J11: STANDPLAATS- | L11: UURLOON | R11: UURLOON MET
B12: 1 | J12: TOELAGE | L12: 38u | T12: 40u
B13: basis 01/01/2002 | D13: =Inhoud!$C$3 -> 2011-06-01 | F13: =D13 -> 2011-06-01 | L13: 1 | N13: 0.5 | P13: 0.2 | R13: HAARDTOELAGE
A15: 0 | B15: 20228.9 | D15: =B15*$U$9 -> 24659.0291 | E15: =D15/40.3399 -> 611.2813641 | F15: =B15/12*$U$9 -> 2054.919092 | G15: =F15/40.3399 -> 50.94011368 | H15: =((B15<19968.2)*913.03+(B15>19968.2)*(B15<20424.71)*(20424.71-B15+456.51)+(B15>20424.71)*(B15<22659.62)*456.51+(B15>22659.62)*(B15<23116.13)*(23116.13-B15))/12*$U$9 -> 66.26484 | I15: =H15/40.3399 -> 1.642662476 | J15: =((B15<19968.2)*456.51+(B15>19968.2)*(B15<20196.46)*(20196.46-B15+228.26)+(B15>20196.46)*(B15<22659.62)*228.26+(B15>22659.62)*(B15<22887.88)*(22887.88-B15))/12*$U$9 -> 23.18741167 | K15: =J15/40.3399 -> 0.5748009208 | L15: =D15/1976 -> 12.47926574 | M15: =L15/40.3399 -> 0.3093529171 | N15: =L15/2 -> 6.239632869 | O15: =N15/40.3399 -> 0.1546764585 | P15: =L15/5 -> 2.495853148 | Q15: =P15/40.3399 -> 0.06187058341 | R15: =(F15+H15)/1976*12 -> 12.8816838 | S15: =R15/40.3399 -> 0.3193286001 | T15: =D15/2080 -> 11.85530245 | U15: =T15/40.3399 -> 0.2938852712
A16: =+A15+1 -> 1 | B16: 20614.2 | D16: 25128.7098 | E16: 622.9244445 | F16: 2094.05915 | G16: 51.91037038 | H16: 46.3738075 | I16: 1.14957666 | J16: 23.18741167 | K16: 0.5748009208 | L16: 12.7169584 | M16: 0.3152451642 | N16: 6.3584792 | O16: 0.1576225821 | P16: 2.54339168 | Q16: 0.06304903285 | R16: 12.99858071 | S16: 0.322226399 | T16: 12.08111048 | U16: 0.299482906
A17: 2 | B17: 21206.19 | D17: 25850.34561 | E17: 640.813329 | F17: 2154.195468 | G17: 53.40111075 | H17: 46.3738075 | I17: 1.14957666 | J17: 23.18741167 | K17: 0.5748009208 | L17: 13.08215871 | M17: 0.3242982434 | N17: 6.541079355 | O17: 0.1621491217 | P17: 2.616431742 | Q17: 0.06485964868 | R17: 13.36378102 | S17: 0.3312794782 | T17: 12.42805077 | U17: 0.3080833312
A18: 3 | B18: 22005.19 | D18: 26824.32661 | E18: 664.9576873 | F18: 2235.360551 | G18: 55.41314061 | H18: 46.3738075 | I18: 1.14957666 | J18: 23.18741167 | K18: 0.5748009208 | L18: 13.57506407 | M18: 0.3365170482 | N18: 6.787532037 | O18: 0.1682585241 | P18: 2.715012815 | Q18: 0.06730340965 | R18: 13.85668639 | S18: 0.343498283 | T18: 12.89631087 | U18: 0.3196911958
A19: 4 | B19: 22799.46 | D19: 27792.54174 | E19: 688.9591134 | F19: 2316.045145 | G19: 57.41325945 | H19: 32.16839417 | I19: 0.7974336616 | J19: 8.981998333 | K19: 0.2226579226 | L19: 14.06505149 | M19: 0.3486635189 | N19: 7.032525744 | O19: 0.1743317595 | P19: 2.813010298 | Q19: 0.06973270379 | R19: 14.26040611 | S19: 0.3535062335 | T19: 13.36179891 | U19: 0.331230343
A20: 5 | B20: 22807.51 | D20: 27802.35469 | E20: 689.2023701 | F20: 2316.862891 | G20: 57.43353084 | H20: 31.35064833 | I20: 0.7771622719 | J20: 8.1642525 | K20: 0.2023865329 | L20: 14.07001756 | M20: 0.3487866245 | N20: 7.035008778 | O20: 0.1743933123 | P20: 2.814003511 | Q20: 0.06975732491 | R20: 14.26040611 | S20: 0.3535062335 | T20: 13.36651668 | U20: 0.3313472933
A21: 6 | B21: 23939.58 | D21: 29182.34802 | E21: 723.4115112 | F21: 2431.862335 | G21: 60.2842926 | H21: 0 | I21: 0 | J21: 0 | K21: 0 | L21: 14.76839475 | M21: 0.3660989429 | N21: 7.384197373 | O21: 0.1830494715 | P21: 2.953678949 | Q21: 0.07321978858 | R21: 14.76839475 | S21: 0.3660989429 | T21: 14.02997501 | U21: 0.3477939958
A22: 7 | B22: 25236.69 | D22: 30763.52511 | E22: 762.6078674 | F22: 2563.627092 | G22: 63.55065562 | H22: 0 | I22: 0 | J22: 0 | K22: 0 | L22: 15.56858558 | M22: 0.3859351556 | N22: 7.784292791 | O22: 0.1929675778 | P22: 3.113717116 | Q22: 0.07718703111 | R22: 15.56858558 | S22: 0.3859351556 | T22: 14.7901563 | U22: 0.3666383978
A23: 8 | B23: 25236.69 | D23: 30763.52511 | E23: 762.6078674 | F23: 2563.627092 | G23: 63.55065562 | H23: 0 | I23: 0 | J23: 0 | K23: 0 | L23: 15.56858558 | M23: 0.3859351556 | N23: 7.784292791 | O23: 0.1929675778 | P23: 3.113717116 | Q23: 0.07718703111 | R23: 15.56858558 | S23: 0.3859351556 | T23: 14.7901563 | U23: 0.3666383978
A24: 9 | B24: 25897.44 | D24: 31568.97936 | E24: 782.5745567 | F24: 2630.74828 | G24: 65.21454639 | H24: 0 | I24: 0 | J24: 0 | K24: 0 | L24: 15.97620413 | M24: 0.3960397554 | N24: 7.988102065 | O24: 0.1980198777 | P24: 3.195240826 | Q24: 0.07920795108 | R24: 15.97620413 | S24: 0.3960397554 | T24: 15.17739392 | U24: 0.3762377676
A25: 10 | B25: 26250.83 | D25: 31999.76177 | E25: 793.2533737 | F25: 2666.646814 | G25: 66.10444781 | H25: 0 | I25: 0 | J25: 0 | K25: 0 | L25: 16.19421142 | M25: 0.401444015 | N25: 8.097105711 | O25: 0.2007220075 | P25: 3.238842284 | Q25: 0.08028880301 | R25: 16.19421142 | S25: 0.401444015 | T25: 15.38450085 | U25: 0.3813718143
A26: 11 | B26: 26557.78 | D26: 32373.93382 | E26: 802.5288565 | F26: 2697.827818 | G26: 66.87740471 | H26: 0 | I26: 0 | J26: 0 | K26: 0 | L26: 16.38356975 | M26: 0.4061380853 | N26: 8.191784873 | O26: 0.2030690426 | P26: 3.276713949 | Q26: 0.08122761706 | R26: 16.38356975 | S26: 0.4061380853 | T26: 15.56439126 | U26: 0.385831181
A27: 12 | B27: 27390.95 | D27: 33389.56805 | E27: 827.7057715 | F27: 2782.464004 | G27: 68.97548095 | H27: 0 | I27: 0 | J27: 0 | K27: 0 | L27: 16.89755468 | M27: 0.418879439 | N27: 8.448777341 | O27: 0.2094397195 | P27: 3.379510936 | Q27: 0.0837758878 | R27: 16.89755468 | S27: 0.418879439 | T27: 16.05267695 | U27: 0.397935467
A28: 13 | B28: 27399.03 | D28: 33399.41757 | E28: 827.9499347 | F28: 2783.284798 | G28: 68.99582789 | H28: 0 | I28: 0 | J28: 0 | K28: 0 | L28: 16.90253926 | M28: 0.4190030034 | N28: 8.451269628 | O28: 0.2095015017 | P28: 3.380507851 | Q28: 0.08380060068 | R28: 16.90253926 | S28: 0.4190030034 | T28: 16.05741229 | U28: 0.3980528532
A29: 14 | B29: 28531.1 | D29: 34779.4109 | E29: 862.1590758 | F29: 2898.284242 | G29: 71.84658965 | H29: 0 | I29: 0 | J29: 0 | K29: 0 | L29: 17.60091645 | M29: 0.4363153217 | N29: 8.800458224 | O29: 0.2181576609 | P29: 3.520183289 | Q29: 0.08726306435 | R29: 17.60091645 | S29: 0.4363153217 | T29: 16.72087062 | U29: 0.4144995557
A30: 15 | B30: 28539.18 | D30: 34789.26042 | E30: 862.403239 | F30: 2899.105035 | G30: 71.86693658 | H30: 0 | I30: 0 | J30: 0 | K30: 0 | L30: 17.60590102 | M30: 0.4364388861 | N30: 8.802950511 | O30: 0.2182194431 | P30: 3.521180204 | Q30: 0.08728777722 | R30: 17.60590102 | S30: 0.4364388861 | T30: 16.72560597 | U30: 0.4146169418
A31: 16 | B31: 30153.33 | D31: 36756.90927 | E31: 911.1799799 | F31: 3063.075773 | G31: 75.93166499 | H31: 0 | I31: 0 | J31: 0 | K31: 0 | L31: 18.60167473 | M31: 0.4611234716 | N31: 9.300837366 | O31: 0.2305617358 | P31: 3.720334946 | Q31: 0.09222469432 | R31: 18.60167473 | S31: 0.4611234716 | T31: 17.671591 | U31: 0.438067298
A32: 17 | B32: 30813.67 | D32: 37561.86373 | E32: 931.1342797 | F32: 3130.155311 | G32: 77.59452331 | H32: 0 | I32: 0 | J32: 0 | K32: 0 | L32: 19.00904035 | M32: 0.4712218015 | N32: 9.504520175 | O32: 0.2356109007 | P32: 3.80180807 | Q32: 0.09424436029 | R32: 19.00904035 | S32: 0.4712218015 | T32: 18.05858833 | U32: 0.4476607114
A33: 18 | B33: 31759.2 | D33: 38714.4648 | E33: 959.7065139 | F33: 3226.2054 | G33: 79.97554282 | H33: 0 | I33: 0 | J33: 0 | K33: 0 | L33: 19.59234049 | M33: 0.4856814342 | N33: 9.796170243 | O33: 0.2428407171 | P33: 3.918468097 | Q33: 0.09713628683 | R33: 19.59234049 | S33: 0.4856814342 | T33: 18.61272346 | U33: 0.4613973625
A34: 19 | B34: 32419.58 | D34: 39519.46802 | E34: 979.6620225 | F34: 3293.289002 | G34: 81.63850187 | H34: 0 | I34: 0 | J34: 0 | K34: 0 | L34: 19.99973078 | M34: 0.4957803757 | N34: 9.99986539 | O34: 0.2478901879 | P34: 3.999946156 | Q34: 0.09915607515 | R34: 19.99973078 | S34: 0.4957803757 | T34: 18.99974424 | U34: 0.470991357
A35: 20 | B35: 32419.58 | D35: 39519.46802 | E35: 979.6620225 | F35: 3293.289002 | G35: 81.63850187 | H35: 0 | I35: 0 | J35: 0 | K35: 0 | L35: 19.99973078 | M35: 0.4957803757 | N35: 9.99986539 | O35: 0.2478901879 | P35: 3.999946156 | Q35: 0.09915607515 | R35: 19.99973078 | S35: 0.4957803757 | T35: 18.99974424 | U35: 0.470991357
A36: 21 | B36: 33079.92 | D36: 40324.42248 | E36: 999.6163223 | F36: 3360.36854 | G36: 83.30136019 | H36: 0 | I36: 0 | J36: 0 | K36: 0 | L36: 20.4070964 | M36: 0.5058787056 | N36: 10.2035482 | O36: 0.2529393528 | P36: 4.081419279 | Q36: 0.1011757411 | R36: 20.4070964 | S36: 0.5058787056 | T36: 19.38674158 | U36: 0.4805847703
A37: 22 | B37: 33131.01 | D37: 40386.70119 | E37: 1001.160171 | F37: 3365.558433 | G37: 83.43001427 | H37: 0 | I37: 0 | J37: 0 | K37: 0 | L37: 20.43861396 | M37: 0.5066600057 | N37: 10.21930698 | O37: 0.2533300028 | P37: 4.087722793 | Q37: 0.1013320011 | R37: 20.43861396 | S37: 0.5066600057 | T37: 19.41668326 | U37: 0.4813270054
A38: 23 | B38: 34271.16 | D38: 41776.54404 | E38: 1035.613475 | F38: 3481.37867 | G38: 86.30112296 | H38: 0 | I38: 0 | J38: 0 | K38: 0 | L38: 21.14197573 | M38: 0.5240958884 | N38: 10.57098786 | O38: 0.2620479442 | P38: 4.228395146 | Q38: 0.1048191777 | R38: 21.14197573 | S38: 0.5240958884 | T38: 20.08487694 | U38: 0.497891094
A39: 24 | B39: 35403.23 | D39: 43156.53737 | E39: 1069.822617 | F39: 3596.378114 | G39: 89.15188471 | H39: 0 | I39: 0 | J39: 0 | K39: 0 | L39: 21.84035292 | M39: 0.5414082068 | N39: 10.92017646 | O39: 0.2707041034 | P39: 4.368070584 | Q39: 0.1082816414 | R39: 21.84035292 | S39: 0.5414082068 | T39: 20.74833527 | U39: 0.5143377964
A40: 25 | B40: 35411.28 | D40: 43166.35032 | E40: 1070.065873 | F40: 3597.19586 | G40: 89.1721561 | H40: 0 | I40: 0 | J40: 0 | K40: 0 | L40: 21.84531899 | M40: 0.5415313124 | N40: 10.92265949 | O40: 0.2707656562 | P40: 4.369063798 | Q40: 0.1083062625 | R40: 21.84531899 | S40: 0.5415313124 | T40: 20.75305304 | U40: 0.5144547468
A41: 26 | B41: 35411.28 | D41: 43166.35032 | E41: 1070.065873 | F41: 3597.19586 | G41: 89.1721561 | H41: 0 | I41: 0 | J41: 0 | K41: 0 | L41: 21.84531899 | M41: 0.5415313124 | N41: 10.92265949 | O41: 0.2707656562 | P41: 4.369063798 | Q41: 0.1083062625 | R41: 21.84531899 | S41: 0.5415313124 | T41: 20.75305304 | U41: 0.5144547468
A42: 27 | B42: 35419.36 | D42: 43176.19984 | E42: 1070.310036 | F42: 3598.016653 | G42: 89.19250304 | H42: 0 | I42: 0 | J42: 0 | K42: 0 | L42: 21.85030356 | M42: 0.5416548768 | N42: 10.92515178 | O42: 0.2708274384 | P42: 4.370060713 | Q42: 0.1083309754 | R42: 21.85030356 | S42: 0.5416548768 | T42: 20.75778838 | U42: 0.5145721329

Sheet MV1bis
A1: MV1bis | G1: DIENSTVERANTWOORDELIJKEN IN DVO
U3: coëfficiënt | V3: ='LOG4'!$U$4 -> 1.219
B4: basis = 01/01/2002 (100%)
B5: JAARLOON | G5: MAANDLOON | I5: HAARDTOELAGE | K5: STANDPLAATS- | M5: UURLOON | S5: UURLOON MET
K6: TOELAGE | M6: 38u | U6: 40u
B7: 01/01/2006 | E7: ='LOG4'!$D$8 -> 2011-06-01 | G7: =E7 -> 2011-06-01 | M7: 1 | O7: 0.5 | Q7: 0.2 | S7: HAARDTOELAGE
A9: 0 | B9: 22397.32 | D9: =B9/1.0824 -> 20692.27642 | E9: =B9*$V$3/1.0824 -> 25223.88496 | G9: =B9/12*($V$3/1.0824) -> 2101.990413 | I9: =((D9<19968.2)*913.03+(D9>19968.2)*(D9<20424.71)*(20424.71-D9+456.51)+(D9>20424.71)*(D9<22659.62)*456.51+(D9>22659.62)*(D9<23116.13)*(23116.13-D9))/12*$V$3 -> 46.3738075 | J9: =I9/40.3399 -> 1.14957666 | K9: =((D9<19968.2)*456.51+(D9>19968.2)*(D9<20196.46)*(20196.46-D9+228.26)+(D9>20196.46)*(D9<22659.62)*228.26+(D9>22659.62)*(D9<22887.88)*(22887.88-D9))/12*$V$3 -> 23.18741167 | L9: =K9/40.3399 -> 0.5748009208 | M9: =E9/1976 -> 12.76512397 | O9: =M9/2 -> 6.382561984 | Q9: =M9/5 -> 2.553024793 | S9: =(G9+I9)/1976*12 -> 13.04674628 | T9: =S9/40.3399 -> 0.3234203922 | U9: =E9/2080 -> 12.12686777
A10: =+A9+1 -> 1 | B10: 22814.37 | D10: =B10/1.0824 -> 21077.57761 | E10: =B10*$V$3/1.0824 -> 25693.5671 | G10: =B10/12*($V$3/1.0824) -> 2141.130592 | I10: =((D10<19968.2)*913.03+(D10>19968.2)*(D10<20424.71)*(20424.71-D10+456.51)+(D10>20424.71)*(D10<22659.62)*456.51+(D10>22659.62)*(D10<23116.13)*(23116.13-D10))/12*$V$3 -> 46.3738075 | J10: 1.14957666 | K10: =((D10<19968.2)*456.51+(D10>19968.2)*(D10<20196.46)*(20196.46-D10+228.26)+(D10>20196.46)*(D10<22659.62)*228.26+(D10>22659.62)*(D10<22887.88)*(22887.88-D10))/12*$V$3 -> 23.18741167 | L10: 0.5748009208 | M10: =E10/1976 -> 13.00281736 | O10: =M10/2 -> 6.501408679 | Q10: =M10/5 -> 2.600563472 | S10: =(G10+I10)/1976*12 -> 13.28443967 | T10: =S10/40.3399 -> 0.3293126575 | U10: =E10/2080 -> 12.35267649
A11: 2 | B11: 23455.14 | D11: 21669.56763 | E11: =B11*$V$3/1.0824 -> 26415.20294 | G11: 2201.266911 | I11: 46.3738075 | J11: 1.14957666 | K11: 23.18741167 | L11: 0.5748009208 | M11: 13.36801768 | O11: 6.684008841 | Q11: 2.673603536 | S11: 13.64963999 | T11: 0.338365737 | U11: 12.6996168
A12: 3 | B12: 24319.97 | D12: 22468.56061 | E12: =B12*$V$3/1.0824 -> 27389.17538 | G12: 2282.431282 | I12: 46.3738075 | J12: 1.14957666 | K12: 23.18741167 | L12: 0.5748009208 | M12: 13.86091871 | O12: 6.930459357 | Q12: 2.772183743 | S12: 14.14254103 | T12: 0.3505844344 | U12: 13.16787278
A13: 4 | B13: 25179.69 | D13: 23262.83259 | E13: =B13*$V$3/1.0824 -> 28357.39293 | G13: 2363.116078 | I13: 0 | J13: 0 | K13: 0 | L13: 0 | M13: 14.35090735 | O13: 7.175453677 | Q13: 2.870181471 | S13: 14.35090735 | T13: 0.3557497008 | U13: 13.63336199
A14: 5 | B14: 25188.41 | D14: 23270.88877 | E14: 28367.21341 | G14: 2363.93445 | I14: 0 | J14: 0 | K14: 0 | L14: 0 | M14: 14.35587723 | O14: 7.177938615 | Q14: 2.871175446 | S14: 14.35587723 | T14: 0.3558729008 | U14: 13.63808337
A15: 6 | B15: 26413.76 | D15: 24402.95639 | E15: 29747.20384 | G15: 2478.933654 | I15: 0 | J15: 0 | K15: 0 | L15: 0 | M15: 15.05425296 | O15: 7.527126479 | Q15: 3.010850591 | S15: 15.05425296 | T15: 0.3731851828 | U15: 14.30154031
A16: 7 | B16: 27817.75 | D16: 25700.06467 | E16: 31328.37883 | G16: 2610.698236 | I16: 0 | J16: 0 | K16: 0 | L16: 0 | M16: 15.85444273 | O16: 7.927221365 | Q16: 3.170888546 | S16: 15.85444273 | T16: 0.3930213692 | U16: 15.06172059
A17: 8 | B17: 27817.75 | D17: 25700.06467 | E17: 31328.37883 | G17: 2610.698236 | I17: 0 | J17: 0 | K17: 0 | L17: 0 | M17: 15.85444273 | O17: 7.927221365 | Q17: 3.170888546 | S17: 15.85444273 | T17: 0.3930213692 | U17: 15.06172059
A18: 9 | B18: 28532.95 | D18: 26360.81855 | E18: 32133.83781 | G18: 2677.819818 | I18: 0 | J18: 0 | K18: 0 | L18: 0 | M18: 16.26206367 | O18: 8.131031836 | Q18: 3.252412734 | S18: 16.26206367 | T18: 0.4031260284 | U18: 15.44896049
A19: 10 | B19: 28915.46 | D19: 26714.20916 | E19: 32564.62097 | G19: 2713.718414 | I19: 0 | J19: 0 | K19: 0 | L19: 0 | M19: 16.48007134 | O19: 8.240035671 | Q19: 3.296014268 | S19: 16.48007134 | T19: 0.4085302973 | U19: 15.65606777
A20: 11 | B20: 29247.7 | D20: 27021.15669 | E20: 32938.79 | G20: 2744.899167 | I20: 0 | J20: 0 | K20: 0 | L20: 0 | M20: 16.66942814 | O20: 8.33471407 | Q20: 3.333885628 | S20: 16.66942814 | T20: 0.4132243297 | U20: 15.83595673
A21: 12 | B21: 30149.52 | D21: 27854.32373 | E21: 33954.42062 | G21: 2829.535052 | I21: 0 | J21: 0 | K21: 0 | L21: 0 | M21: 17.18341125 | O21: 8.591705623 | Q21: 3.436682249 | S21: 17.18341125 | T21: 0.4259656381 | U21: 16.32424068
A22: 13 | B22: 30158.27 | D22: 27862.40761 | E22: 33964.27488 | G22: 2830.35624 | I22: 0 | J22: 0 | K22: 0 | L22: 0 | M22: 17.18839822 | O22: 8.594199109 | Q22: 3.437679644 | S22: 17.18839822 | T22: 0.426089262 | U22: 16.32897831
A23: 14 | B23: 31383.62 | D23: 28994.47524 | E23: 35344.26532 | G23: 2945.355443 | I23: 0 | J23: 0 | K23: 0 | L23: 0 | M23: 17.88677395 | O23: 8.943386973 | Q23: 3.577354789 | S23: 17.88677395 | T23: 0.443401544 | U23: 16.99243525
A24: 15 | B24: 31392.37 | D24: 29002.55913 | E24: 35354.11958 | G24: 2946.176631 | I24: 0 | J24: 0 | K24: 0 | L24: 0 | M24: 17.89176092 | O24: 8.94588046 | Q24: 3.578352184 | S24: 17.89176092 | T24: 0.4435251679 | U24: 16.99717287
A25: 16 | B25: 33139.52 | D25: 30616.70362 | E25: 37321.76171 | G25: 3110.14681 | I25: 0 | J25: 0 | K25: 0 | L25: 0 | M25: 18.88753123 | O25: 9.443765616 | Q25: 3.777506246 | S25: 18.88753123 | T25: 0.4682096691 | U25: 17.94315467
A26: 17 | B26: 33854.27 | D26: 31277.04176 | E26: 38126.7139 | G26: 3177.226159 | I26: 0 | J26: 0 | K26: 0 | L26: 0 | M26: 19.2948957 | O26: 9.64744785 | Q26: 3.85897914 | S26: 19.2948957 | T26: 0.4783079705 | U26: 18.33015092
A27: 18 | B27: 34877.71 | D27: 32222.57021 | E27: 39279.31309 | G27: 3273.276091 | I27: 0 | J27: 0 | K27: 0 | L27: 0 | M27: 19.87819488 | O27: 9.939097442 | Q27: 3.975638977 | S27: 19.87819488 | T27: 0.4927675796 | U27: 18.88428514
A28: 19 | B28: 35592.51 | D28: 32882.95455 | E28: 40084.32159 | G28: 3340.360133 | I28: 0 | J28: 0 | K28: 0 | L28: 0 | M28: 20.28558785 | O28: 10.14279392 | Q28: 4.05711757 | S28: 20.28558785 | T28: 0.5028665874 | U28: 19.27130846
A29: 20 | B29: 35592.51 | D29: 32882.95455 | E29: 40084.32159 | G29: 3340.360133 | I29: 0 | J29: 0 | K29: 0 | L29: 0 | M29: 20.28558785 | O29: 10.14279392 | Q29: 4.05711757 | S29: 20.28558785 | T29: 0.5028665874 | U29: 19.27130846
A30: 21 | B30: 36307.26 | D30: 33543.29268 | E30: 40889.27378 | G30: 3407.439482 | I30: 0 | J30: 0 | K30: 0 | L30: 0 | M30: 20.69295232 | O30: 10.34647616 | Q30: 4.138590464 | S30: 20.69295232 | T30: 0.5129648888 | U30: 19.6583047
A31: 22 | B31: 36362.56 | D31: 33594.38285 | E31: 40951.5527 | G31: 3412.629391 | I31: 0 | J31: 0 | K31: 0 | L31: 0 | M31: 20.72446999 | O31: 10.36223499 | Q31: 4.144893998 | S31: 20.72446999 | T31: 0.5137461915 | U31: 19.68824649
A32: 23 | B32: 37596.66 | D32: 34734.53437 | E32: 42341.39739 | G32: 3528.449783 | I32: 0 | J32: 0 | K32: 0 | L32: 0 | M32: 21.42783269 | O32: 10.71391634 | Q32: 4.285566538 | S32: 21.42783269 | T32: 0.5311820974 | U32: 20.35644106
A33: 24 | B33: 38822.01 | D33: 35866.602 | E33: 43721.38783 | G33: 3643.448986 | I33: 0 | J33: 0 | K33: 0 | L33: 0 | M33: 22.12620842 | O33: 11.06310421 | Q33: 4.425241683 | S33: 22.12620842 | T33: 0.5484943794 | U33: 21.019898
A34: 25 | B34: 38830.73 | D34: 35874.65817 | E34: 43731.20831 | G34: 3644.267359 | I34: 0 | J34: 0 | K34: 0 | L34: 0 | M34: 22.13117829 | O34: 11.06558915 | Q34: 4.426235658 | S34: 22.13117829 | T34: 0.5486175794 | U34: 21.02461938
A35: 26 | B35: 38830.73 | D35: 35874.65817 | E35: 43731.20831 | G35: 3644.267359 | I35: 0 | J35: 0 | K35: 0 | L35: 0 | M35: 22.13117829 | O35: 11.06558915 | Q35: 4.426235658 | S35: 22.13117829 | T35: 0.5486175794 | U35: 21.02461938
A36: 27 | B36: 38839.47 | D36: 35882.73282 | E36: 43741.0513 | G36: 3645.087609 | I36: 0 | J36: 0 | K36: 0 | L36: 0 | M36: 22.13615957 | O36: 11.06807978 | Q36: 4.427231913 | S36: 22.13615957 | T36: 0.548741062 | U36: =E36/2080 -> 21.02935159

Sheet L1
A1: L1 | F1: LICENTIATEN | Q1: Barema 21
C3: 400 | D3: Tandarts | I3: 370 | J3: Licentiaat in de kinesitherapie
C4: 350 | D4: Licentiaat in de psychologie | I4: 480 | J4: Licentiaat in de orthopedagogie
C5: 360 | D5: Licentiaat in de pedagogie | I5: 380 | J5: Licentiaat in de criminologie
A6: 22j. | T6: coëfficiënt: | U6: ='LOG4'!$U$4 -> 1.219
B8: JAARLOON | F8: MAANDLOON | H8: HAARDTOELAGE | J8: STANDPLAATS- | L8: UURLOON | R8: UURLOON MET
B9: 1 | J9: TOELAGE | L9: 38u | T9: 40u
B10: basis 01/01/2002 | D10: =Inhoud!$C$3 -> 2011-06-01 | F10: =D10 -> 2011-06-01 | L10: 1 | N10: 0.5 | P10: 0.2 | R10: HAARDTOELAGE
A12: 0 | B12: 26129.09 | D12: =B12*$U$6 -> 31851.36071 | E12: =D12/40.3399 -> 789.5746075 | F12: =B12/12*$U$6 -> 2654.280059 | G12: =F12/40.3399 -> 65.79788396 | H12: =((B12<19968.2)*913.03+(B12>19968.2)*(B12<20424.71)*(20424.71-B12+456.51)+(B12>20424.71)*(B12<22659.62)*456.51+(B12>22659.62)*(B12<23116.13)*(23116.13-B12))/12*$U$6 -> 0 | I12: =H12/40.3399 -> 0 | J12: =((B12<19968.2)*456.51+(B12>19968.2)*(B12<20196.46)*(20196.46-B12+228.26)+(B12>20196.46)*(B12<22659.62)*228.26+(B12>22659.62)*(B12<22887.88)*(22887.88-B12))/12*$U$6 -> 0 | K12: =J12/40.3399 -> 0 | L12: =D12/1976 -> 16.11910967 | M12: =L12/40.3399 -> 0.3995822913 | N12: =L12/2 -> 8.059554836 | O12: =N12/40.3399 -> 0.1997911456 | P12: =L12/5 -> 3.223821934 | Q12: =P12/40.3399 -> 0.07991645825 | R12: =(F12+H12)/1976*12 -> 16.11910967 | S12: =R12/40.3399 -> 0.3995822913 | T12: =D12/2080 -> 15.31315419 | U12: =T12/40.3399 -> 0.3796031767
A13: =+A12+1 -> 1 | B13: 26911.8 | D13: 32805.4842 | E13: 813.226711 | F13: 2733.79035 | G13: 67.76889259 | H13: 0 | I13: 0 | J13: 0 | K13: 0 | L13: 16.60196569 | M13: 0.4115519793 | N13: 8.300982844 | O13: 0.2057759896 | P13: 3.320393138 | Q13: 0.08231039585 | R13: 16.60196569 | S13: 0.4115519793 | T13: 15.7718674 | U13: 0.3909743803
A14: 2 | B14: 27694.88 | D14: 33760.05872 | E14: 836.8899953 | F14: 2813.338227 | G14: 69.74083294 | H14: 0 | I14: 0 | J14: 0 | K14: 0 | L14: 17.08504996 | M14: 0.4235273255 | N14: 8.54252498 | O14: 0.2117636628 | P14: 3.417009992 | Q14: 0.08470546511 | R14: 17.08504996 | S14: 0.4235273255 | T14: 16.23079746 | U14: 0.4023509593
A15: 3 | B15: 28477.96 | D15: 34714.63324 | E15: 860.5532795 | F15: 2892.886103 | G15: 71.71277329 | H15: 0 | I15: 0 | J15: 0 | K15: 0 | L15: 17.56813423 | M15: 0.4355026718 | N15: 8.784067115 | O15: 0.2177513359 | P15: 3.513626846 | Q15: 0.08710053436 | R15: 17.56813423 | S15: 0.4355026718 | T15: 16.68972752 | U15: 0.4137275382
A16: 4 | B16: 29427.34 | D16: 35871.92746 | E16: 889.2418538 | F16: 2989.327288 | G16: 74.10348782 | H16: 0 | I16: 0 | J16: 0 | K16: 0 | L16: 18.15380944 | M16: 0.4500211811 | N16: 9.076904722 | O16: 0.2250105905 | P16: 3.630761889 | Q16: 0.09000423622 | R16: 18.15380944 | S16: 0.4500211811 | T16: 17.24611897 | U16: 0.427520122
A17: 5 | B17: 30630.09 | D17: 37338.07971 | E17: 925.5868188 | F17: 3111.506643 | G17: 77.1322349 | H17: 0 | I17: 0 | J17: 0 | K17: 0 | L17: 18.89578933 | M17: 0.468414382 | N17: 9.447894663 | O17: 0.234207191 | P17: 3.779157865 | Q17: 0.09368287639 | R17: 18.89578933 | S17: 0.468414382 | T17: 17.95099986 | U17: 0.4449936629
A18: 6 | B18: 30630.09 | D18: 37338.07971 | E18: 925.5868188 | F18: 3111.506643 | G18: 77.1322349 | H18: 0 | I18: 0 | J18: 0 | K18: 0 | L18: 18.89578933 | M18: 0.468414382 | N18: 9.447894663 | O18: 0.234207191 | P18: 3.779157865 | Q18: 0.09368287639 | R18: 18.89578933 | S18: 0.468414382 | T18: 17.95099986 | U18: 0.4449936629
A19: 7 | B19: 31832.43 | D19: 38803.73217 | E19: 961.9193942 | F19: 3233.644348 | G19: 80.15994952 | H19: 0 | I19: 0 | J19: 0 | K19: 0 | L19: 19.63751628 | M19: 0.4868013129 | N19: 9.81875814 | O19: 0.2434006564 | P19: 3.927503256 | Q19: 0.09736026257 | R19: 19.63751628 | S19: 0.4868013129 | T19: 18.65564047 | U19: 0.4624612472
A20: 8 | B20: 31832.43 | D20: 38803.73217 | E20: 961.9193942 | F20: 3233.644348 | G20: 80.15994952 | H20: 0 | I20: 0 | J20: 0 | K20: 0 | L20: 19.63751628 | M20: 0.4868013129 | N20: 9.81875814 | O20: 0.2434006564 | P20: 3.927503256 | Q20: 0.09736026257 | R20: 19.63751628 | S20: 0.4868013129 | T20: 18.65564047 | U20: 0.4624612472
A21: 9 | B21: 33034.8 | D21: 40269.4212 | E21: 998.2528762 | F21: 3355.7851 | G21: 83.18773968 | H21: 0 | I21: 0 | J21: 0 | K21: 0 | L21: 20.37926174 | M21: 0.5051887025 | N21: 10.18963087 | O21: 0.2525943513 | P21: 4.075852348 | Q21: 0.1010377405 | R21: 20.37926174 | S21: 0.5051887025 | T21: 19.36029865 | U21: 0.4799292674
A22: 10 | B22: 33116.01 | D22: 40368.41619 | E22: 1000.706898 | F22: 3364.034683 | G22: 83.39224149 | H22: 0 | I22: 0 | J22: 0 | K22: 0 | L22: 20.42936042 | M22: 0.5064306163 | N22: 10.21468021 | O22: 0.2532153082 | P22: 4.085872084 | Q22: 0.1012861233 | R22: 20.42936042 | S22: 0.5064306163 | T22: 19.4078924 | U22: 0.4811090855
A23: 11 | B23: 34237.14 | D23: 41735.07366 | E23: 1034.585452 | F23: 3477.922805 | G23: 86.2154543 | H23: 0 | I23: 0 | J23: 0 | K23: 0 | L23: 21.12098869 | M23: 0.5235756334 | N23: 10.56049435 | O23: 0.2617878167 | P23: 4.224197739 | Q23: 0.1047151267 | R23: 21.12098869 | S23: 0.5235756334 | T23: 20.06493926 | U23: 0.4973968517
A24: 12 | B24: 34587.39 | D24: 42162.02841 | E24: 1045.169383 | F24: 3513.502368 | G24: 87.09744862 | H24: 0 | I24: 0 | J24: 0 | K24: 0 | L24: 21.33705891 | M24: 0.5289318742 | N24: 10.66852946 | O24: 0.2644659371 | P24: 4.267411782 | Q24: 0.1057863748 | R24: 21.33705891 | S24: 0.5289318742 | T24: 20.27020597 | U24: 0.5024852805
A25: 13 | B25: 35439.48 | D25: 43200.72612 | E25: 1070.918027 | F25: 3600.06051 | G25: 89.24316892 | H25: 0 | I25: 0 | J25: 0 | K25: 0 | L25: 21.86271565 | M25: 0.5419625643 | N25: 10.93135782 | O25: 0.2709812822 | P25: 4.37254313 | Q25: 0.1083925129 | R25: 21.86271565 | S25: 0.5419625643 | T25: 20.76957987 | U25: 0.5148644361
A26: 14 | B26: 36058.73 | D26: 43955.59187 | E26: 1089.63066 | F26: 3662.965989 | G26: 90.80255502 | H26: 0 | I26: 0 | J26: 0 | K26: 0 | L26: 22.24473273 | M26: 0.5514325204 | N26: 11.12236636 | O26: 0.2757162602 | P26: 4.448946546 | Q26: 0.1102865041 | R26: 22.24473273 | S26: 0.5514325204 | T26: 21.13249609 | U26: 0.5238608943
A27: 15 | B27: 36641.86 | D27: 44666.42734 | E27: 1107.251811 | F27: 3722.202278 | G27: 92.27098427 | H27: 0 | I27: 0 | J27: 0 | K27: 0 | L27: 22.60446728 | M27: 0.5603501069 | N27: 11.30223364 | O27: 0.2801750534 | P27: 4.520893455 | Q27: 0.1120700214 | R27: 22.60446728 | S27: 0.5603501069 | T27: 21.47424391 | U27: 0.5323326016
A28: 16 | B28: 37530.08 | D28: 45749.16752 | E28: 1134.092239 | F28: 3812.430627 | G28: 94.5076866 | H28: 0 | I28: 0 | J28: 0 | K28: 0 | L28: 23.15241271 | M28: 0.5739333194 | N28: 11.57620636 | O28: 0.2869666597 | P28: 4.630482543 | Q28: 0.1147866639 | R28: 23.15241271 | S28: 0.5739333194 | T28: 21.99479208 | U28: 0.5452366535
A29: 17 | B29: 37844.61 | D29: 46132.57959 | E29: 1143.596776 | F29: 3844.381633 | G29: 95.29973135 | H29: 0 | I29: 0 | J29: 0 | K29: 0 | L29: 23.34644716 | M29: 0.5787433078 | N29: 11.67322358 | O29: 0.2893716539 | P29: 4.669289432 | Q29: 0.1157486616 | R29: 23.34644716 | S29: 0.5787433078 | T29: 22.1791248 | U29: 0.5498061424
A30: 18 | B30: 39001.45 | D30: 47542.76755 | E30: 1178.554423 | F30: 3961.897296 | G30: 98.21286855 | H30: 0 | I30: 0 | J30: 0 | K30: 0 | L30: 24.06010504 | M30: 0.5964344244 | N30: 12.03005252 | O30: 0.2982172122 | P30: 4.812021007 | Q30: 0.1192868849 | R30: 24.06010504 | S30: 0.5964344244 | T30: 22.85709978 | U30: 0.5666127031
A31: 19 | B31: 39046.95 | D31: 47598.23205 | E31: 1179.929352 | F31: 3966.519338 | G31: 98.32744597 | H31: 0 | I31: 0 | J31: 0 | K31: 0 | L31: 24.08817411 | M31: 0.5971302387 | N31: 12.04408706 | O31: 0.2985651193 | P31: 4.817634823 | Q31: 0.1194260477 | R31: 24.08817411 | S31: 0.5971302387 | T31: 22.88376541 | U31: 0.5672737267
A32: 20 | B32: 40472.8 | D32: 49336.3432 | E32: 1223.016002 | F32: 4111.361933 | G32: 101.9180001 | H32: 0 | I32: 0 | J32: 0 | K32: 0 | L32: 24.96778502 | M32: 0.6189352234 | N32: 12.48389251 | O32: 0.3094676117 | P32: 4.993557004 | Q32: 0.1237870447 | R32: 24.96778502 | S32: 0.6189352234 | T32: 23.71939577 | U32: 0.5879884623
A33: 21 | B33: 40506.44 | D33: 49377.35036 | E33: 1224.032542 | F33: 4114.779197 | G33: 102.0027119 | H33: 0 | I33: 0 | J33: 0 | K33: 0 | L33: 24.98853763 | M33: 0.6194496672 | N33: 12.49426882 | O33: 0.3097248336 | P33: 4.997707526 | Q33: 0.1238899334 | R33: 24.98853763 | S33: 0.6194496672 | T33: 23.73911075 | U33: 0.5884771839
A34: 22 | B34: 41944.17 | D34: 51129.94323 | E34: 1267.478185 | F34: 4260.828602 | G34: 105.6231821 | H34: 0 | I34: 0 | J34: 0 | K34: 0 | L34: 25.87547734 | M34: 0.6414363284 | N34: 12.93773867 | O34: 0.3207181642 | P34: 5.175095469 | Q34: 0.1282872657 | R34: 25.87547734 | S34: 0.6414363284 | T34: 24.58170348 | U34: 0.609364512
A35: 23 | B35: 43415.52 | D35: 52923.51888 | E35: 1311.939764 | F35: 4410.29324 | G35: 109.3283137 | H35: 0 | I35: 0 | J35: 0 | K35: 0 | L35: 26.78315733 | M35: 0.6639371275 | N35: 13.39157866 | O35: 0.3319685637 | P35: 5.356631466 | Q35: 0.1327874255 | R35: 26.78315733 | S35: 0.6639371275 | T35: 25.44399946 | U35: 0.6307402711
A36: 24 | B36: 44853.25 | D36: 54676.11175 | E36: 1355.385406 | F36: 4556.342646 | G36: 112.9487839 | H36: 0 | I36: 0 | J36: 0 | K36: 0 | L36: 27.67009704 | M36: 0.6859237886 | N36: 13.83504852 | O36: 0.3429618943 | P36: 5.534019408 | Q36: 0.1371847577 | R36: 27.67009704 | S36: 0.6859237886 | T36: 26.28659219 | U36: 0.6516275992
A37: 25 | B37: 44853.25 | D37: 54676.11175 | E37: 1355.385406 | F37: 4556.342646 | G37: 112.9487839 | H37: 0 | I37: 0 | J37: 0 | K37: 0 | L37: 27.67009704 | M37: 0.6859237886 | N37: 13.83504852 | O37: 0.3429618943 | P37: 5.534019408 | Q37: 0.1371847577 | R37: 27.67009704 | S37: 0.6859237886 | T37: 26.28659219 | U37: 0.6516275992
A38: 26 | B38: 44853.25 | D38: 54676.11175 | E38: 1355.385406 | F38: 4556.342646 | G38: 112.9487839 | H38: 0 | I38: 0 | J38: 0 | K38: 0 | L38: 27.67009704 | M38: 0.6859237886 | N38: 13.83504852 | O38: 0.3429618943 | P38: 5.534019408 | Q38: 0.1371847577 | R38: 27.67009704 | S38: 0.6859237886 | T38: 26.28659219 | U38: 0.6516275992
A39: 27 | B39: 44853.25 | D39: 54676.11175 | E39: 1355.385406 | F39: 4556.342646 | G39: 112.9487839 | H39: 0 | I39: 0 | J39: 0 | K39: 0 | L39: 27.67009704 | M39: 0.6859237886 | N39: 13.83504852 | O39: 0.3429618943 | P39: 5.534019408 | Q39: 0.1371847577 | R39: 27.67009704 | S39: 0.6859237886 | T39: 26.28659219 | U39: 0.6516275992

Sheet K3
A1: K3 | E1: 031 | F1: DIRECTEUR 30-59 BEDDEN | Q1: Barema 23
A2: 22j. | T2: coëfficiënt: | U2: ='LOG4'!$U$4 -> 1.219
B4: JAARLOON | F4: MAANDLOON | H4: HAARDTOELAGE | J4: STANDPLAATS- | L4: UURLOON | R4: UURLOON MET
B5: 1 | J5: TOELAGE | L5: 38u | T5: 40u
B6: basis 01/01/2002 | D6: =Inhoud!$C$3 -> 2011-06-01 | F6: =D6 -> 2011-06-01 | L6: 1 | N6: 0.5 | P6: 0.2 | R6: HAARDTOELAGE
A8: 0 | B8: 27164.45 | D8: =B8*$U$2 -> 33113.46455 | E8: =D8/40.3399 -> 820.8613445 | F8: =B8/12*$U$2 -> 2759.455379 | G8: =F8/40.3399 -> 68.40511204 | H8: =((B8<19968.2)*913.03+(B8>19968.2)*(B8<20424.71)*(20424.71-B8+456.51)+(B8>20424.71)*(B8<22659.62)*456.51+(B8>22659.62)*(B8<23116.13)*(23116.13-B8))/12*$U$2 -> 0 | I8: =H8/40.3399 -> 0 | J8: =((B8<19968.2)*456.51+(B8>19968.2)*(B8<20196.46)*(20196.46-B8+228.26)+(B8>20196.46)*(B8<22659.62)*228.26+(B8>22659.62)*(B8<22887.88)*(22887.88-B8))/12*$U$2 -> 0 | K8: =J8/40.3399 -> 0 | L8: =D8/1976 -> 16.75782619 | M8: =L8/40.3399 -> 0.4154156602 | N8: =L8/2 -> 8.378913095 | O8: =N8/40.3399 -> 0.2077078301 | P8: =L8/5 -> 3.351565238 | Q8: =P8/40.3399 -> 0.08308313203 | R8: =(F8+H8)/1976*12 -> 16.75782619 | S8: =R8/40.3399 -> 0.4154156602 | T8: =D8/2080 -> 15.91993488 | U8: =T8/40.3399 -> 0.3946448772
A9: =+A8+1 -> 1 | B9: 27948.04 | D9: 34068.66076 | E9: 844.54004 | F9: 2839.055063 | G9: 70.37833667 | H9: 0 | I9: 0 | J9: 0 | K9: 0 | L9: 17.24122508 | M9: 0.4273988057 | N9: 8.62061254 | O9: 0.2136994028 | P9: 3.448245016 | Q9: 0.08547976113 | R9: 17.24122508 | S9: 0.4273988057 | T9: 16.37916383 | U9: 0.4060288654
A10: 2 | B10: 28764.29 | D10: 35063.66951 | E10: 869.2056626 | F10: 2921.972459 | G10: 72.43380522 | H10: 0 | I10: 0 | J10: 0 | K10: 0 | L10: 17.74477202 | M10: 0.4398814082 | N10: 8.87238601 | O10: 0.2199407041 | P10: 3.548954404 | Q10: 0.08797628164 | R10: 17.74477202 | S10: 0.4398814082 | T10: 16.85753342 | U10: 0.4178873378
A11: 3 | B11: 29580.51 | D11: 36058.64169 | E11: 893.8703787 | F11: 3004.886808 | G11: 74.48919823 | H11: 0 | I11: 0 | J11: 0 | K11: 0 | L11: 18.24830045 | M11: 0.452363552 | N11: 9.124150225 | O11: 0.226181776 | P11: 3.64966009 | Q11: 0.0904727104 | R11: 18.24830045 | S11: 0.452363552 | T11: 17.33588543 | U11: 0.4297453744
A12: 4 | B12: 30560.01 | D12: 37252.65219 | E12: 923.4691259 | F12: 3104.387683 | G12: 76.95576049 | H12: 0 | I12: 0 | J12: 0 | K12: 0 | L12: 18.85255678 | M12: 0.467342675 | N12: 9.426278388 | O12: 0.2336713375 | P12: 3.770511355 | Q12: 0.09346853501 | R12: 18.85255678 | S12: 0.467342675 | T12: 17.90992894 | U12: 0.4439755413
A13: 5 | B13: 31833.34 | D13: 38804.84146 | E13: 961.9468928 | F13: 3233.736788 | G13: 80.16224106 | H13: 0 | I13: 0 | J13: 0 | K13: 0 | L13: 19.63807766 | M13: 0.4868152291 | N13: 9.819038831 | O13: 0.2434076146 | P13: 3.927615532 | Q13: 0.09736304583 | R13: 19.63807766 | S13: 0.4868152291 | T13: 18.65617378 | U13: 0.4624744677
A14: 6 | B14: 31833.34 | D14: 38804.84146 | E14: 961.9468928 | F14: 3233.736788 | G14: 80.16224106 | H14: 0 | I14: 0 | J14: 0 | K14: 0 | L14: 19.63807766 | M14: 0.4868152291 | N14: 9.819038831 | O14: 0.2434076146 | P14: 3.927615532 | Q14: 0.09736304583 | R14: 19.63807766 | S14: 0.4868152291 | T14: 18.65617378 | U14: 0.4624744677
A15: 7 | B15: 33139.31 | D15: 40396.81889 | E15: 1001.410982 | F15: 3366.401574 | G15: 83.4509152 | H15: 0 | I15: 0 | J15: 0 | K15: 0 | L15: 20.44373426 | M15: 0.5067869344 | N15: 10.22186713 | O15: 0.2533934672 | P15: 4.088746851 | Q15: 0.1013573869 | R15: 20.44373426 | S15: 0.5067869344 | T15: 19.42154754 | U15: 0.4814475877
A16: 8 | B16: 33139.31 | D16: 40396.81889 | E16: 1001.410982 | F16: 3366.401574 | G16: 83.4509152 | H16: 0 | I16: 0 | J16: 0 | K16: 0 | L16: 20.44373426 | M16: 0.5067869344 | N16: 10.22186713 | O16: 0.2533934672 | P16: 4.088746851 | Q16: 0.1013573869 | R16: 20.44373426 | S16: 0.5067869344 | T16: 19.42154754 | U16: 0.4814475877
A17: 9 | B17: 34445.31 | D17: 41988.83289 | E17: 1040.875979 | F17: 3499.069407 | G17: 86.73966489 | H17: 0 | I17: 0 | J17: 0 | K17: 0 | L17: 21.24940936 | M17: 0.5267590985 | N17: 10.62470468 | O17: 0.2633795492 | P17: 4.249881871 | Q17: 0.1053518197 | R17: 21.24940936 | S17: 0.5267590985 | T17: 20.18693889 | U17: 0.5004211436
A18: 10 | B18: 34445.31 | D18: 41988.83289 | E18: 1040.875979 | F18: 3499.069407 | G18: 86.73966489 | H18: 0 | I18: 0 | J18: 0 | K18: 0 | L18: 21.24940936 | M18: 0.5267590985 | N18: 10.62470468 | O18: 0.2633795492 | P18: 4.249881871 | Q18: 0.1053518197 | R18: 21.24940936 | S18: 0.5267590985 | T18: 20.18693889 | U18: 0.5004211436
A19: 11 | B19: 36077.79 | D19: 43978.82601 | E19: 1090.20662 | F19: 3664.902168 | G19: 90.85055163 | H19: 0 | I19: 0 | J19: 0 | K19: 0 | L19: 22.2564909 | M19: 0.5517239977 | N19: 11.12824545 | O19: 0.2758619989 | P19: 4.451298179 | Q19: 0.1103447995 | R19: 22.2564909 | S19: 0.5517239977 | T19: 21.14366635 | U19: 0.5241377978
A20: 12 | B20: 36077.79 | D20: 43978.82601 | E20: 1090.20662 | F20: 3664.902168 | G20: 90.85055163 | H20: 0 | I20: 0 | J20: 0 | K20: 0 | L20: 22.2564909 | M20: 0.5517239977 | N20: 11.12824545 | O20: 0.2758619989 | P20: 4.451298179 | Q20: 0.1103447995 | R20: 22.2564909 | S20: 0.5517239977 | T20: 21.14366635 | U20: 0.5241377978
A21: 13 | B21: 37547.02 | D21: 45769.81738 | E21: 1134.604136 | F21: 3814.151448 | G21: 94.55034465 | H21: 0 | I21: 0 | J21: 0 | K21: 0 | L21: 23.16286305 | M21: 0.5741923764 | N21: 11.58143152 | O21: 0.2870961882 | P21: 4.632572609 | Q21: 0.1148384753 | R21: 23.16286305 | S21: 0.5741923764 | T21: 22.00471989 | U21: 0.5454827576
A22: 14 | B22: 37547.02 | D22: 45769.81738 | E22: 1134.604136 | F22: 3814.151448 | G22: 94.55034465 | H22: 0 | I22: 0 | J22: 0 | K22: 0 | L22: 23.16286305 | M22: 0.5741923764 | N22: 11.58143152 | O22: 0.2870961882 | P22: 4.632572609 | Q22: 0.1148384753 | R22: 23.16286305 | S22: 0.5741923764 | T22: 22.00471989 | U22: 0.5454827576
A23: 15 | B23: 39016.26 | D23: 47560.82094 | E23: 1179.001954 | F23: 3963.401745 | G23: 98.25016287 | H23: 0 | I23: 0 | J23: 0 | K23: 0 | L23: 24.06924137 | M23: 0.5966609081 | N23: 12.03462068 | O23: 0.298330454 | P23: 4.813848273 | Q23: 0.1193321816 | R23: 24.06924137 | S23: 0.5966609081 | T23: 22.8657793 | U23: 0.5668278627
A24: 16 | B24: 39016.26 | D24: 47560.82094 | E24: 1179.001954 | F24: 3963.401745 | G24: 98.25016287 | H24: 0 | I24: 0 | J24: 0 | K24: 0 | L24: 24.06924137 | M24: 0.5966609081 | N24: 12.03462068 | O24: 0.298330454 | P24: 4.813848273 | Q24: 0.1193321816 | R24: 24.06924137 | S24: 0.5966609081 | T24: 22.8657793 | U24: 0.5668278627
A25: 17 | B25: 40648.74 | D25: 49550.81406 | E25: 1228.332595 | F25: 4129.234505 | G25: 102.3610496 | H25: 0 | I25: 0 | J25: 0 | K25: 0 | L25: 25.0763229 | M25: 0.6216258073 | N25: 12.53816145 | O25: 0.3108129037 | P25: 5.015264581 | Q25: 0.1243251615 | R25: 25.0763229 | S25: 0.6216258073 | T25: 23.82250676 | U25: 0.590544517
A26: 18 | B26: 40648.74 | D26: 49550.81406 | E26: 1228.332595 | F26: 4129.234505 | G26: 102.3610496 | H26: 0 | I26: 0 | J26: 0 | K26: 0 | L26: 25.0763229 | M26: 0.6216258073 | N26: 12.53816145 | O26: 0.3108129037 | P26: 5.015264581 | Q26: 0.1243251615 | R26: 25.0763229 | S26: 0.6216258073 | T26: 23.82250676 | U26: 0.590544517
A27: 19 | B27: 40648.74 | D27: 49550.81406 | E27: 1228.332595 | F27: 4129.234505 | G27: 102.3610496 | H27: 0 | I27: 0 | J27: 0 | K27: 0 | L27: 25.0763229 | M27: 0.6216258073 | N27: 12.53816145 | O27: 0.3108129037 | P27: 5.015264581 | Q27: 0.1243251615 | R27: 25.0763229 | S27: 0.6216258073 | T27: 23.82250676 | U27: 0.590544517
A28: 20 | B28: 42117.95 | D28: 51341.78105 | E28: 1272.729507 | F28: 4278.481754 | G28: 106.0607923 | H28: 0 | I28: 0 | J28: 0 | K28: 0 | L28: 25.98268272 | M28: 0.6440938802 | N28: 12.99134136 | O28: 0.3220469401 | P28: 5.196536544 | Q28: 0.128818776 | R28: 25.98268272 | S28: 0.6440938802 | T28: 24.68354858 | U28: 0.6118891862
A29: 21 | B29: 42117.95 | D29: 51341.78105 | E29: 1272.729507 | F29: 4278.481754 | G29: 106.0607923 | H29: 0 | I29: 0 | J29: 0 | K29: 0 | L29: 25.98268272 | M29: 0.6440938802 | N29: 12.99134136 | O29: 0.3220469401 | P29: 5.196536544 | Q29: 0.128818776 | R29: 25.98268272 | S29: 0.6440938802 | T29: 24.68354858 | U29: 0.6118891862
A30: 22 | B30: 43750.42 | D30: 53331.76198 | E30: 1322.059846 | F30: 4444.313498 | G30: 110.1716538 | H30: 0 | I30: 0 | J30: 0 | K30: 0 | L30: 26.98975809 | M30: 0.6690586265 | N30: 13.49487904 | O30: 0.3345293132 | P30: 5.397951617 | Q30: 0.1338117253 | R30: 26.98975809 | S30: 0.6690586265 | T30: 25.64027018 | U30: 0.6356056952
A31: 23 | B31: 45382.93 | D31: 55321.79167 | E31: 1371.391393 | F31: 4610.149306 | G31: 114.2826161 | H31: 0 | I31: 0 | J31: 0 | K31: 0 | L31: 27.99685813 | M31: 0.6940239845 | N31: 13.99842907 | O31: 0.3470119923 | P31: 5.599371627 | Q31: 0.1388047969 | R31: 27.99685813 | S31: 0.6940239845 | T31: 26.59701523 | U31: 0.6593227853
A32: 24 | B32: 46688.9 | D32: 56913.7691 | E32: 1410.855483 | F32: 4742.814092 | G32: 117.5712903 | H32: 0 | I32: 0 | J32: 0 | K32: 0 | L32: 28.80251473 | M32: 0.7139956898 | N32: 14.40125736 | O32: 0.3569978449 | P32: 5.760502945 | Q32: 0.142799138 | R32: 28.80251473 | S32: 0.7139956898 | T32: 27.36238899 | U32: 0.6782959053
A33: 25 | B33: 46688.9 | D33: 56913.7691 | E33: 1410.855483 | F33: 4742.814092 | G33: 117.5712903 | H33: 0 | I33: 0 | J33: 0 | K33: 0 | L33: 28.80251473 | M33: 0.7139956898 | N33: 14.40125736 | O33: 0.3569978449 | P33: 5.760502945 | Q33: 0.142799138 | R33: 28.80251473 | S33: 0.7139956898 | T33: 27.36238899 | U33: 0.6782959053
A34: 26 | B34: 46688.9 | D34: 56913.7691 | E34: 1410.855483 | F34: 4742.814092 | G34: 117.5712903 | H34: 0 | I34: 0 | J34: 0 | K34: 0 | L34: 28.80251473 | M34: 0.7139956898 | N34: 14.40125736 | O34: 0.3569978449 | P34: 5.760502945 | Q34: 0.142799138 | R34: 28.80251473 | S34: 0.7139956898 | T34: 27.36238899 | U34: 0.6782959053
A35: 27 | B35: 46688.9 | D35: 56913.7691 | E35: 1410.855483 | F35: 4742.814092 | G35: 117.5712903 | H35: 0 | I35: 0 | J35: 0 | K35: 0 | L35: 28.80251473 | M35: 0.7139956898 | N35: 14.40125736 | O35: 0.3569978449 | P35: 5.760502945 | Q35: 0.142799138 | R35: 28.80251473 | S35: 0.7139956898 | T35: 27.36238899 | U35: 0.6782959053

Sheet G1
A1: G1 | E1: 070 | F1: GENEESHEER OMNIPRACTICUS | Q1: Barema 26
A2: 24j. | T2: coëfficiënt: | U2: ='LOG4'!$U$4 -> 1.219
B4: JAARLOON | F4: MAANDLOON | H4: HAARDTOELAGE | J4: STANDPLAATS- | L4: UURLOON | R4: UURLOON MET
B5: 1 | J5: TOELAGE | L5: 38u | T5: 40u
B6: basis 01/01/2002 | D6: =Inhoud!$C$3 -> 2011-06-01 | F6: =D6 -> 2011-06-01 | L6: 1 | N6: 0.5 | P6: 0.2 | R6: HAARDTOELAGE
A8: 0 | B8: 31377.86 | D8: =B8*$U$2 -> 38249.61134 | E8: =D8/40.3399 -> 948.1830976 | F8: =B8/12*$U$2 -> 3187.467612 | G8: =F8/40.3399 -> 79.01525814 | H8: =((B8<19968.2)*913.03+(B8>19968.2)*(B8<20424.71)*(20424.71-B8+456.51)+(B8>20424.71)*(B8<22659.62)*456.51+(B8>22659.62)*(B8<23116.13)*(23116.13-B8))/12*$U$2 -> 0 | I8: =H8/40.3399 -> 0 | J8: =((B8<19968.2)*456.51+(B8>19968.2)*(B8<20196.46)*(20196.46-B8+228.26)+(B8>20196.46)*(B8<22659.62)*228.26+(B8>22659.62)*(B8<22887.88)*(22887.88-B8))/12*$U$2 -> 0 | K8: =J8/40.3399 -> 0 | L8: =D8/1976 -> 19.35709076 | M8: =L8/40.3399 -> 0.4798497458 | N8: =L8/2 -> 9.67854538 | O8: =N8/40.3399 -> 0.2399248729 | P8: =L8/5 -> 3.871418152 | Q8: =P8/40.3399 -> 0.09596994915 | R8: =(F8+H8)/1976*12 -> 19.35709076 | S8: =R8/40.3399 -> 0.4798497458 | T8: =D8/2080 -> 18.38923622 | U8: =T8/40.3399 -> 0.4558572585
A9: =+A8+1 -> 1 | B9: 32139.07 | D9: 39177.52633 | E9: 971.1855094 | F9: 3264.793861 | G9: 80.93212578 | H9: 0 | I9: 0 | J9: 0 | K9: 0 | L9: 19.82668337 | M9: 0.4914906424 | N9: 9.913341683 | O9: 0.2457453212 | P9: 3.965336673 | Q9: 0.09829812848 | R9: 19.82668337 | S9: 0.4914906424 | T9: 18.8353492 | U9: 0.4669161103
A10: 2 | B10: 32900.24 | D10: 40105.39256 | E10: 994.1867124 | F10: 3342.116047 | G10: 82.8488927 | H10: 0 | I10: 0 | J10: 0 | K10: 0 | L10: 20.2962513 | M10: 0.5031309273 | N10: 10.14812565 | O10: 0.2515654637 | P10: 4.059250259 | Q10: 0.1006261855 | R10: 20.2962513 | S10: 0.5031309273 | T10: 19.28143873 | U10: 0.477974381
A11: 3 | B11: 33661.06 | D11: 41032.83214 | E11: 1017.177339 | F11: 3419.402678 | G11: 84.76477826 | H11: 0 | I11: 0 | J11: 0 | K11: 0 | L11: 20.76560331 | M11: 0.5147658598 | N11: 10.38280165 | O11: 0.2573829299 | P11: 4.153120662 | Q11: 0.102953172 | R11: 20.76560331 | S11: 0.5147658598 | T11: 19.72732314 | U11: 0.4890275669
A12: 4 | B12: 33661.06 | D12: 41032.83214 | E12: 1017.177339 | F12: 3419.402678 | G12: 84.76477826 | H12: 0 | I12: 0 | J12: 0 | K12: 0 | L12: 20.76560331 | M12: 0.5147658598 | N12: 10.38280165 | O12: 0.2573829299 | P12: 4.153120662 | Q12: 0.102953172 | R12: 20.76560331 | S12: 0.5147658598 | T12: 19.72732314 | U12: 0.4890275669
A13: 5 | B13: 34992.94 | D13: 42656.39386 | E13: 1057.424383 | F13: 3554.699488 | G13: 88.11869857 | H13: 0 | I13: 0 | J13: 0 | K13: 0 | L13: 21.58724386 | M13: 0.535133797 | N13: 10.79362193 | O13: 0.2675668985 | P13: 4.317448771 | Q13: 0.1070267594 | R13: 21.58724386 | S13: 0.535133797 | T13: 20.50788166 | U13: 0.5083771071
A14: 6 | B14: 34992.94 | D14: 42656.39386 | E14: 1057.424383 | F14: 3554.699488 | G14: 88.11869857 | H14: 0 | I14: 0 | J14: 0 | K14: 0 | L14: 21.58724386 | M14: 0.535133797 | N14: 10.79362193 | O14: 0.2675668985 | P14: 4.317448771 | Q14: 0.1070267594 | R14: 21.58724386 | S14: 0.535133797 | T14: 20.50788166 | U14: 0.5083771071
A15: 7 | B15: 36324.84 | D15: 44279.97996 | E15: 1097.672031 | F15: 3689.99833 | G15: 91.47266924 | H15: 0 | I15: 0 | J15: 0 | K15: 0 | L15: 22.40889674 | M15: 0.5555020399 | N15: 11.20444837 | O15: 0.27775102 | P15: 4.481779348 | Q15: 0.111100408 | R15: 22.40889674 | S15: 0.5555020399 | T15: 21.2884519 | U15: 0.5277269379
A16: 8 | B16: 36324.84 | D16: 44279.97996 | E16: 1097.672031 | F16: 3689.99833 | G16: 91.47266924 | H16: 0 | I16: 0 | J16: 0 | K16: 0 | L16: 22.40889674 | M16: 0.5555020399 | N16: 11.20444837 | O16: 0.27775102 | P16: 4.481779348 | Q16: 0.111100408 | R16: 22.40889674 | S16: 0.5555020399 | T16: 21.2884519 | U16: 0.5277269379
A17: 9 | B17: 37656.75 | D17: 45903.57825 | E17: 1137.919981 | F17: 3825.298188 | G17: 94.8266651 | H17: 0 | I17: 0 | J17: 0 | K17: 0 | L17: 23.23055579 | M17: 0.5758704358 | N17: 11.6152779 | O17: 0.2879352179 | P17: 4.646111159 | Q17: 0.1151740872 | R17: 23.23055579 | S17: 0.5758704358 | T17: 22.069028 | U17: 0.547076914
A18: 10 | B18: 37656.75 | D18: 45903.57825 | E18: 1137.919981 | F18: 3825.298188 | G18: 94.8266651 | H18: 0 | I18: 0 | J18: 0 | K18: 0 | L18: 23.23055579 | M18: 0.5758704358 | N18: 11.6152779 | O18: 0.2879352179 | P18: 4.646111159 | Q18: 0.1151740872 | R18: 23.23055579 | S18: 0.5758704358 | T18: 22.069028 | U18: 0.547076914
A19: 11 | B19: 38988.63 | D19: 47527.13997 | E19: 1178.167025 | F19: 3960.594997 | G19: 98.18058541 | H19: 0 | I19: 0 | J19: 0 | K19: 0 | L19: 24.05219634 | M19: 0.596238373 | N19: 12.02609817 | O19: 0.2981191865 | P19: 4.810439268 | Q19: 0.1192476746 | R19: 24.05219634 | S19: 0.596238373 | T19: 22.84958652 | U19: 0.5664264543
A20: 12 | B20: 38988.63 | D20: 47527.13997 | E20: 1178.167025 | F20: 3960.594997 | G20: 98.18058541 | H20: 0 | I20: 0 | J20: 0 | K20: 0 | L20: 24.05219634 | M20: 0.596238373 | N20: 12.02609817 | O20: 0.2981191865 | P20: 4.810439268 | Q20: 0.1192476746 | R20: 24.05219634 | S20: 0.596238373 | T20: 22.84958652 | U20: 0.5664264543
A21: 13 | B21: 40320.53 | D21: 49150.72607 | E21: 1218.414673 | F21: 4095.893839 | G21: 101.5345561 | H21: 0 | I21: 0 | J21: 0 | K21: 0 | L21: 24.87384923 | M21: 0.6166066159 | N21: 12.43692461 | O21: 0.308303308 | P21: 4.974769845 | Q21: 0.1233213232 | R21: 24.87384923 | S21: 0.6166066159 | T21: 23.63015676 | U21: 0.5857762851
A22: 14 | B22: 40320.53 | D22: 49150.72607 | E22: 1218.414673 | F22: 4095.893839 | G22: 101.5345561 | H22: 0 | I22: 0 | J22: 0 | K22: 0 | L22: 24.87384923 | M22: 0.6166066159 | N22: 12.43692461 | O22: 0.308303308 | P22: 4.974769845 | Q22: 0.1233213232 | R22: 24.87384923 | S22: 0.6166066159 | T22: 23.63015676 | U22: 0.5857762851
A23: 15 | B23: 41652.03 | D23: 50773.82457 | E23: 1258.650234 | F23: 4231.152048 | G23: 104.8875195 | H23: 0 | I23: 0 | J23: 0 | K23: 0 | L23: 25.69525535 | M23: 0.6369687418 | N23: 12.84762767 | O23: 0.3184843709 | P23: 5.13905107 | Q23: 0.1273937484 | R23: 25.69525535 | S23: 0.6369687418 | T23: 24.41049258 | U23: 0.6051203048
A24: 16 | B24: 41652.03 | D24: 50773.82457 | E24: 1258.650234 | F24: 4231.152048 | G24: 104.8875195 | H24: 0 | I24: 0 | J24: 0 | K24: 0 | L24: 25.69525535 | M24: 0.6369687418 | N24: 12.84762767 | O24: 0.3184843709 | P24: 5.13905107 | Q24: 0.1273937484 | R24: 25.69525535 | S24: 0.6369687418 | T24: 24.41049258 | U24: 0.6051203048
A25: 17 | B25: 42983.94 | D25: 52397.42286 | E25: 1298.898184 | F25: 4366.451905 | G25: 108.2415153 | H25: 0 | I25: 0 | J25: 0 | K25: 0 | L25: 26.5169144 | M25: 0.6573371377 | N25: 13.2584572 | O25: 0.3286685689 | P25: 5.303382881 | Q25: 0.1314674275 | R25: 26.5169144 | S25: 0.6573371377 | T25: 25.19106868 | U25: 0.6244702809
A26: 18 | B26: 42983.94 | D26: 52397.42286 | E26: 1298.898184 | F26: 4366.451905 | G26: 108.2415153 | H26: 0 | I26: 0 | J26: 0 | K26: 0 | L26: 26.5169144 | M26: 0.6573371377 | N26: 13.2584572 | O26: 0.3286685689 | P26: 5.303382881 | Q26: 0.1314674275 | R26: 26.5169144 | S26: 0.6573371377 | T26: 25.19106868 | U26: 0.6244702809
A27: 19 | B27: 44315.84 | D27: 54021.00896 | E27: 1339.145832 | F27: 4501.750747 | G27: 111.595486 | H27: 0 | I27: 0 | J27: 0 | K27: 0 | L27: 27.33856729 | M27: 0.6777053807 | N27: 13.66928364 | O27: 0.3388526904 | P27: 5.467713457 | Q27: 0.1355410761 | R27: 27.33856729 | S27: 0.6777053807 | T27: 25.97163892 | U27: 0.6438201117
A28: 20 | B28: 44315.84 | D28: 54021.00896 | E28: 1339.145832 | F28: 4501.750747 | G28: 111.595486 | H28: 0 | I28: 0 | J28: 0 | K28: 0 | L28: 27.33856729 | M28: 0.6777053807 | N28: 13.66928364 | O28: 0.3388526904 | P28: 5.467713457 | Q28: 0.1355410761 | R28: 27.33856729 | S28: 0.6777053807 | T28: 25.97163892 | U28: 0.6438201117
A29: 21 | B29: 45647.72 | D29: 55644.57068 | E29: 1379.392876 | F29: 4637.047557 | G29: 114.9494063 | H29: 0 | I29: 0 | J29: 0 | K29: 0 | L29: 28.16020783 | M29: 0.6980733178 | N29: 14.08010392 | O29: 0.3490366589 | P29: 5.632041567 | Q29: 0.1396146636 | R29: 28.16020783 | S29: 0.6980733178 | T29: 26.75219744 | U29: 0.6631696519
A30: 22 | B30: 45647.72 | D30: 55644.57068 | E30: 1379.392876 | F30: 4637.047557 | G30: 114.9494063 | H30: 0 | I30: 0 | J30: 0 | K30: 0 | L30: 28.16020783 | M30: 0.6980733178 | N30: 14.08010392 | O30: 0.3490366589 | P30: 5.632041567 | Q30: 0.1396146636 | R30: 28.16020783 | S30: 0.6980733178 | T30: 26.75219744 | U30: 0.6631696519
A31: 23 | B31: 46979.63 | D31: 57268.16897 | E31: 1419.640826 | F31: 4772.347414 | G31: 118.3034022 | H31: 0 | I31: 0 | J31: 0 | K31: 0 | L31: 28.98186689 | M31: 0.7184417137 | N31: 14.49093344 | O31: 0.3592208569 | P31: 5.796373378 | Q31: 0.1436883427 | R31: 28.98186689 | S31: 0.7184417137 | T31: 27.53277354 | U31: 0.682519628
A32: 24 | B32: 46979.63 | D32: 57268.16897 | E32: 1419.640826 | F32: 4772.347414 | G32: 118.3034022 | H32: 0 | I32: 0 | J32: 0 | K32: 0 | L32: 28.98186689 | M32: 0.7184417137 | N32: 14.49093344 | O32: 0.3592208569 | P32: 5.796373378 | Q32: 0.1436883427 | R32: 28.98186689 | S32: 0.7184417137 | T32: 27.53277354 | U32: 0.682519628
A33: 25 | B33: 46979.63 | D33: 57268.16897 | E33: 1419.640826 | F33: 4772.347414 | G33: 118.3034022 | H33: 0 | I33: 0 | J33: 0 | K33: 0 | L33: 28.98186689 | M33: 0.7184417137 | N33: 14.49093344 | O33: 0.3592208569 | P33: 5.796373378 | Q33: 0.1436883427 | R33: 28.98186689 | S33: 0.7184417137 | T33: 27.53277354 | U33: 0.682519628
A34: 26 | B34: 46979.63 | D34: 57268.16897 | E34: 1419.640826 | F34: 4772.347414 | G34: 118.3034022 | H34: 0 | I34: 0 | J34: 0 | K34: 0 | L34: 28.98186689 | M34: 0.7184417137 | N34: 14.49093344 | O34: 0.3592208569 | P34: 5.796373378 | Q34: 0.1436883427 | R34: 28.98186689 | S34: 0.7184417137 | T34: 27.53277354 | U34: 0.682519628
A35: 27 | B35: 46979.63 | D35: 57268.16897 | E35: 1419.640826 | F35: 4772.347414 | G35: 118.3034022 | H35: 0 | I35: 0 | J35: 0 | K35: 0 | L35: 28.98186689 | M35: 0.7184417137 | N35: 14.49093344 | O35: 0.3592208569 | P35: 5.796373378 | Q35: 0.1436883427 | R35: 28.98186689 | S35: 0.7184417137 | T35: 27.53277354 | U35: 0.682519628

Sheet GS
A1: GS | E1: 080 | F1: GENEESHEER SPECIALIST | Q1: Barema 27
A2: 24j. | T2: coëfficiënt: | U2: ='LOG4'!$U$4 -> 1.219
B4: JAARLOON | F4: MAANDLOON | H4: HAARDTOELAGE | J4: STANDPLAATS- | L4: UURLOON | R4: UURLOON MET
B5: 1 | J5: TOELAGE | L5: 38u | T5: 40u
B6: basis 01/01/2002 | D6: =Inhoud!$C$3 -> 2011-06-01 | F6: =D6 -> 2011-06-01 | L6: 1 | N6: 0.5 | P6: 0.2 | R6: HAARDTOELAGE
A8: 0 | B8: 41706.69 | D8: =B8*$U$2 -> 50840.45511 | E8: =D8/40.3399 -> 1260.301962 | F8: =B8/12*$U$2 -> 4236.704593 | G8: =F8/40.3399 -> 105.0251635 | H8: =((B8<19968.2)*913.03+(B8>19968.2)*(B8<20424.71)*(20424.71-B8+456.51)+(B8>20424.71)*(B8<22659.62)*456.51+(B8>22659.62)*(B8<23116.13)*(23116.13-B8))/12*$U$2 -> 0 | I8: =H8/40.3399 -> 0 | J8: =((B8<19968.2)*456.51+(B8>19968.2)*(B8<20196.46)*(20196.46-B8+228.26)+(B8>20196.46)*(B8<22659.62)*228.26+(B8>22659.62)*(B8<22887.88)*(22887.88-B8))/12*$U$2 -> 0 | K8: =J8/40.3399 -> 0 | L8: =D8/1976 -> 25.72897526 | M8: =L8/40.3399 -> 0.6378046366 | N8: =L8/2 -> 12.86448763 | O8: =N8/40.3399 -> 0.3189023183 | P8: =L8/5 -> 5.145795052 | Q8: =P8/40.3399 -> 0.1275609273 | R8: =(F8+H8)/1976*12 -> 25.72897526 | S8: =R8/40.3399 -> 0.6378046366 | T8: =D8/2080 -> 24.4425265 | U8: =T8/40.3399 -> 0.6059144047
A9: =+A8+1 -> 1 | B9: 41706.69 | D9: 50840.45511 | E9: 1260.301962 | F9: 4236.704593 | G9: 105.0251635 | H9: 0 | I9: 0 | J9: 0 | K9: 0 | L9: 25.72897526 | M9: 0.6378046366 | N9: 12.86448763 | O9: 0.3189023183 | P9: 5.145795052 | Q9: 0.1275609273 | R9: 25.72897526 | S9: 0.6378046366 | T9: 24.4425265 | U9: 0.6059144047
A10: 2 | B10: 43337.6 | D10: 52828.5344 | E10: 1309.58516 | F10: 4402.377867 | G10: 109.1320967 | H10: 0 | I10: 0 | J10: 0 | K10: 0 | L10: 26.73508826 | M10: 0.6627455264 | N10: 13.36754413 | O10: 0.3313727632 | P10: 5.347017652 | Q10: 0.1325491053 | R10: 26.73508826 | S10: 0.6627455264 | T10: 25.39833385 | U10: 0.62960825
A11: 3 | B11: 43337.6 | D11: 52828.5344 | E11: 1309.58516 | F11: 4402.377867 | G11: 109.1320967 | H11: 0 | I11: 0 | J11: 0 | K11: 0 | L11: 26.73508826 | M11: 0.6627455264 | N11: 13.36754413 | O11: 0.3313727632 | P11: 5.347017652 | Q11: 0.1325491053 | R11: 26.73508826 | S11: 0.6627455264 | T11: 25.39833385 | U11: 0.62960825
A12: 4 | B12: 44968.51 | D12: 54816.61369 | E12: 1358.868358 | F12: 4568.051141 | G12: 113.2390299 | H12: 0 | I12: 0 | J12: 0 | K12: 0 | L12: 27.74120126 | M12: 0.6876864162 | N12: 13.87060063 | O12: 0.3438432081 | P12: 5.548240252 | Q12: 0.1375372832 | R12: 27.74120126 | S12: 0.6876864162 | T12: 26.3541412 | U12: 0.6533020954
A13: 5 | B13: 44968.51 | D13: 54816.61369 | E13: 1358.868358 | F13: 4568.051141 | G13: 113.2390299 | H13: 0 | I13: 0 | J13: 0 | K13: 0 | L13: 27.74120126 | M13: 0.6876864162 | N13: 13.87060063 | O13: 0.3438432081 | P13: 5.548240252 | Q13: 0.1375372832 | R13: 27.74120126 | S13: 0.6876864162 | T13: 26.3541412 | U13: 0.6533020954
A14: 6 | B14: 46599.03 | D14: 56804.21757 | E14: 1408.139772 | F14: 4733.684798 | G14: 117.344981 | H14: 0 | I14: 0 | J14: 0 | K14: 0 | L14: 28.74707367 | M14: 0.7126213419 | N14: 14.37353683 | O14: 0.3563106709 | P14: 5.749414734 | Q14: 0.1425242684 | R14: 28.74707367 | S14: 0.7126213419 | T14: 27.30971999 | U14: 0.6769902748
A15: 7 | B15: 46599.03 | D15: 56804.21757 | E15: 1408.139772 | F15: 4733.684798 | G15: 117.344981 | H15: 0 | I15: 0 | J15: 0 | K15: 0 | L15: 28.74707367 | M15: 0.7126213419 | N15: 14.37353683 | O15: 0.3563106709 | P15: 5.749414734 | Q15: 0.1425242684 | R15: 28.74707367 | S15: 0.7126213419 | T15: 27.30971999 | U15: 0.6769902748
A16: 8 | B16: 48229.94 | D16: 58792.29686 | E16: 1457.42297 | F16: 4899.358072 | G16: 121.4519142 | H16: 0 | I16: 0 | J16: 0 | K16: 0 | L16: 29.75318667 | M16: 0.7375622317 | N16: 14.87659334 | O16: 0.3687811158 | P16: 5.950637334 | Q16: 0.1475124463 | R16: 29.75318667 | S16: 0.7375622317 | T16: 28.26552734 | U16: 0.7006841201
A17: 9 | B17: 48229.94 | D17: 58792.29686 | E17: 1457.42297 | F17: 4899.358072 | G17: 121.4519142 | H17: 0 | I17: 0 | J17: 0 | K17: 0 | L17: 29.75318667 | M17: 0.7375622317 | N17: 14.87659334 | O17: 0.3687811158 | P17: 5.950637334 | Q17: 0.1475124463 | R17: 29.75318667 | S17: 0.7375622317 | T17: 28.26552734 | U17: 0.7006841201
A18: 10 | B18: 49860.85 | D18: 60780.37615 | E18: 1506.706168 | F18: 5065.031346 | G18: 125.5588473 | H18: 0 | I18: 0 | J18: 0 | K18: 0 | L18: 30.75929967 | M18: 0.7625031215 | N18: 15.37964984 | O18: 0.3812515608 | P18: 6.151859934 | Q18: 0.1525006243 | R18: 30.75929967 | S18: 0.7625031215 | T18: 29.22133469 | U18: 0.7243779654
A19: 11 | B19: 49860.85 | D19: 60780.37615 | E19: 1506.706168 | F19: 5065.031346 | G19: 125.5588473 | H19: 0 | I19: 0 | J19: 0 | K19: 0 | L19: 30.75929967 | M19: 0.7625031215 | N19: 15.37964984 | O19: 0.3812515608 | P19: 6.151859934 | Q19: 0.1525006243 | R19: 30.75929967 | S19: 0.7625031215 | T19: 29.22133469 | U19: 0.7243779654
A20: 12 | B20: 51491.75 | D20: 62768.44325 | E20: 1555.989064 | F20: 5230.703604 | G20: 129.6657553 | H20: 0 | I20: 0 | J20: 0 | K20: 0 | L20: 31.7654065 | M20: 0.7874438584 | N20: 15.88270325 | O20: 0.3937219292 | P20: 6.353081301 | Q20: 0.1574887717 | R20: 31.7654065 | S20: 0.7874438584 | T20: 30.17713618 | U20: 0.7480716655
A21: 13 | B21: 51491.75 | D21: 62768.44325 | E21: 1555.989064 | F21: 5230.703604 | G21: 129.6657553 | H21: 0 | I21: 0 | J21: 0 | K21: 0 | L21: 31.7654065 | M21: 0.7874438584 | N21: 15.88270325 | O21: 0.3937219292 | P21: 6.353081301 | Q21: 0.1574887717 | R21: 31.7654065 | S21: 0.7874438584 | T21: 30.17713618 | U21: 0.7480716655
A22: 14 | B22: 53122.66 | D22: 64756.52254 | E22: 1605.272262 | F22: 5396.376878 | G22: 133.7726885 | H22: 0 | I22: 0 | J22: 0 | K22: 0 | L22: 32.7715195 | M22: 0.8123847482 | N22: 16.38575975 | O22: 0.4061923741 | P22: 6.554303901 | Q22: 0.1624769496 | R22: 32.7715195 | S22: 0.8123847482 | T22: 31.13294353 | U22: 0.7717655108
A23: 15 | B23: 53122.66 | D23: 64756.52254 | E23: 1605.272262 | F23: 5396.376878 | G23: 133.7726885 | H23: 0 | I23: 0 | J23: 0 | K23: 0 | L23: 32.7715195 | M23: 0.8123847482 | N23: 16.38575975 | O23: 0.4061923741 | P23: 6.554303901 | Q23: 0.1624769496 | R23: 32.7715195 | S23: 0.8123847482 | T23: 31.13294353 | U23: 0.7717655108
A24: 16 | B24: 54753.57 | D24: 66744.60183 | E24: 1654.555461 | F24: 5562.050152 | G24: 137.8796217 | H24: 0 | I24: 0 | J24: 0 | K24: 0 | L24: 33.77763251 | M24: 0.837325638 | N24: 16.88881625 | O24: 0.418662819 | P24: 6.755526501 | Q24: 0.1674651276 | R24: 33.77763251 | S24: 0.837325638 | T24: 32.08875088 | U24: 0.7954593561
A25: 17 | B25: 54753.57 | D25: 66744.60183 | E25: 1654.555461 | F25: 5562.050152 | G25: 137.8796217 | H25: 0 | I25: 0 | J25: 0 | K25: 0 | L25: 33.77763251 | M25: 0.837325638 | N25: 16.88881625 | O25: 0.418662819 | P25: 6.755526501 | Q25: 0.1674651276 | R25: 33.77763251 | S25: 0.837325638 | T25: 32.08875088 | U25: 0.7954593561
A26: 18 | B26: 56384.48 | D26: 68732.68112 | E26: 1703.838659 | F26: 5727.723427 | G26: 141.9865549 | H26: 0 | I26: 0 | J26: 0 | K26: 0 | L26: 34.78374551 | M26: 0.8622665278 | N26: 17.39187275 | O26: 0.4311332639 | P26: 6.956749101 | Q26: 0.1724533056 | R26: 34.78374551 | S26: 0.8622665278 | T26: 33.04455823 | U26: 0.8191532014
A27: 19 | B27: 56384.48 | D27: 68732.68112 | E27: 1703.838659 | F27: 5727.723427 | G27: 141.9865549 | H27: 0 | I27: 0 | J27: 0 | K27: 0 | L27: 34.78374551 | M27: 0.8622665278 | N27: 17.39187275 | O27: 0.4311332639 | P27: 6.956749101 | Q27: 0.1724533056 | R27: 34.78374551 | S27: 0.8622665278 | T27: 33.04455823 | U27: 0.8191532014
A28: 20 | B28: 58015.39 | D28: 70720.76041 | E28: 1753.121857 | F28: 5893.396701 | G28: 146.0934881 | H28: 0 | I28: 0 | J28: 0 | K28: 0 | L28: 35.78985851 | M28: 0.8872074176 | N28: 17.89492925 | O28: 0.4436037088 | P28: 7.157971701 | Q28: 0.1774414835 | R28: 35.78985851 | S28: 0.8872074176 | T28: 34.00036558 | U28: 0.8428470468
A29: 21 | B29: 58015.39 | D29: 70720.76041 | E29: 1753.121857 | F29: 5893.396701 | G29: 146.0934881 | H29: 0 | I29: 0 | J29: 0 | K29: 0 | L29: 35.78985851 | M29: 0.8872074176 | N29: 17.89492925 | O29: 0.4436037088 | P29: 7.157971701 | Q29: 0.1774414835 | R29: 35.78985851 | S29: 0.8872074176 | T29: 34.00036558 | U29: 0.8428470468
A30: 22 | B30: 59645.91 | D30: 72708.36429 | E30: 1802.39327 | F30: 6059.030358 | G30: 150.1994392 | H30: 0 | I30: 0 | J30: 0 | K30: 0 | L30: 36.79573092 | M30: 0.9121423433 | N30: 18.39786546 | O30: 0.4560711717 | P30: 7.359146183 | Q30: 0.1824284687 | R30: 36.79573092 | S30: 0.9121423433 | T30: 34.95594437 | U30: 0.8665352262
A31: 23 | B31: 59645.91 | D31: 72708.36429 | E31: 1802.39327 | F31: 6059.030358 | G31: 150.1994392 | H31: 0 | I31: 0 | J31: 0 | K31: 0 | L31: 36.79573092 | M31: 0.9121423433 | N31: 18.39786546 | O31: 0.4560711717 | P31: 7.359146183 | Q31: 0.1824284687 | R31: 36.79573092 | S31: 0.9121423433 | T31: 34.95594437 | U31: 0.8665352262
A32: 24 | B32: 59645.91 | D32: 72708.36429 | E32: 1802.39327 | F32: 6059.030358 | G32: 150.1994392 | H32: 0 | I32: 0 | J32: 0 | K32: 0 | L32: 36.79573092 | M32: 0.9121423433 | N32: 18.39786546 | O32: 0.4560711717 | P32: 7.359146183 | Q32: 0.1824284687 | R32: 36.79573092 | S32: 0.9121423433 | T32: 34.95594437 | U32: 0.8665352262
A33: 25 | B33: 59645.91 | D33: 72708.36429 | E33: 1802.39327 | F33: 6059.030358 | G33: 150.1994392 | H33: 0 | I33: 0 | J33: 0 | K33: 0 | L33: 36.79573092 | M33: 0.9121423433 | N33: 18.39786546 | O33: 0.4560711717 | P33: 7.359146183 | Q33: 0.1824284687 | R33: 36.79573092 | S33: 0.9121423433 | T33: 34.95594437 | U33: 0.8665352262
A34: 26 | B34: 59645.91 | D34: 72708.36429 | E34: 1802.39327 | F34: 6059.030358 | G34: 150.1994392 | H34: 0 | I34: 0 | J34: 0 | K34: 0 | L34: 36.79573092 | M34: 0.9121423433 | N34: 18.39786546 | O34: 0.4560711717 | P34: 7.359146183 | Q34: 0.1824284687 | R34: 36.79573092 | S34: 0.9121423433 | T34: 34.95594437 | U34: 0.8665352262
A35: 27 | B35: 59645.91 | D35: 72708.36429 | E35: 1802.39327 | F35: 6059.030358 | G35: 150.1994392 | H35: 0 | I35: 0 | J35: 0 | K35: 0 | L35: 36.79573092 | M35: 0.9121423433 | N35: 18.39786546 | O35: 0.4560711717 | P35: 7.359146183 | Q35: 0.1824284687 | R35: 36.79573092 | S35: 0.9121423433 | T35: 34.95594437 | U35: 0.8665352262

Sheet GEW
A3: GEWAARBORGD INKOMEN
A8: JAARLOON | E8: MAANDLOON | G8: UURLOON
A9: 1 | G9: 38u | M9: 40u
A10: basis 01/01/2002 | C10: =Inhoud!$C$3 -> 2011-06-01 | E10: =C10 -> 2011-06-01 | G10: 1 | I10: 0.5 | K10: 0.2
A12: 16244.56 | C12: =A12*'LOG4'!U4 -> 19802.11864 | D12: =C12/40.3399 -> 490.8816988 | E12: =A12*'LOG4'!U4/12 -> 1650.176553 | F12: =+E12/40.3399 -> 40.90680823 | G12: =C12/1976 -> 10.0213151 | H12: =+G12/40.3399 -> 0.2484219123 | I12: =+G12/2 -> 5.010657551 | J12: =+I12/40.3399 -> 0.1242109562 | K12: =+G12/5 -> 2.00426302 | L12: =+K12/40.3399 -> 0.04968438247 | M12: =C12/2080 -> 9.520249346 | N12: =M12/40.3399 -> 0.2360008167
